Workbook

Sheet Main
B10: 2020-01-01
B12: Sheet No. | C12: Template Name | D12: Summary
B13: 1 | C13: Future Intra | D13: For Intraday trading in F&O segment
B14: 2 | C14: Cash Intra | D14: For Intraday trading in cash market segment
B15: 3 | C15: Mid-cap Intra | D15: For Intraday trading in Mid-cap stocks
B16: 4 | C16: Bulk Deals | D16: Reveals Bulk Deals carried on NSE & BSE
B17: 5 | C17: Call Tracker
K27: `

Sheet Future Intra
M5: Back to Main Page
A6: FOR INTRA DAY TRADING | L6: =Main!B10 -> 2020-01-01
A9: Sr.no | B9: Sector | C9: Scrip | D9: CLOSE RATE | E9: Pivot Point | F9: Supports | I9: Resistances
B10: Sector | D10: Point | E10: Point | F10: S1 | G10: S2 | H10: S3 | I10: R1 | J10: R2 | K10: R3 | L10: HIGH | M10: LOW | N10: OI | O10: % Change in OI
A11: 1 | B11: Index | C11: BANKNIFTY | D11: 32366.05 | E11: 32402.65 | F11: 32283.40 | G11: 32200.75 | H11: 32081.50 | I11: 32485.30 | J11: 32604.55 | K11: 32687.20 | L11: 32521.9 | M11: 32320 | N11: 1343440 | O11: -5.77%
A12: 2 | B12: Index | C12: NIFTY | D12: 12246.25 | E12: 12263.00 | F12: 12213.40 | G12: 12180.55 | H12: 12130.95 | I12: 12295.85 | J12: 12345.45 | K12: 12378.30 | L12: 12312.6 | M12: 12230.15 | N12: 13295625 | O12: 1.30%
A13: 3 | B13: Index | C13: NIFTYIT | D13: 15690.00 | E13: 15694.33 | F13: 15650.67 | G13: 15611.33 | H13: 15567.67 | I13: 15733.67 | J13: 15777.33 | K13: 15816.67 | L13: 15738 | M13: 15655 | N13: 5050 | O13: 1.00%
A14: 4 | B14: Cement | C14: ACC | D14: 1456.55 | E14: 1458.52 | F14: 1448.63 | G14: 1440.72 | H14: 1430.83 | I14: 1466.43 | J14: 1476.32 | K14: 1484.23 | L14: 1468.4 | M14: 1450.6 | N14: 3290400 | O14: 4.48%
A15: 5 | B15: Others | C15: ADANIENT | D15: 209.40 | E15: 209.95 | F15: 208.00 | G15: 206.60 | H15: 204.65 | I15: 211.35 | J15: 213.30 | K15: 214.70 | L15: 211.9 | M15: 208.55 | N15: 28372000 | O15: -0.01%
A16: 6 | B16: Others | C16: ADANIPORTS | D16: 367.95 | E16: 368.47 | F16: 366.53 | G16: 365.12 | H16: 363.18 | I16: 369.88 | J16: 371.82 | K16: 373.23 | L16: 370.4 | M16: 367.05 | N16: 36925000 | O16: -0.65%
A17: 7 | B17: Power | C17: ADANIPOWER | D17: 62.05 | E17: 61.85 | F17: 61.40 | G17: 60.75 | H17: 60.30 | I17: 62.50 | J17: 62.95 | K17: 63.60 | L17: 62.3 | M17: 61.2 | N17: 72920000 | O17: 1.84%
A18: 8 | B18: Automobile | C18: AMARAJABAT | D18: 728.90 | E18: 729.77 | F18: 723.58 | G18: 718.27 | H18: 712.08 | I18: 735.08 | J18: 741.27 | K18: 746.58 | L18: 735.95 | M18: 724.45 | N18: 1425600 | O18: -0.06%
A19: 9 | B19: Cement | C19: AMBUJACEM | D19: 197.80 | E19: 197.87 | F19: 196.03 | G19: 194.27 | H19: 192.43 | I19: 199.63 | J19: 201.47 | K19: 203.23 | L19: 199.7 | M19: 196.1 | N19: 18995000 | O19: 3.33%
A20: 10 | B20: Others | C20: APOLLOHOSP | D20: 1445.30 | E20: 1440.12 | F20: 1423.98 | G20: 1402.67 | H20: 1386.53 | I20: 1461.43 | J20: 1477.57 | K20: 1498.88 | L20: 1456.25 | M20: 1418.8 | N20: 1649000 | O20: -2.37%
A21: 11 | B21: Automobile | C21: APOLLOTYRE | D21: 165.10 | E21: 165.52 | F21: 164.38 | G21: 163.67 | H21: 162.53 | I21: 166.23 | J21: 167.37 | K21: 168.08 | L21: 166.65 | M21: 164.8 | N21: 9309000 | O21: 3.06%
A22: 12 | B22: Automobile | C22: ASHOKLEY | D22: 82.05 | E22: 82.30 | F22: 81.50 | G22: 80.95 | H22: 80.15 | I22: 82.85 | J22: 83.65 | K22: 84.20 | L22: 83.1 | M22: 81.75 | N22: 58480000 | O22: 2.86%
A23: 13 | B23: FMCG | C23: ASIANPAINT | D23: 1799.05 | E23: 1802.90 | F23: 1791.15 | G23: 1783.25 | H23: 1771.50 | I23: 1810.80 | J23: 1822.55 | K23: 1830.45 | L23: 1814.65 | M23: 1795 | N23: 8586000 | O23: 0.92%
A24: 14 | B24: Pharma | C24: AUROPHARMA | D24: 460.25 | E24: 463.53 | F24: 455.72 | G24: 451.18 | H24: 443.37 | I24: 468.07 | J24: 475.88 | K24: 480.42 | L24: 471.35 | M24: 459 | N24: 15924000 | O24: 0.75%
A25: 15 | B25: Banking | C25: AXISBANK | D25: 759.55 | E25: 762.08 | F25: 754.67 | G25: 749.78 | H25: 742.37 | I25: 766.97 | J25: 774.38 | K25: 779.27 | L25: 769.5 | M25: 757.2 | N25: 57639600 | O25: -0.63%
A26: 16 | B26: Automobile | C26: BAJAJ-AUTO | D26: 3208.90 | E26: 3227.38 | F26: 3183.77 | G26: 3158.63 | H26: 3115.02 | I26: 3252.52 | J26: 3296.13 | K26: 3321.27 | L26: 3271 | M26: 3202.25 | N26: 2570500 | O26: 6.19%
A27: 17 | B27: Finance | C27: BAJAJFINSV | D27: 9459.95 | E27: 9472.68 | F27: 9435.37 | G27: 9410.78 | H27: 9373.47 | I27: 9497.27 | J27: 9534.58 | K27: 9559.17 | L27: 9510 | M27: 9448.1 | N27: 1455625 | O27: -0.69%
A28: 18 | B28: Finance | C28: BAJFINANCE | D28: 4253.15 | E28: 4260.37 | F28: 4237.33 | G28: 4221.52 | H28: 4198.48 | I28: 4276.18 | J28: 4299.22 | K28: 4315.03 | L28: 4283.4 | M28: 4244.55 | N28: 7619500 | O28: -0.54%
A29: 19 | B29: Automobile | C29: BALKRISIND | D29: 987.70 | E29: 1002.27 | F29: 963.78 | G29: 939.87 | H29: 901.38 | I29: 1026.18 | J29: 1064.67 | K29: 1088.58 | L29: 1040.75 | M29: 978.35 | N29: 1860000 | O29: 1.71%
A30: 20 | B30: Banking | C30: BANKBARODA | D30: 102.50 | E30: 102.83 | F30: 101.87 | G30: 101.23 | H30: 100.27 | I30: 103.47 | J30: 104.43 | K30: 105.07 | L30: 103.8 | M30: 102.2 | N30: 77306400 | O30: 1.14%
A31: 21 | B31: FMCG | C31: BATAINDIA | D31: 1762.25 | E31: 1766.93 | F31: 1753.32 | G31: 1744.38 | H31: 1730.77 | I31: 1775.87 | J31: 1789.48 | K31: 1798.42 | L31: 1780.55 | M31: 1758 | N31: 2035550 | O31: -3.12%
A32: 22 | B32: Capital_Goods | C32: BEL | D32: 100.70 | E32: 101.23 | F32: 99.92 | G32: 99.13 | H32: 97.82 | I32: 102.02 | J32: 103.33 | K32: 104.12 | L32: 102.55 | M32: 100.45 | N32: 27876000 | O32: 3.27%
A33: 23 | B33: FMCG | C33: BERGEPAINT | D33: 513.55 | E33: 513.13 | F33: 511.07 | G33: 508.58 | H33: 506.52 | I33: 515.62 | J33: 517.68 | K33: 520.17 | L33: 515.2 | M33: 510.65 | N33: 9389600 | O33: -0.19%
A34: 24 | B34: Automobile | C34: BHARATFORG | D34: 486.40 | E34: 488.73 | F34: 481.87 | G34: 477.33 | H34: 470.47 | I34: 493.27 | J34: 500.13 | K34: 504.67 | L34: 495.6 | M34: 484.2 | N34: 8318700 | O34: 1.49%
A35: 25 | B35: Telecom | C35: BHARTIARTL | D35: 459.00 | E35: 460.68 | F35: 456.42 | G35: 453.83 | H35: 449.57 | I35: 463.27 | J35: 467.53 | K35: 470.12 | L35: 464.95 | M35: 458.1 | N35: 40392522 | O35: -0.47%
A36: 26 | B36: Capital_Goods | C36: BHEL | D36: 43.75 | E36: 43.57 | F36: 43.03 | G36: 42.32 | H36: 41.78 | I36: 44.28 | J36: 44.82 | K36: 45.53 | L36: 44.1 | M36: 42.85 | N36: 77240800 | O36: -0.38%
A37: 27 | B37: Pharma | C37: BIOCON | D37: 294.50 | E37: 294.62 | F37: 290.98 | G37: 287.47 | H37: 283.83 | I37: 298.13 | J37: 301.77 | K37: 305.28 | L37: 298.25 | M37: 291.1 | N37: 10589200 | O37: 1.86%
A38: 28 | B38: Automobile | C38: BOSCHLTD | D38: 15489.75 | E38: 15612.98 | F38: 15326.97 | G38: 15164.18 | H38: 14878.17 | I38: 15775.77 | J38: 16061.78 | K38: 16224.57 | L38: 15899 | M38: 15450.2 | N38: 129520 | O38: 0.81%
A39: 29 | B39: Oil_Gas | C39: BPCL | D39: 492.90 | E39: 493.10 | F39: 488.30 | G39: 483.70 | H39: 478.90 | I39: 497.70 | J39: 502.50 | K39: 507.10 | L39: 497.9 | M39: 488.5 | N39: 31667400 | O39: 0.77%
A40: 30 | B40: FMCG | C40: BRITANNIA | D40: 3047.90 | E40: 3056.07 | F40: 3032.13 | G40: 3016.37 | H40: 2992.43 | I40: 3071.83 | J40: 3095.77 | K40: 3111.53 | L40: 3080 | M40: 3040.3 | N40: 2069600 | O40: 0.81%
A41: 31 | B41: Pharma | C41: CADILAHC | D41: 256.05 | E41: 256.82 | F41: 254.68 | G41: 253.32 | H41: 251.18 | I41: 258.18 | J41: 260.32 | K41: 261.68 | L41: 258.95 | M41: 255.45 | N41: 7361200 | O41: -1.30%
A42: 32 | B42: Banking | C42: CANBK | D42: 222.50 | E42: 223.13 | F42: 221.37 | G42: 220.23 | H42: 218.47 | I42: 224.27 | J42: 226.03 | K42: 227.17 | L42: 224.9 | M42: 222 | N42: 13442000 | O42: -0.39%
A43: 33 | B43: Oil_Gas | C43: CASTROLIND | D43: 130.25 | E43: 130.10 | F43: 129.30 | G43: 128.35 | H43: 127.55 | I43: 131.05 | J43: 131.85 | K43: 132.80 | L43: 130.9 | M43: 129.15 | N43: 6109000 | O43: -0.33%
A44: 34 | B44: Textile | C44: CENTURYTEX | D44: 480.90 | E44: 481.87 | F44: 477.98 | G44: 475.07 | H44: 471.18 | I44: 484.78 | J44: 488.67 | K44: 491.58 | L44: 485.75 | M44: 478.95 | N44: 3590400 | O44: -1.19%
A45: 35 | B45: Power | C45: CESC | D45: 742.15 | E45: 745.10 | F45: 737.20 | G45: 732.25 | H45: 724.35 | I45: 750.05 | J45: 757.95 | K45: 762.90 | L45: 753 | M45: 740.15 | N45: 1169600 | O45: 5.64%
A46: 36 | B46: Finance | C46: CHOLAFIN | D46: 307.80 | E46: 308.22 | F46: 305.58 | G46: 303.37 | H46: 300.73 | I46: 310.43 | J46: 313.07 | K46: 315.28 | L46: 310.85 | M46: 306 | N46: 3925000 | O46: 0.71%
A47: 37 | B47: Pharma | C47: CIPLA | D47: 481.40 | E47: 482.73 | F47: 478.87 | G47: 476.33 | H47: 472.47 | I47: 485.27 | J47: 489.13 | K47: 491.67 | L47: 486.6 | M47: 480.2 | N47: 13924200 | O47: 0.22%
A48: 38 | B48: Others | C48: COALINDIA | D48: 207.30 | E48: 205.77 | F48: 203.53 | G48: 199.77 | H48: 197.53 | I48: 209.53 | J48: 211.77 | K48: 215.53 | L48: 208 | M48: 202 | N48: 15174000 | O48: 4.99%
A49: 39 | B49: FMCG | C49: COLPAL | D49: 1472.40 | E49: 1474.12 | F49: 1466.48 | G49: 1460.57 | H49: 1452.93 | I49: 1480.03 | J49: 1487.67 | K49: 1493.58 | L49: 1481.75 | M49: 1468.2 | N49: 2440900 | O49: -0.11%
A50: 40 | B50: Others | C50: CONCOR | D50: 574.65 | E50: 577.38 | F50: 570.87 | G50: 567.08 | H50: 560.57 | I50: 581.17 | J50: 587.68 | K50: 591.47 | L50: 583.9 | M50: 573.6 | N50: 5753403 | O50: 5.26%
A51: 41 | B51: Capital_Goods | C51: CUMMINSIND | D51: 554.60 | E51: 555.60 | F51: 551.80 | G51: 549.00 | H51: 545.20 | I51: 558.40 | J51: 562.20 | K51: 565.00 | L51: 559.4 | M51: 552.8 | N51: 1778400 | O51: 0.71%
A52: 42 | B52: FMCG | C52: DABUR | D52: 461.60 | E52: 463.70 | F52: 458.40 | G52: 455.20 | H52: 449.90 | I52: 466.90 | J52: 472.20 | K52: 475.40 | L52: 469 | M52: 460.5 | N52: 12776250 | O52: -0.43%
A53: 43 | B53: Media | C53: DISHTV | D53: 13.20 | E53: 13.27 | F53: 12.98 | G53: 12.77 | H53: 12.48 | I53: 13.48 | J53: 13.77 | K53: 13.98 | L53: 13.55 | M53: 13.05 | N53: 100845000 | O53: 0.51%
A54: 44 | B54: Pharma | C54: DIVISLAB | D54: 1853.90 | E54: 1856.30 | F54: 1845.60 | G54: 1837.30 | H54: 1826.60 | I54: 1864.60 | J54: 1875.30 | K54: 1883.60 | L54: 1867 | M54: 1848 | N54: 2251600 | O54: -0.86%
A55: 45 | B55: Realty | C55: DLF | D55: 232.70 | E55: 233.40 | F55: 231.00 | G55: 229.30 | H55: 226.90 | I55: 235.10 | J55: 237.50 | K55: 239.20 | L55: 235.8 | M55: 231.7 | N55: 36115200 | O55: -0.91%
A56: 46 | B56: Pharma | C56: DRREDDY | D56: 2893.30 | E56: 2901.95 | F56: 2877.30 | G56: 2861.30 | H56: 2836.65 | I56: 2917.95 | J56: 2942.60 | K56: 2958.60 | L56: 2926.6 | M56: 2885.95 | N56: 3001500 | O56: 0.61%
A57: 47 | B57: Automobile | C57: EICHERMOT | D57: 22603.45 | E57: 22674.30 | F57: 22428.70 | G57: 22253.95 | H57: 22008.35 | I57: 22849.05 | J57: 23094.65 | K57: 23269.40 | L57: 22919.9 | M57: 22499.55 | N57: 279090 | O57: -0.79%
A58: 48 | B58: Finance | C58: EQUITAS | D58: 107.55 | E58: 107.53 | F58: 106.62 | G58: 105.68 | H58: 104.77 | I58: 108.47 | J58: 109.38 | K58: 110.32 | L58: 108.45 | M58: 106.6 | N58: 15782900 | O58: -1.29%
A59: 49 | B59: Automobile | C59: ESCORTS | D59: 634.50 | E59: 635.77 | F59: 631.73 | G59: 628.97 | H59: 624.93 | I59: 638.53 | J59: 642.57 | K59: 645.33 | L59: 639.8 | M59: 633 | N59: 5702400 | O59: 0.56%
A60: 50 | B60: Automobile | C60: EXIDEIND | D60: 187.30 | E60: 187.28 | F60: 185.92 | G60: 184.53 | H60: 183.17 | I60: 188.67 | J60: 190.03 | K60: 191.42 | L60: 188.65 | M60: 185.9 | N60: 12211900 | O60: -3.11%
A61: 51 | B61: Banking | C61: FEDERALBNK | D61: 88.40 | E61: 88.47 | F61: 87.33 | G61: 86.27 | H61: 85.13 | I61: 89.53 | J61: 90.67 | K61: 91.73 | L61: 89.6 | M61: 87.4 | N61: 57113000 | O61: -0.31%
A62: 52 | B62: Oil_Gas | C62: GAIL | D62: 121.40 | E62: 120.98 | F62: 119.42 | G62: 117.43 | H62: 115.87 | I62: 122.97 | J62: 124.53 | K62: 126.52 | L62: 122.55 | M62: 119 | N62: 55281576 | O62: -0.44%
A63: 53 | B63: Pharma | C63: GLENMARK | D63: 349.20 | E63: 349.38 | F63: 347.02 | G63: 344.83 | H63: 342.47 | I63: 351.57 | J63: 353.93 | K63: 356.12 | L63: 351.75 | M63: 347.2 | N63: 5223400 | O63: -0.85%
A64: 54 | B64: Infrastructure | C64: GMRINFRA | D64: 21.15 | E64: 21.07 | F64: 20.88 | G64: 20.62 | H64: 20.43 | I64: 21.33 | J64: 21.52 | K64: 21.78 | L64: 21.25 | M64: 20.8 | N64: 158580000 | O64: -0.03%
A65: 55 | B65: FMCG | C65: GODREJCP | D65: 689.05 | E65: 690.88 | F65: 685.57 | G65: 682.08 | H65: 676.77 | I65: 694.37 | J65: 699.68 | K65: 703.17 | L65: 696.2 | M65: 687.4 | N65: 4155200 | O65: -0.21%
A66: 56 | B66: Cement | C66: GRASIM | D66: 748.05 | E66: 745.33 | F66: 740.82 | G66: 733.58 | H66: 729.07 | I66: 752.57 | J66: 757.08 | K66: 764.32 | L66: 749.85 | M66: 738.1 | N66: 23364000 | O66: -0.83%
A67: 57 | B67: Others | C67: HAVELLS | D67: 652.10 | E67: 654.62 | F67: 648.48 | G67: 644.87 | H67: 638.73 | I67: 658.23 | J67: 664.37 | K67: 667.98 | L67: 660.75 | M67: 651 | N67: 5306000 | O67: 0.66%
A68: 58 | B68: Technology | C68: HCLTECH | D68: 569.65 | E68: 569.70 | F68: 566.40 | G68: 563.15 | H68: 559.85 | I68: 572.95 | J68: 576.25 | K68: 579.50 | L68: 573 | M68: 566.45 | N68: 22786400 | O68: -0.13%
A69: 59 | B69: Finance | C69: HDFC | D69: 2430.90 | E69: 2437.50 | F69: 2418.90 | G69: 2406.90 | H69: 2388.30 | I69: 2449.50 | J69: 2468.10 | K69: 2480.10 | L69: 2456.1 | M69: 2425.5 | N69: 31646750 | O69: 0.39%
A70: 60 | B70: Banking | C70: HDFCBANK | D70: 1281.55 | E70: 1282.82 | F70: 1276.08 | G70: 1270.62 | H70: 1263.88 | I70: 1288.28 | J70: 1295.02 | K70: 1300.48 | L70: 1289.55 | M70: 1277.35 | N70: 32479500 | O70: 1.67%
A71: 61 | B71: Automobile | C71: HEROMOTOCO | D71: 2461.15 | E71: 2467.93 | F71: 2445.87 | G71: 2430.58 | H71: 2408.52 | I71: 2483.22 | J71: 2505.28 | K71: 2520.57 | L71: 2490 | M71: 2452.65 | N71: 3872200 | O71: 1.60%
A72: 62 | B72: Metals | C72: HINDALCO | D72: 217.40 | E72: 218.28 | F72: 215.92 | G72: 214.43 | H72: 212.07 | I72: 219.77 | J72: 222.13 | K72: 223.62 | L72: 220.65 | M72: 216.8 | N72: 38605000 | O72: 1.42%
A73: 63 | B73: Oil_Gas | C73: HINDPETRO | D73: 265.65 | E73: 267.23 | F73: 263.42 | G73: 261.18 | H73: 257.37 | I73: 269.47 | J73: 273.28 | K73: 275.52 | L73: 271.05 | M73: 265 | N73: 17997000 | O73: 2.61%
A74: 64 | B74: FMCG | C74: HINDUNILVR | D74: 1937.25 | E74: 1942.75 | F74: 1928.55 | G74: 1919.85 | H74: 1905.65 | I74: 1951.45 | J74: 1965.65 | K74: 1974.35 | L74: 1956.95 | M74: 1934.05 | N74: 10236600 | O74: 0.69%
A75: 65 | B75: Finance | C75: IBULHSGFIN | D75: 309.70 | E75: 307.67 | F75: 301.03 | G75: 292.37 | H75: 285.73 | I75: 316.33 | J75: 322.97 | K75: 331.63 | L75: 314.3 | M75: 299 | N75: 22197600 | O75: -0.69%
A76: 66 | B76: Banking | C76: ICICIBANK | D76: 542.80 | E76: 543.92 | F76: 540.93 | G76: 539.07 | H76: 536.08 | I76: 545.78 | J76: 548.77 | K76: 550.63 | L76: 546.9 | M76: 542.05 | N76: 105803500 | O76: 1.17%
A77: 67 | B77: Finance | C77: ICICIPRULI | D77: 485.75 | E77: 486.60 | F77: 483.50 | G77: 481.25 | H77: 478.15 | I77: 488.85 | J77: 491.95 | K77: 494.20 | L77: 489.7 | M77: 484.35 | N77: 11137500 | O77: 2.44%
A78: 68 | B78: Telecom | C78: IDEA | D78: 6.20 | E78: 6.15 | F78: 6.05 | G78: 5.90 | H78: 5.80 | I78: 6.30 | J78: 6.40 | K78: 6.55 | L78: 6.25 | M78: 6 | N78: 389060000 | O78: -2.12%
A79: 69 | B79: Banking | C79: IDFCFIRSTB | D79: 45.40 | E79: 45.23 | F79: 44.87 | G79: 44.33 | H79: 43.97 | I79: 45.77 | J79: 46.13 | K79: 46.67 | L79: 45.6 | M79: 44.7 | N79: 197652000 | O79: -0.59%
A80: 70 | B80: Oil_Gas | C80: IGL | D80: 428.60 | E80: 430.38 | F80: 425.82 | G80: 423.03 | H80: 418.47 | I80: 433.17 | J80: 437.73 | K80: 440.52 | L80: 434.95 | M80: 427.6 | N80: 8148250 | O80: 4.88%
A81: 71 | B81: Others | C81: INDIGO | D81: 1342.55 | E81: 1349.73 | F81: 1331.47 | G81: 1320.38 | H81: 1302.12 | I81: 1360.82 | J81: 1379.08 | K81: 1390.17 | L81: 1368 | M81: 1338.65 | N81: 3258300 | O81: -1.67%
A82: 72 | B82: Banking | C82: INDUSINDBK | D82: 1521.35 | E82: 1526.08 | F82: 1511.67 | G82: 1501.98 | H82: 1487.57 | I82: 1535.77 | J82: 1550.18 | K82: 1559.87 | L82: 1540.5 | M82: 1516.4 | N82: 10332000 | O82: 1.00%
A83: 73 | B83: Telecom | C83: INFRATEL | D83: 251.10 | E83: 253.28 | F83: 247.92 | G83: 244.73 | H83: 239.37 | I83: 256.47 | J83: 261.83 | K83: 265.02 | L83: 258.65 | M83: 250.1 | N83: 12826000 | O83: 3.15%
A84: 74 | B84: Technology | C84: INFY | D84: 735.15 | E84: 734.18 | F84: 727.77 | G84: 720.38 | H84: 713.97 | I84: 741.57 | J84: 747.98 | K84: 755.37 | L84: 740.6 | M84: 726.8 | N84: 27942000 | O84: 9.99%
A85: 75 | B85: Oil_Gas | C85: IOC | D85: 124.90 | E85: 125.35 | F85: 124.15 | G85: 123.40 | H85: 122.20 | I85: 126.10 | J85: 127.30 | K85: 128.05 | L85: 126.55 | M85: 124.6 | N85: 32116000 | O85: 9.45%
A86: 76 | B86: FMCG | C86: ITC | D86: 239.20 | E86: 239.48 | F86: 238.52 | G86: 237.83 | H86: 236.87 | I86: 240.17 | J86: 241.13 | K86: 241.82 | L86: 240.45 | M86: 238.8 | N86: 127029600 | O86: 0.38%
A87: 77 | B87: Metals | C87: JINDALSTEL | D87: 168.55 | E87: 168.25 | F87: 167.10 | G87: 165.65 | H87: 164.50 | I87: 169.70 | J87: 170.85 | K87: 172.30 | L87: 169.4 | M87: 166.8 | N87: 25680000 | O87: -0.33%
A88: 78 | B88: Metals | C88: JSWSTEEL | D88: 271.85 | E88: 272.02 | F88: 269.28 | G88: 266.72 | H88: 263.98 | I88: 274.58 | J88: 277.32 | K88: 279.88 | L88: 274.75 | M88: 269.45 | N88: 53291000 | O88: 2.03%
A89: 79 | B89: Others | C89: JUBLFOOD | D89: 1664.20 | E89: 1657.05 | F89: 1638.35 | G89: 1612.50 | H89: 1593.80 | I89: 1682.90 | J89: 1701.60 | K89: 1727.45 | L89: 1675.75 | M89: 1631.2 | N89: 2600000 | O89: 17.51%
A90: 80 | B90: Others | C90: JUSTDIAL | D90: 572.75 | E90: 575.50 | F90: 563.85 | G90: 554.95 | H90: 543.30 | I90: 584.40 | J90: 596.05 | K90: 604.95 | L90: 587.15 | M90: 566.6 | N90: 2195200 | O90: 4.53%
A91: 81 | B91: Banking | C91: KOTAKBANK | D91: 1696.45 | E91: 1692.75 | F91: 1685.80 | G91: 1675.15 | H91: 1668.20 | I91: 1703.40 | J91: 1710.35 | K91: 1721.00 | L91: 1699.7 | M91: 1682.1 | N91: 8572000 | O91: 0.72%
A92: 82 | B92: Finance | C92: L&TFH | D92: 118.80 | E92: 118.92 | F92: 117.58 | G92: 116.37 | H92: 115.03 | I92: 120.13 | J92: 121.47 | K92: 122.68 | L92: 120.25 | M92: 117.7 | N92: 28100800 | O92: 3.10%
A93: 83 | B93: Finance | C93: LICHSGFIN | D93: 437.10 | E93: 439.62 | F93: 432.88 | G93: 428.67 | H93: 421.93 | I93: 443.83 | J93: 450.57 | K93: 454.78 | L93: 446.35 | M93: 435.4 | N93: 10719800 | O93: -1.47%
A94: 84 | B94: Capital_Goods | C94: LT | D94: 1309.80 | E94: 1309.93 | F94: 1300.97 | G94: 1292.13 | H94: 1283.17 | I94: 1318.77 | J94: 1327.73 | K94: 1336.57 | L94: 1318.9 | M94: 1301.1 | N94: 21712125 | O94: 4.57%
A95: 85 | B95: Pharma | C95: LUPIN | D95: 767.55 | E95: 770.22 | F95: 762.48 | G95: 757.42 | H95: 749.68 | I95: 775.28 | J95: 783.02 | K95: 788.08 | L95: 777.95 | M95: 765.15 | N95: 7144200 | O95: -1.50%
A96: 86 | B96: Automobile | C96: M&M | D96: 535.40 | E96: 537.18 | F96: 532.97 | G96: 530.53 | H96: 526.32 | I96: 539.62 | J96: 543.83 | K96: 546.27 | L96: 541.4 | M96: 534.75 | N96: 23648000 | O96: 0.35%
A97: 87 | B97: Finance | C97: M&MFIN | D97: 324.80 | E97: 325.27 | F97: 321.58 | G97: 318.37 | H97: 314.68 | I97: 328.48 | J97: 332.17 | K97: 335.38 | L97: 328.95 | M97: 322.05 | N97: 15131200 | O97: 2.25%
A98: 88 | B98: Finance | C98: MANAPPURAM | D98: 178.65 | E98: 179.77 | F98: 177.23 | G98: 175.82 | H98: 173.28 | I98: 181.18 | J98: 183.72 | K98: 185.13 | L98: 182.3 | M98: 178.35 | N98: 18918000 | O98: 0.80%
A99: 89 | B99: FMCG | C99: MARICO | D99: 343.50 | E99: 344.08 | F99: 341.97 | G99: 340.43 | H99: 338.32 | I99: 345.62 | J99: 347.73 | K99: 349.27 | L99: 346.2 | M99: 342.55 | N99: 12853100 | O99: -0.29%
A100: 90 | B100: Automobile | C100: MARUTI | D100: 7421.95 | E100: 7424.92 | F100: 7397.03 | G100: 7372.12 | H100: 7344.23 | I100: 7449.83 | J100: 7477.72 | K100: 7502.63 | L100: 7452.8 | M100: 7400 | N100: 3141200 | O100: 1.28%
A101: 91 | B101: FMCG | C101: MCDOWELL-N | D101: 601.95 | E101: 602.17 | F101: 597.43 | G101: 592.92 | H101: 588.18 | I101: 606.68 | J101: 611.42 | K101: 615.93 | L101: 606.9 | M101: 597.65 | N101: 12560000 | O101: -0.81%
A102: 92 | B102: Finance | C102: MFSL | D102: 538.35 | E102: 540.67 | F102: 534.93 | G102: 531.52 | H102: 525.78 | I102: 544.08 | J102: 549.82 | K102: 553.23 | L102: 546.4 | M102: 537.25 | N102: 9552400 | O102: 1.21%
A103: 93 | B103: Oil_Gas | C103: MGL | D103: 1070.20 | E103: 1071.48 | F103: 1063.57 | G103: 1056.93 | H103: 1049.02 | I103: 1078.12 | J103: 1086.03 | K103: 1092.67 | L103: 1079.4 | M103: 1064.85 | N103: 1755000 | O103: 0.38%
A104: 94 | B104: Technology | C104: MINDTREE | D104: 798.90 | E104: 799.08 | F104: 794.12 | G104: 789.33 | H104: 784.37 | I104: 803.87 | J104: 808.83 | K104: 813.62 | L104: 804.05 | M104: 794.3 | N104: 1051200 | O104: -2.81%
A105: 95 | B105: Automobile | C105: MOTHERSUMI | D105: 147.60 | E105: 148.42 | F105: 146.53 | G105: 145.47 | H105: 143.58 | I105: 149.48 | J105: 151.37 | K105: 152.43 | L105: 150.3 | M105: 147.35 | N105: 31250000 | O105: 1.89%
A106: 96 | B106: Automobile | C106: MRF | D106: 66679.45 | E106: 66659.77 | F106: 66269.68 | G106: 65859.92 | H106: 65469.83 | I106: 67069.53 | J106: 67459.62 | K106: 67869.38 | L106: 67049.85 | M106: 66250 | N106: 18850 | O106: 1.24%
A107: 97 | B107: Finance | C107: MUTHOOTFIN | D107: 766.75 | E107: 768.45 | F107: 762.50 | G107: 758.25 | H107: 752.30 | I107: 772.70 | J107: 778.65 | K107: 782.90 | L107: 774.4 | M107: 764.2 | N107: 3859500 | O107: -2.50%
A108: 98 | B108: Metals | C108: NATIONALUM | D108: 43.80 | E108: 44.03 | F108: 43.42 | G108: 43.03 | H108: 42.42 | I108: 44.42 | J108: 45.03 | K108: 45.42 | L108: 44.65 | M108: 43.65 | N108: 45735300 | O108: 0.85%
A109: 99 | B109: Infrastructure | C109: NBCC | D109: 35.10 | E109: 35.00 | F109: 34.60 | G109: 34.10 | H109: 33.70 | I109: 35.50 | J109: 35.90 | K109: 36.40 | L109: 35.4 | M109: 34.5 | N109: 37380200 | O109: -0.91%
A110: 100 | B110: Infrastructure | C110: NCC | D110: 56.45 | E110: 56.20 | F110: 55.60 | G110: 54.75 | H110: 54.15 | I110: 57.05 | J110: 57.65 | K110: 58.50 | L110: 56.8 | M110: 55.35 | N110: 45153000 | O110: 2.68%
A111: 101 | B111: FMCG | C111: NESTLEIND | D111: 14861.90 | E111: 14888.37 | F111: 14782.73 | G111: 14703.57 | H111: 14597.93 | I111: 14967.53 | J111: 15073.17 | K111: 15152.33 | L111: 14994 | M111: 14809.2 | N111: 441750 | O111: 1.09%
A112: 102 | B112: Technology | C112: NIITTECH | D112: 1599.80 | E112: 1599.72 | F112: 1586.98 | G112: 1574.17 | H112: 1561.43 | I112: 1612.53 | J112: 1625.27 | K112: 1638.08 | L112: 1612.45 | M112: 1586.9 | N112: 628500 | O112: 1.33%
A113: 103 | B113: Metals | C113: NMDC | D113: 129.30 | E113: 128.97 | F113: 126.53 | G113: 123.77 | H113: 121.33 | I113: 131.73 | J113: 134.17 | K113: 136.93 | L113: 131.4 | M113: 126.2 | N113: 23958000 | O113: 8.21%
A114: 104 | B114: Power | C114: NTPC | D114: 118.40 | E114: 117.90 | F114: 116.70 | G114: 115.00 | H114: 113.80 | I114: 119.60 | J114: 120.80 | K114: 122.50 | L114: 119.1 | M114: 116.2 | N114: 33187200 | O114: -2.45%
A115: 105 | B115: Oil_Gas | C115: OIL | D115: 152.95 | E115: 152.95 | F115: 152.10 | G115: 151.25 | H115: 150.40 | I115: 153.80 | J115: 154.65 | K115: 155.50 | L115: 153.8 | M115: 152.1 | N115: 5050914 | O115: -2.11%
A116: 106 | B116: Oil_Gas | C116: ONGC | D116: 127.90 | E116: 127.92 | F116: 127.03 | G116: 126.17 | H116: 125.28 | I116: 128.78 | J116: 129.67 | K116: 130.53 | L116: 128.8 | M116: 127.05 | N116: 34349800 | O116: 1.07%
A117: 107 | B117: Textile | C117: PAGEIND | D117: 23415.35 | E117: 23531.18 | F117: 23222.42 | G117: 23029.48 | H117: 22720.72 | I117: 23724.12 | J117: 24032.88 | K117: 24225.82 | L117: 23839.95 | M117: 23338.25 | N117: 124400 | O117: 1.20%
A118: 108 | B118: Pharma | C118: PEL | D118: 1521.90 | E118: 1537.98 | F118: 1494.82 | G118: 1467.73 | H118: 1424.57 | I118: 1565.07 | J118: 1608.23 | K118: 1635.32 | L118: 1581.15 | M118: 1510.9 | N118: 4031523 | O118: 4.67%
A119: 109 | B119: Oil_Gas | C119: PETRONET | D119: 269.70 | E119: 270.45 | F119: 268.55 | G119: 267.40 | H119: 265.50 | I119: 271.60 | J119: 273.50 | K119: 274.65 | L119: 272.35 | M119: 269.3 | N119: 19632000 | O119: 0.71%
A120: 110 | B120: Finance | C120: PFC | D120: 118.35 | E120: 117.03 | F120: 114.67 | G120: 110.98 | H120: 108.62 | I120: 120.72 | J120: 123.08 | K120: 126.77 | L120: 119.4 | M120: 113.35 | N120: 25066600 | O120: 10.62%
A121: 111 | B121: FMCG | C121: PIDILITIND | D121: 1397.15 | E121: 1402.28 | F121: 1390.87 | G121: 1384.58 | H121: 1373.17 | I121: 1408.57 | J121: 1419.98 | K121: 1426.27 | L121: 1413.7 | M121: 1396 | N121: 3051000 | O121: 0.76%
A122: 112 | B122: Banking | C122: PNB | D122: 64.85 | E122: 64.85 | F122: 64.40 | G122: 63.95 | H122: 63.50 | I122: 65.30 | J122: 65.75 | K122: 66.20 | L122: 65.3 | M122: 64.4 | N122: 106912300 | O122: 0.62%
A123: 113 | B123: Power | C123: POWERGRID | D123: 190.45 | E123: 190.57 | F123: 189.08 | G123: 187.72 | H123: 186.23 | I123: 191.93 | J123: 193.42 | K123: 194.78 | L123: 192.05 | M123: 189.2 | N123: 14124000 | O123: 1.23%
A124: 114 | B124: Media | C124: PVR | D124: 1904.20 | E124: 1906.42 | F124: 1892.83 | G124: 1881.47 | H124: 1867.88 | I124: 1917.78 | J124: 1931.37 | K124: 1942.73 | L124: 1920 | M124: 1895.05 | N124: 1064000 | O124: -0.34%
A125: 115 | B125: Cement | C125: RAMCOCEM | D125: 760.00 | E125: 762.28 | F125: 755.92 | G125: 751.83 | H125: 745.47 | I125: 766.37 | J125: 772.73 | K125: 776.82 | L125: 768.65 | M125: 758.2 | N125: 1019200 | O125: -0.55%
A126: 116 | B126: Banking | C126: RBLBANK | D126: 345.35 | E126: 345.65 | F126: 342.30 | G126: 339.25 | H126: 335.90 | I126: 348.70 | J126: 352.05 | K126: 355.10 | L126: 349 | M126: 342.6 | N126: 14247000 | O126: -3.50%
A127: 117 | B127: Power | C127: RECLTD | D127: 143.85 | E127: 143.33 | F127: 141.37 | G127: 138.88 | H127: 136.92 | I127: 145.82 | J127: 147.78 | K127: 150.27 | L127: 145.3 | M127: 140.85 | N127: 18936000 | O127: 7.42%
A128: 118 | B128: Oil_Gas | C128: RELIANCE | D128: 1526.00 | E128: 1533.37 | F128: 1512.98 | G128: 1499.97 | H128: 1479.58 | I128: 1546.38 | J128: 1566.77 | K128: 1579.78 | L128: 1553.75 | M128: 1520.35 | N128: 54834500 | O128: 1.77%
A129: 119 | B129: Metals | C129: SAIL | D129: 43.20 | E129: 43.23 | F129: 42.87 | G129: 42.53 | H129: 42.17 | I129: 43.57 | J129: 43.93 | K129: 44.27 | L129: 43.6 | M129: 42.9 | N129: 95079200 | O129: 3.38%
A130: 120 | B130: Banking | C130: SBIN | D130: 336.15 | E130: 336.45 | F130: 334.50 | G130: 332.85 | H130: 330.90 | I130: 338.10 | J130: 340.05 | K130: 341.70 | L130: 338.4 | M130: 334.8 | N130: 107571000 | O130: -0.19%
A131: 121 | B131: Cement | C131: SHREECEM | D131: 20496.10 | E131: 20494.48 | F131: 20429.57 | G131: 20363.03 | H131: 20298.12 | I131: 20561.02 | J131: 20625.93 | K131: 20692.47 | L131: 20559.4 | M131: 20427.95 | N131: 130950 | O131: 0.31%
A132: 122 | B132: Capital_Goods | C132: SIEMENS | D132: 1498.50 | E132: 1506.07 | F132: 1486.08 | G132: 1473.67 | H132: 1453.68 | I132: 1518.48 | J132: 1538.47 | K132: 1550.88 | L132: 1526.05 | M132: 1493.65 | N132: 2285250 | O132: -2.42%
A133: 123 | B133: Textile | C133: SRF | D133: 3443.15 | E133: 3440.23 | F133: 3418.52 | G133: 3393.88 | H133: 3372.17 | I133: 3464.87 | J133: 3486.58 | K133: 3511.22 | L133: 3461.95 | M133: 3415.6 | N133: 761000 | O133: 0.50%
A134: 124 | B134: Finance | C134: SRTRANSFIN | D134: 1175.75 | E134: 1173.50 | F134: 1163.30 | G134: 1150.85 | H134: 1140.65 | I134: 1185.95 | J134: 1196.15 | K134: 1208.60 | L134: 1183.7 | M134: 1161.05 | N134: 3975600 | O134: 0.61%
A135: 125 | B135: Pharma | C135: SUNPHARMA | D135: 434.05 | E135: 434.18 | F135: 431.42 | G135: 428.78 | H135: 426.02 | I135: 436.82 | J135: 439.58 | K135: 442.22 | L135: 436.95 | M135: 431.55 | N135: 63400000 | O135: -0.71%
A136: 126 | B136: Media | C136: SUNTV | D136: 444.50 | E136: 447.22 | F136: 439.98 | G136: 435.47 | H136: 428.23 | I136: 451.73 | J136: 458.97 | K136: 463.48 | L136: 454.45 | M136: 442.7 | N136: 4116000 | O136: 3.28%
A137: 127 | B137: Fertilisers | C137: TATACHEM | D137: 671.90 | E137: 673.83 | F137: 666.52 | G137: 661.13 | H137: 653.82 | I137: 679.22 | J137: 686.53 | K137: 691.92 | L137: 681.15 | M137: 668.45 | N137: 2912400 | O137: -3.03%
A138: 128 | B138: FMCG | C138: TATAGLOBAL | D138: 322.80 | E138: 323.92 | F138: 320.38 | G138: 317.97 | H138: 314.43 | I138: 326.33 | J138: 329.87 | K138: 332.28 | L138: 327.45 | M138: 321.5 | N138: 9630900 | O138: -4.22%
A139: 129 | B139: Automobile | C139: TATAMOTORS | D139: 185.90 | E139: 185.73 | F139: 182.77 | G139: 179.63 | H139: 176.67 | I139: 188.87 | J139: 191.83 | K139: 194.97 | L139: 188.7 | M139: 182.6 | N139: 65071900 | O139: 0.04%
A140: 130 | B140: Automobile | C140: TATAMTRDVR | D140: 77.35 | E140: 76.83 | F140: 75.72 | G140: 74.08 | H140: 72.97 | I140: 78.47 | J140: 79.58 | K140: 81.22 | L140: 77.95 | M140: 75.2 | N140: 33681200 | O140: -8.25%
A141: 131 | B141: Power | C141: TATAPOWER | D141: 57.00 | E141: 56.97 | F141: 56.68 | G141: 56.37 | H141: 56.08 | I141: 57.28 | J141: 57.57 | K141: 57.88 | L141: 57.25 | M141: 56.65 | N141: 70596000 | O141: 1.28%
A142: 132 | B142: Metals | C142: TATASTEEL | D142: 475.00 | E142: 475.20 | F142: 472.40 | G142: 469.80 | H142: 467.00 | I142: 477.80 | J142: 480.60 | K142: 483.20 | L142: 478 | M142: 472.6 | N142: 24172500 | O142: -0.67%
A143: 133 | B143: Technology | C143: TCS | D143: 2172.70 | E143: 2181.37 | F143: 2160.33 | G143: 2147.97 | H143: 2126.93 | I143: 2193.73 | J143: 2214.77 | K143: 2227.13 | L143: 2202.4 | M143: 2169 | N143: 16062000 | O143: 1.70%
A144: 134 | B144: Technology | C144: TECHM | D144: 766.10 | E144: 771.88 | F144: 757.77 | G144: 749.43 | H144: 735.32 | I144: 780.22 | J144: 794.33 | K144: 802.67 | L144: 786 | M144: 763.55 | N144: 15684000 | O144: 2.36%
A145: 135 | B145: FMCG | C145: TITAN | D145: 1192.05 | E145: 1195.95 | F145: 1184.10 | G145: 1176.15 | H145: 1164.30 | I145: 1203.90 | J145: 1215.75 | K145: 1223.70 | L145: 1207.8 | M145: 1188 | N145: 10498500 | O145: 1.30%
A146: 136 | B146: Pharma | C146: TORNTPHARM | D146: 1857.90 | E146: 1864.00 | F146: 1844.90 | G146: 1831.90 | H146: 1812.80 | I146: 1877.00 | J146: 1896.10 | K146: 1909.10 | L146: 1883.1 | M146: 1851 | N146: 278000 | O146: 1.83%
A147: 137 | B147: Power | C147: TORNTPOWER | D147: 286.05 | E147: 286.78 | F147: 284.62 | G147: 283.18 | H147: 281.02 | I147: 288.22 | J147: 290.38 | K147: 291.82 | L147: 288.95 | M147: 285.35 | N147: 3639000 | O147: -2.96%
A148: 138 | B148: Automobile | C148: TVSMOTOR | D148: 460.75 | E148: 463.63 | F148: 456.37 | G148: 451.98 | H148: 444.72 | I148: 468.02 | J148: 475.28 | K148: 479.67 | L148: 470.9 | M148: 459.25 | N148: 5536350 | O148: 2.04%
A149: 139 | B149: FMCG | C149: UBL | D149: 1279.40 | E149: 1285.95 | F149: 1269.95 | G149: 1260.50 | H149: 1244.50 | I149: 1295.40 | J149: 1311.40 | K149: 1320.85 | L149: 1301.95 | M149: 1276.5 | N149: 1516900 | O149: 1.26%
A150: 140 | B150: Finance | C150: UJJIVAN | D150: 349.75 | E150: 351.17 | F150: 347.78 | G150: 345.82 | H150: 342.43 | I150: 353.13 | J150: 356.52 | K150: 358.48 | L150: 354.55 | M150: 349.2 | N150: 7733300 | O150: 0.38%
A151: 141 | B151: Cement | C151: ULTRACEMCO | D151: 4076.00 | E151: 4077.92 | F151: 4054.88 | G151: 4033.77 | H151: 4010.73 | I151: 4099.03 | J151: 4122.07 | K151: 4143.18 | L151: 4100.95 | M151: 4056.8 | N151: 2663400 | O151: 0.89%
A152: 142 | B152: Fertilisers | C152: UPL | D152: 588.95 | E152: 589.82 | F152: 585.63 | G152: 582.32 | H152: 578.13 | I152: 593.13 | J152: 597.32 | K152: 600.63 | L152: 594 | M152: 586.5 | N152: 13607100 | O152: 0.58%
A153: 143 | B153: Metals | C153: VEDL | D153: 153.55 | E153: 154.38 | F153: 152.17 | G153: 150.78 | H153: 148.57 | I153: 155.77 | J153: 157.98 | K153: 159.37 | L153: 156.6 | M153: 153 | N153: 80801000 | O153: 2.17%
A154: 144 | B154: Capital_Goods | C154: VOLTAS | D154: 660.95 | E154: 661.32 | F154: 657.63 | G154: 654.32 | H154: 650.63 | I154: 664.63 | J154: 668.32 | K154: 671.63 | L154: 665 | M154: 658 | N154: 3065000 | O154: -1.76%
A155: 145 | B155: Technology | C155: WIPRO | D155: 246.55 | E155: 247.27 | F155: 245.38 | G155: 244.22 | H155: 242.33 | I155: 248.43 | J155: 250.32 | K155: 251.48 | L155: 249.15 | M155: 246.1 | N155: 18275200 | O155: 0.19%
A156: 146 | B156: Banking | C156: YESBANK | D156: 43.85 | E156: 44.05 | F156: 42.40 | G156: 40.95 | H156: 39.30 | I156: 45.50 | J156: 47.15 | K156: 48.60 | L156: 45.7 | M156: 42.6 | N156: 272641600 | O156: 4.23%
A157: 147 | B157: Media | C157: ZEEL | D157: 293.20 | E157: 297.03 | F157: 288.32 | G157: 283.43 | H157: 274.72 | I157: 301.92 | J157: 310.63 | K157: 315.52 | L157: 305.75 | M157: 292.15 | N157: 28220000 | O157: 1.93%
A158: 151
A175: Pivot Point: This is trigger point for intra day buy/sell based on the price range of the previous day
A176: As per the tool,the trader should take BUY position just above Pivot and keep the stop loss of pivot point and the first target would be Resistance 1(R1)
A177: If R1 is crossed then R2 becomes the next target with stop loss of at R1
A178: Similarly if price goes below pivot point then the trader should sell and keep a stop loss of pivot point and the first target would be S1
A179: If S1 is crossed then S2 becomes the next target with stop loss of at S1
A181: Disclaimer:
A182: This document has been prepared by the Retail Research Desk of Asit C Mehta
A183: Investment Intermediates Ltd. and is meant for use of the recipient only
A184: and is not for circulation. This document is not to be reported or
A185: copied or made available to others. It should not be considered to be
A186: taken as an offer to sell or a solicitation to buy any security. The
A187: information contained herein is from sources believed reliable. We do
A188: not represent that it is accurate or complete and it should not be
A189: relied upon as such. We may from time to time have positions in and buy
A190: and sell securities referred to herein

Sheet Cash Intra
M5: Back to Main Page
A6: FOR INTRA DAY TRADING | K6: =Main!B10 -> 2020-01-01
A8: Sr.no | B8: Scrip | C8: CLOSE RATE | D8: Pivot Point | E8: Supports | H8: Resistances
C9: Point | E9: S1 | F9: S2 | G9: S3 | H9: R1 | I9: R2 | J9: R3 | K9: HIGH | L9: LOW | M9: Total Trade Quanity in Lakhs
A10: 1 | B10: Nifty 50 | C10: 12168.45 | D10: 12189.12 | E10: 12131.13 | F10: 12093.82 | G10: 12035.83 | H10: 12226.43 | I10: 12284.42 | J10: 12321.73 | K10: 12247.1 | L10: 12151.8
A11: 2 | B11: Nifty Bank | C11: 32161.65 | D11: 32205.45 | E11: 32064.95 | F11: 31968.25 | G11: 31827.75 | H11: 32302.15 | I11: 32442.65 | J11: 32539.35 | K11: 32345.95 | L11: 32108.75
A12: 3 | B12: Nifty CPSE | C12: 1935.9 | D12: 1928.60 | E12: 1914.80 | F12: 1893.70 | G12: 1879.90 | H12: 1949.70 | I12: 1963.50 | J12: 1984.60 | K12: 1942.4 | L12: 1907.5
A13: 4 | B13: Nifty Infra | C13: 3255.3 | D13: 3260.83 | E13: 3244.17 | F13: 3233.03 | G13: 3216.37 | H13: 3271.97 | I13: 3288.63 | J13: 3299.77 | K13: 3277.5 | L13: 3249.7
A14: 5 | B14: Nifty IT | C14: 15652.4 | D14: 15687.38 | E14: 15599.52 | F14: 15546.63 | G14: 15458.77 | H14: 15740.27 | I14: 15828.13 | J14: 15881.02 | K14: 15775.25 | L14: 15634.5
A15: 6 | B15: Nifty PSE | C15: 3226.6 | D15: 3221.18 | E15: 3200.07 | F15: 3173.53 | G15: 3152.42 | H15: 3247.72 | I15: 3268.83 | J15: 3295.37 | K15: 3242.3 | L15: 3194.65
A16: 7 | B16: Nifty Midcap 50 | C16: 4701.1 | D16: 4707.65 | E16: 4689.50 | F16: 4677.90 | G16: 4659.75 | H16: 4719.25 | I16: 4737.40 | J16: 4749.00 | K16: 4725.8 | L16: 4696.05
A17: 8 | B17: ACC | C17: 1445.65 | D17: 1449.07 | E17: 1438.13 | F17: 1430.62 | G17: 1419.68 | H17: 1456.58 | I17: 1467.52 | J17: 1475.03 | K17: 1460 | L17: 1441.55 | M17: 5.81119
A18: 9 | B18: AUBANK | C18: 803.1 | D18: 802.57 | E18: 783.23 | F18: 763.37 | G18: 744.03 | H18: 822.43 | I18: 841.77 | J18: 861.63 | K18: 821.9 | L18: 782.7 | M18: 5.64939
A19: 10 | B19: ADANIPORTS | C19: 366 | D19: 366.52 | E19: 364.38 | F19: 362.77 | G19: 360.63 | H19: 368.13 | I19: 370.27 | J19: 371.88 | K19: 368.65 | L19: 364.9 | M19: 20.43206
A20: 11 | B20: ADANIPOWER | C20: 61.8 | D20: 61.67 | E20: 61.18 | F20: 60.57 | G20: 60.08 | H20: 62.28 | I20: 62.77 | J20: 63.38 | K20: 62.15 | L20: 61.05 | M20: 75.55401
A21: 12 | B21: ABCAPITAL | C21: 102.7 | D21: 103.00 | E21: 101.20 | F21: 99.70 | G21: 97.90 | H21: 104.50 | I21: 106.30 | J21: 107.80 | K21: 104.8 | L21: 101.5 | M21: 26.693
A22: 13 | B22: ABFRL | C22: 231.7 | D22: 229.83 | E22: 226.52 | F22: 221.33 | G22: 218.02 | H22: 235.02 | I22: 238.33 | J22: 243.52 | K22: 233.15 | L22: 224.65 | M22: 5.46866
A23: 14 | B23: AJANTPHARM | C23: 974.55 | D23: 967.85 | E23: 956.70 | F23: 938.85 | G23: 927.70 | H23: 985.70 | I23: 996.85 | J23: 1014.70 | K23: 979 | L23: 950 | M23: 0.64781
A24: 15 | B24: ALKEM | C24: 2013.9 | D24: 2012.13 | E24: 1990.27 | F24: 1966.63 | G24: 1944.77 | H24: 2035.77 | I24: 2057.63 | J24: 2081.27 | K24: 2034 | L24: 1988.5 | M24: 0.47011
A25: 16 | B25: ALBK | C25: 18.85 | D25: 18.92 | E25: 18.63 | F25: 18.42 | G25: 18.13 | H25: 19.13 | I25: 19.42 | J25: 19.63 | K25: 19.2 | L25: 18.7 | M25: 13.41427
A26: 17 | B26: AMARAJABAT | C26: 724.35 | D26: 725.03 | E26: 719.12 | F26: 713.88 | G26: 707.97 | H26: 730.27 | I26: 736.18 | J26: 741.42 | K26: 730.95 | L26: 719.8 | M26: 2.73544
A27: 18 | B27: AMBUJACEM | C27: 196.25 | D27: 196.38 | E27: 194.52 | F27: 192.78 | G27: 190.92 | H27: 198.12 | I27: 199.98 | J27: 201.72 | K27: 198.25 | L27: 194.65 | M27: 19.72433
A28: 19 | B28: APOLLOHOSP | C28: 1442 | D28: 1437.00 | E28: 1420.00 | F28: 1398.00 | G28: 1381.00 | H28: 1459.00 | I28: 1476.00 | J28: 1498.00 | K28: 1454 | L28: 1415 | M28: 9.85801
A29: 20 | B29: APOLLOTYRE | C29: 163.9 | D29: 164.35 | E29: 163.05 | F29: 162.20 | G29: 160.90 | H29: 165.20 | I29: 166.50 | J29: 167.35 | K29: 165.65 | L29: 163.5 | M29: 7.70298
A30: 21 | B30: ASHOKLEY | C30: 81.5 | D30: 81.77 | E30: 80.93 | F30: 80.37 | G30: 79.53 | H30: 82.33 | I30: 83.17 | J30: 83.73 | K30: 82.6 | L30: 81.2 | M30: 154.26363
A31: 22 | B31: ASIANPAINT | C31: 1784.95 | D31: 1790.35 | E31: 1775.70 | F31: 1766.45 | G31: 1751.80 | H31: 1799.60 | I31: 1814.25 | J31: 1823.50 | K31: 1805 | L31: 1781.1 | M31: 9.28396
A32: 23 | B32: AUROPHARMA | C32: 456.85 | D32: 460.42 | E32: 451.93 | F32: 447.02 | G32: 438.53 | H32: 465.33 | I32: 473.82 | J32: 478.73 | K32: 468.9 | L32: 455.5 | M32: 16.1394
A33: 24 | B33: DMART | C33: 1838.35 | D33: 1854.75 | E33: 1810.65 | F33: 1782.95 | G33: 1738.85 | H33: 1882.45 | I33: 1926.55 | J33: 1954.25 | K33: 1898.85 | L33: 1827.05 | M33: 5.97038
A34: 25 | B34: AXISBANK | C34: 754.1 | D34: 757.12 | E34: 748.38 | F34: 742.67 | G34: 733.93 | H34: 762.83 | I34: 771.57 | J34: 777.28 | K34: 765.85 | L34: 751.4 | M34: 116.60781
A35: 26 | B35: BAJAJ-AUTO | C35: 3185 | D35: 3203.85 | E35: 3156.70 | F35: 3128.40 | G35: 3081.25 | H35: 3232.15 | I35: 3279.30 | J35: 3307.60 | K35: 3251 | L35: 3175.55 | M35: 5.26252
A36: 27 | B36: BAJFINANCE | C36: 4234.75 | D36: 4239.92 | E36: 4213.43 | F36: 4192.12 | G36: 4165.63 | H36: 4261.23 | I36: 4287.72 | J36: 4309.03 | K36: 4266.4 | L36: 4218.6 | M36: 7.79608
A37: 28 | B37: BAJAJFINSV | C37: 9393.35 | D37: 9405.77 | E37: 9366.58 | F37: 9339.82 | G37: 9300.63 | H37: 9432.53 | I37: 9471.72 | J37: 9498.48 | K37: 9444.95 | L37: 9379 | M37: 1.16732
A38: 29 | B38: BAJAJHLDNG | C38: 3406.6 | D38: 3417.07 | E38: 3384.53 | F38: 3362.47 | G38: 3329.93 | H38: 3439.13 | I38: 3471.67 | J38: 3493.73 | K38: 3449.6 | L38: 3395 | M38: 1.17325
A39: 30 | B39: BALKRISIND | C39: 990.55 | D39: 989.85 | E39: 980.70 | F39: 970.85 | G39: 961.70 | H39: 999.70 | I39: 1008.85 | J39: 1018.70 | K39: 999 | L39: 980 | M39: 5.48965
A40: 31 | B40: BANDHANBNK | C40: 508.25 | D40: 506.50 | E40: 496.85 | F40: 485.45 | G40: 475.80 | H40: 517.90 | I40: 527.55 | J40: 538.95 | K40: 516.15 | L40: 495.1 | M40: 19.6598
A41: 32 | B41: BANKBARODA | C41: 101.9 | D41: 102.22 | E41: 101.23 | F41: 100.57 | G41: 99.58 | H41: 102.88 | I41: 103.87 | J41: 104.53 | K41: 103.2 | L41: 101.55 | M41: 159.43079
A42: 33 | B42: BANKINDIA | C42: 70.4 | D42: 70.43 | E42: 69.47 | F42: 68.53 | G42: 67.57 | H42: 71.37 | I42: 72.33 | J42: 73.27 | K42: 71.4 | L42: 69.5 | M42: 28.71913
A43: 34 | B43: BATAINDIA | C43: 1751.55 | D43: 1756.10 | E43: 1741.45 | F43: 1731.35 | G43: 1716.70 | H43: 1766.20 | I43: 1780.85 | J43: 1790.95 | K43: 1770.75 | L43: 1746 | M43: 6.38499
A44: 35 | B44: BERGEPAINT | C44: 515.55 | D44: 514.25 | E44: 511.80 | F44: 508.05 | G44: 505.60 | H44: 518.00 | I44: 520.45 | J44: 524.20 | K44: 516.7 | L44: 510.5 | M44: 5.68561
A45: 36 | B45: BEL | C45: 100.05 | D45: 100.55 | E45: 99.10 | F45: 98.15 | G45: 96.70 | H45: 101.50 | I45: 102.95 | J45: 103.90 | K45: 102 | L45: 99.6 | M45: 74.89544
A46: 37 | B46: BHARATFORG | C46: 483.15 | D46: 486.05 | E46: 479.10 | F46: 475.05 | G46: 468.10 | H46: 490.10 | I46: 497.05 | J46: 501.10 | K46: 493 | L46: 482 | M46: 6.07473
A47: 38 | B47: BHEL | C47: 43.45 | D47: 43.28 | E47: 42.77 | F47: 42.08 | G47: 41.57 | H47: 43.97 | I47: 44.48 | J47: 45.17 | K47: 43.8 | L47: 42.6 | M47: 158.97198
A48: 39 | B48: BPCL | C48: 491.55 | D48: 491.30 | E48: 486.60 | F48: 481.65 | G48: 476.95 | H48: 496.25 | I48: 500.95 | J48: 505.90 | K48: 496 | L48: 486.35 | M48: 57.94952
A49: 40 | B49: BHARTIARTL | C49: 455.8 | D49: 457.60 | E49: 452.70 | F49: 449.60 | G49: 444.70 | H49: 460.70 | I49: 465.60 | J49: 468.70 | K49: 462.5 | L49: 454.5 | M49: 51.16528
A50: 41 | B50: INFRATEL | C50: 252.5 | D50: 254.80 | E50: 248.95 | F50: 245.40 | G50: 239.55 | H50: 258.35 | I50: 264.20 | J50: 267.75 | K50: 260.65 | L50: 251.25 | M50: 66.61439
A51: 42 | B51: BIOCON | C51: 293.7 | D51: 293.63 | E51: 290.57 | F51: 287.43 | G51: 284.37 | H51: 296.77 | I51: 299.83 | J51: 302.97 | K51: 296.7 | L51: 290.5 | M51: 20.16481
A52: 43 | B52: BBTC | C52: 1038.95 | D52: 1034.08 | E52: 1010.37 | F52: 981.78 | G52: 958.07 | H52: 1062.67 | I52: 1086.38 | J52: 1114.97 | K52: 1057.8 | L52: 1005.5 | M52: 3.33501
A53: 44 | B53: BOSCHLTD | C53: 15374.6 | D53: 15506.93 | E53: 15193.87 | F53: 15013.13 | G53: 14700.07 | H53: 15687.67 | I53: 16000.73 | J53: 16181.47 | K53: 15820 | L53: 15326.2 | M53: 0.17808
A54: 45 | B54: BRITANNIA | C54: 3027.8 | D54: 3038.20 | E54: 3009.60 | F54: 2991.40 | G54: 2962.80 | H54: 3056.40 | I54: 3085.00 | J54: 3103.20 | K54: 3066.8 | L54: 3020 | M54: 1.90885
A55: 46 | B55: CESC | C55: 736.8 | D55: 739.97 | E55: 731.88 | F55: 726.97 | G55: 718.88 | H55: 744.88 | I55: 752.97 | J55: 757.88 | K55: 748.05 | L55: 735.05 | M55: 2.597
A56: 47 | B56: CADILAHC | C56: 254.3 | D56: 255.27 | E56: 252.53 | F56: 250.77 | G56: 248.03 | H56: 257.03 | I56: 259.77 | J56: 261.53 | K56: 258 | L56: 253.5 | M56: 4.62747
A57: 48 | B57: CANBK | C57: 221.35 | D57: 221.85 | E57: 220.20 | F57: 219.05 | G57: 217.40 | H57: 223.00 | I57: 224.65 | J57: 225.80 | K57: 223.5 | L57: 220.7 | M57: 51.56427
A58: 49 | B58: CASTROLIND | C58: 129.3 | D58: 129.23 | E58: 128.32 | F58: 127.33 | G58: 126.42 | H58: 130.22 | I58: 131.13 | J58: 132.12 | K58: 130.15 | L58: 128.25 | M58: 6.66478
A59: 50 | B59: CHOLAFIN | C59: 305.5 | D59: 306.13 | E59: 303.67 | F59: 301.83 | G59: 299.37 | H59: 307.97 | I59: 310.43 | J59: 312.27 | K59: 308.6 | L59: 304.3 | M59: 7.88978
A60: 51 | B60: CIPLA | C60: 478.2 | D60: 479.82 | E60: 475.33 | F60: 472.47 | G60: 467.98 | H60: 482.68 | I60: 487.17 | J60: 490.03 | K60: 484.3 | L60: 476.95 | M60: 16.40854
A61: 52 | B61: CUB | C61: 233.95 | D61: 233.83 | E61: 232.22 | F61: 230.48 | G61: 228.87 | H61: 235.57 | I61: 237.18 | J61: 238.92 | K61: 235.45 | L61: 232.1 | M61: 4.42226
A62: 53 | B62: COALINDIA | C62: 211.35 | D62: 209.42 | E62: 206.38 | F62: 201.42 | G62: 198.38 | H62: 214.38 | I62: 217.42 | J62: 222.38 | K62: 212.45 | L62: 204.45 | M62: 105.34842
A63: 54 | B63: COLPAL | C63: 1462.9 | D63: 1464.28 | E63: 1455.62 | F63: 1448.33 | G63: 1439.67 | H63: 1471.57 | I63: 1480.23 | J63: 1487.52 | K63: 1472.95 | L63: 1457 | M63: 1.8916
A64: 55 | B64: CONCOR | C64: 571.9 | D64: 574.28 | E64: 568.57 | F64: 565.23 | G64: 559.52 | H64: 577.62 | I64: 583.33 | J64: 586.67 | K64: 580 | L64: 570.95 | M64: 5.66412
A65: 56 | B65: COROMANDEL | C65: 532.1 | D65: 528.20 | E65: 521.50 | F65: 510.90 | G65: 504.20 | H65: 538.80 | I65: 545.50 | J65: 556.10 | K65: 534.9 | L65: 517.6 | M65: 1.12432
A66: 57 | B66: CROMPTON | C66: 239.85 | D66: 239.98 | E66: 236.97 | F66: 234.08 | G66: 231.07 | H66: 242.87 | I66: 245.88 | J66: 248.77 | K66: 243 | L66: 237.1 | M66: 5.6774
A67: 58 | B67: CUMMINSIND | C67: 550.85 | D67: 551.85 | E67: 547.75 | F67: 544.65 | G67: 540.55 | H67: 554.95 | I67: 559.05 | J67: 562.15 | K67: 555.95 | L67: 548.75 | M67: 2.26406
A68: 59 | B68: DLF | C68: 230.9 | D68: 231.75 | E68: 229.15 | F68: 227.40 | G68: 224.80 | H68: 233.50 | I68: 236.10 | J68: 237.85 | K68: 234.35 | L68: 230 | M68: 54.58676
A69: 60 | B69: DABUR | C69: 458.4 | D69: 460.90 | E69: 455.00 | F69: 451.60 | G69: 445.70 | H69: 464.30 | I69: 470.20 | J69: 473.60 | K69: 466.8 | L69: 457.5 | M69: 11.67751
A70: 61 | B70: DALBHARAT | C70: 800.3 | D70: 794.87 | E70: 778.73 | F70: 757.17 | G70: 741.03 | H70: 816.43 | I70: 832.57 | J70: 854.13 | K70: 811 | L70: 773.3 | M70: 2.11285
A71: 62 | B71: DIVISLAB | C71: 1845.8 | D71: 1846.03 | E71: 1834.87 | F71: 1823.93 | G71: 1812.77 | H71: 1856.97 | I71: 1868.13 | J71: 1879.07 | K71: 1857.2 | L71: 1835.1 | M71: 2.87988
A72: 63 | B72: DRREDDY | C72: 2874.55 | D72: 2884.48 | E72: 2854.12 | F72: 2833.68 | G72: 2803.32 | H72: 2904.92 | I72: 2935.28 | J72: 2955.72 | K72: 2914.85 | L72: 2864.05 | M72: 3.03238
A73: 64 | B73: EDELWEISS | C73: 109.2 | D73: 110.48 | E73: 107.22 | F73: 105.23 | G73: 101.97 | H73: 112.47 | I73: 115.73 | J73: 117.72 | K73: 113.75 | L73: 108.5 | M73: 13.27308
A74: 65 | B74: EICHERMOT | C74: 22515.25 | D74: 22560.67 | E74: 22341.33 | F74: 22167.42 | G74: 21948.08 | H74: 22734.58 | I74: 22953.92 | J74: 23127.83 | K74: 22780 | L74: 22386.75 | M74: 1.14268
A75: 66 | B75: EMAMILTD | C75: 309.9 | D75: 308.30 | E75: 306.60 | F75: 303.30 | G75: 301.60 | H75: 311.60 | I75: 313.30 | J75: 316.60 | K75: 310 | L75: 305 | M75: 1.30136
A76: 67 | B76: ENDURANCE | C76: 1081.3 | D76: 1072.78 | E76: 1053.57 | F76: 1025.83 | G76: 1006.62 | H76: 1100.52 | I76: 1119.73 | J76: 1147.47 | K76: 1092 | L76: 1045.05 | M76: 0.36674
A77: 68 | B77: ENGINERSIN | C77: 99 | D77: 99.15 | E77: 98.40 | F77: 97.80 | G77: 97.05 | H77: 99.75 | I77: 100.50 | J77: 101.10 | K77: 99.9 | L77: 98.55 | M77: 7.86055
A78: 69 | B78: ESCORTS | C78: 629.6 | D78: 631.33 | E78: 626.67 | F78: 623.73 | G78: 619.07 | H78: 634.27 | I78: 638.93 | J78: 641.87 | K78: 636 | L78: 628.4 | M78: 10.73628
A79: 70 | B79: EXIDEIND | C79: 186.5 | D79: 186.27 | E79: 184.88 | F79: 183.27 | G79: 181.88 | H79: 187.88 | I79: 189.27 | J79: 190.88 | K79: 187.65 | L79: 184.65 | M79: 13.6385
A80: 71 | B80: FEDERALBNK | C80: 87.95 | D80: 87.98 | E80: 86.87 | F80: 85.78 | G80: 84.67 | H80: 89.07 | I80: 90.18 | J80: 91.27 | K80: 89.1 | L80: 86.9 | M80: 65.98385
A81: 72 | B81: FCONSUMER | C81: 22.45 | D81: 22.63 | E81: 22.22 | F81: 21.98 | G81: 21.57 | H81: 22.87 | I81: 23.28 | J81: 23.52 | K81: 23.05 | L81: 22.4 | M81: 16.2795
A82: 73 | B82: FRETAIL | C82: 341.75 | D82: 343.10 | E82: 337.65 | F82: 333.55 | G82: 328.10 | H82: 347.20 | I82: 352.65 | J82: 356.75 | K82: 348.55 | L82: 339 | M82: 3.87988
A83: 74 | B83: GAIL | C83: 121.05 | D83: 120.72 | E83: 119.13 | F83: 117.22 | G83: 115.63 | H83: 122.63 | I83: 124.22 | J83: 126.13 | K83: 122.3 | L83: 118.8 | M83: 135.08891
A84: 75 | B84: GMRINFRA | C84: 21 | D84: 20.93 | E84: 20.72 | F84: 20.43 | G84: 20.22 | H84: 21.22 | I84: 21.43 | J84: 21.72 | K84: 21.15 | L84: 20.65 | M84: 44.46752
A85: 76 | B85: GICRE | C85: 226.4 | D85: 227.85 | E85: 221.95 | F85: 217.50 | G85: 211.60 | H85: 232.30 | I85: 238.20 | J85: 242.65 | K85: 233.75 | L85: 223.4 | M85: 3.5479
A86: 77 | B86: GLENMARK | C86: 347.45 | D86: 347.38 | E86: 345.22 | F86: 342.98 | G86: 340.82 | H86: 349.62 | I86: 351.78 | J86: 354.02 | K86: 349.55 | L86: 345.15 | M86: 6.07159
A87: 78 | B87: GODREJAGRO | C87: 516.95 | D87: 513.92 | E87: 508.03 | F87: 499.12 | G87: 493.23 | H87: 522.83 | I87: 528.72 | J87: 537.63 | K87: 519.8 | L87: 505 | M87: 1.02218
A88: 79 | B88: GODREJCP | C88: 684.55 | D88: 686.40 | E88: 679.85 | F88: 675.15 | G88: 668.60 | H88: 691.10 | I88: 697.65 | J88: 702.35 | K88: 692.95 | L88: 681.7 | M88: 3.44433
A89: 80 | B89: GODREJIND | C89: 424.55 | D89: 424.73 | E89: 421.97 | F89: 419.38 | G89: 416.62 | H89: 427.32 | I89: 430.08 | J89: 432.67 | K89: 427.5 | L89: 422.15 | M89: 0.38801
A90: 81 | B90: GODREJPROP | C90: 988.3 | D90: 981.12 | E90: 967.23 | F90: 946.17 | G90: 932.28 | H90: 1002.18 | I90: 1016.07 | J90: 1037.13 | K90: 995 | L90: 960.05 | M90: 4.47137
A91: 82 | B91: GRAPHITE | C91: 303.25 | D91: 304.28 | E91: 301.57 | F91: 299.88 | G91: 297.17 | H91: 305.97 | I91: 308.68 | J91: 310.37 | K91: 307 | L91: 302.6 | M91: 6.37843
A92: 83 | B92: GRASIM | C92: 743.65 | D92: 740.88 | E92: 735.67 | F92: 727.68 | G92: 722.47 | H92: 748.87 | I92: 754.08 | J92: 762.07 | K92: 746.1 | L92: 732.9 | M92: 16.83709
A93: 84 | B93: GSPL | C93: 219.5 | D93: 218.73 | E93: 217.27 | F93: 215.03 | G93: 213.57 | H93: 220.97 | I93: 222.43 | J93: 224.67 | K93: 220.2 | L93: 216.5 | M93: 1.47217
A94: 85 | B94: HEG | C94: 1065.95 | D94: 1072.30 | E94: 1054.65 | F94: 1043.35 | G94: 1025.70 | H94: 1083.60 | I94: 1101.25 | J94: 1112.55 | K94: 1089.95 | L94: 1061 | M94: 2.41619
A95: 86 | B95: HCLTECH | C95: 568.1 | D95: 568.22 | E95: 564.93 | F95: 561.77 | G95: 558.48 | H95: 571.38 | I95: 574.67 | J95: 577.83 | K95: 571.5 | L95: 565.05 | M95: 18.38808
A96: 87 | B96: HDFCAMC | C96: 3199.7 | D96: 3207.48 | E96: 3177.22 | F96: 3154.73 | G96: 3124.47 | H96: 3229.97 | I96: 3260.23 | J96: 3282.72 | K96: 3237.75 | L96: 3185 | M96: 3.21319
A97: 88 | B97: HDFCBANK | C97: 1272.1 | D97: 1274.23 | E97: 1266.52 | F97: 1260.93 | G97: 1253.22 | H97: 1279.82 | I97: 1287.53 | J97: 1293.12 | K97: 1281.95 | L97: 1268.65 | M97: 41.78528
A98: 89 | B98: HDFCLIFE | C98: 626.05 | D98: 630.93 | E98: 615.87 | F98: 605.68 | G98: 590.62 | H98: 641.12 | I98: 656.18 | J98: 666.37 | K98: 646 | L98: 620.75 | M98: 22.17822
A99: 90 | B99: HAVELLS | C99: 647.15 | D99: 650.32 | E99: 643.08 | F99: 639.02 | G99: 631.78 | H99: 654.38 | I99: 661.62 | J99: 665.68 | K99: 657.55 | L99: 646.25 | M99: 4.81645
A100: 91 | B100: HEROMOTOCO | C100: 2443.05 | D100: 2450.17 | E100: 2426.33 | F100: 2409.62 | G100: 2385.78 | H100: 2466.88 | I100: 2490.72 | J100: 2507.43 | K100: 2474 | L100: 2433.45 | M100: 4.43409
A101: 92 | B101: HEXAWARE | C101: 334.7 | D101: 333.72 | E101: 331.43 | F101: 328.17 | G101: 325.88 | H101: 336.98 | I101: 339.27 | J101: 342.53 | K101: 336 | L101: 330.45 | M101: 2.27051
A102: 93 | B102: HINDALCO | C102: 216.15 | D102: 217.02 | E102: 214.63 | F102: 213.12 | G102: 210.73 | H102: 218.53 | I102: 220.92 | J102: 222.43 | K102: 219.4 | L102: 215.5 | M102: 94.32449
A103: 94 | B103: HINDPETRO | C103: 264.5 | D103: 266.37 | E103: 262.13 | F103: 259.77 | G103: 255.53 | H103: 268.73 | I103: 272.97 | J103: 275.33 | K103: 270.6 | L103: 264 | M103: 26.75474
A104: 95 | B104: HINDUNILVR | C104: 1923 | D104: 1929.90 | E104: 1913.20 | F104: 1903.40 | G104: 1886.70 | H104: 1939.70 | I104: 1956.40 | J104: 1966.20 | K104: 1946.6 | L104: 1920.1 | M104: 7.06593
A105: 96 | B105: HINDZINC | C105: 209.65 | D105: 210.25 | E105: 208.55 | F105: 207.45 | G105: 205.75 | H105: 211.35 | I105: 213.05 | J105: 214.15 | K105: 211.95 | L105: 209.15 | M105: 1.89212
A106: 97 | B106: HUDCO | C106: 36.05 | D106: 36.05 | E106: 35.80 | F106: 35.55 | G106: 35.30 | H106: 36.30 | I106: 36.55 | J106: 36.80 | K106: 36.3 | L106: 35.8 | M106: 6.42599
A107: 98 | B107: HDFC | C107: 2412.55 | D107: 2418.03 | E107: 2401.07 | F107: 2389.58 | G107: 2372.62 | H107: 2429.52 | I107: 2446.48 | J107: 2457.97 | K107: 2435 | L107: 2406.55 | M107: 22.60375
A108: 99 | B108: ICICIBANK | C108: 538.9 | D108: 540.23 | E108: 536.67 | F108: 534.43 | G108: 530.87 | H108: 542.47 | I108: 546.03 | J108: 548.27 | K108: 543.8 | L108: 538 | M108: 124.91978
A109: 100 | B109: ICICIGI | C109: 1386.8 | D109: 1392.23 | E109: 1374.57 | F109: 1362.33 | G109: 1344.67 | H109: 1404.47 | I109: 1422.13 | J109: 1434.37 | K109: 1409.9 | L109: 1380 | M109: 2.1662
A110: 101 | B110: ICICIPRULI | C110: 482.45 | D110: 483.43 | E110: 479.82 | F110: 477.18 | G110: 473.57 | H110: 486.07 | I110: 489.68 | J110: 492.32 | K110: 487.05 | L110: 480.8 | M110: 11.31161
A111: 102 | B111: IDBI | C111: 37 | D111: 37.10 | E111: 36.75 | F111: 36.50 | G111: 36.15 | H111: 37.35 | I111: 37.70 | J111: 37.95 | K111: 37.45 | L111: 36.85 | M111: 13.51967
A112: 103 | B112: IDFCFIRSTB | C112: 45.15 | D112: 44.97 | E112: 44.58 | F112: 44.02 | G112: 43.63 | H112: 45.53 | I112: 45.92 | J112: 46.48 | K112: 45.35 | L112: 44.4 | M112: 136.26284
A113: 104 | B113: ITC | C113: 237.7 | D113: 238.02 | E113: 237.08 | F113: 236.47 | G113: 235.53 | H113: 238.63 | I113: 239.57 | J113: 240.18 | K113: 238.95 | L113: 237.4 | M113: 71.42051
A114: 105 | B114: IBULHSGFIN | C114: 313.2 | D114: 311.83 | E114: 306.77 | F114: 300.33 | G114: 295.27 | H114: 318.27 | I114: 323.33 | J114: 329.77 | K114: 316.9 | L114: 305.4 | M114: 343.72679
A115: 106 | B115: IBVENTURES | C115: 214.35 | D115: 211.90 | E115: 209.45 | F115: 204.55 | G115: 202.10 | H115: 216.80 | I115: 219.25 | J115: 224.15 | K115: 214.35 | L115: 207 | M115: 14.08405
A116: 107 | B116: INDIANB | C116: 100.95 | D116: 102.15 | E116: 99.30 | F116: 97.65 | G116: 94.80 | H116: 103.80 | I116: 106.65 | J116: 108.30 | K116: 105 | L116: 100.5 | M116: 24.23404
A117: 108 | B117: INDHOTEL | C117: 145 | D117: 143.97 | E117: 142.33 | F117: 139.67 | G117: 138.03 | H117: 146.63 | I117: 148.27 | J117: 150.93 | K117: 145.6 | L117: 141.3 | M117: 12.30725
A118: 109 | B118: IOC | C118: 125.55 | D118: 126.02 | E118: 124.53 | F118: 123.52 | G118: 122.03 | H118: 127.03 | I118: 128.52 | J118: 129.53 | K118: 127.5 | L118: 125 | M118: 50.49594
A119: 110 | B119: IGL | C119: 428.15 | D119: 430.40 | E119: 424.50 | F119: 420.85 | G119: 414.95 | H119: 434.05 | I119: 439.95 | J119: 443.60 | K119: 436.3 | L119: 426.75 | M119: 23.08839
A120: 111 | B120: INDUSINDBK | C120: 1510 | D120: 1516.60 | E120: 1498.40 | F120: 1486.80 | G120: 1468.60 | H120: 1528.20 | I120: 1546.40 | J120: 1558.00 | K120: 1534.8 | L120: 1505 | M120: 19.79911
A121: 112 | B121: NAUKRI | C121: 2530.05 | D121: 2541.00 | E121: 2511.00 | F121: 2491.95 | G121: 2461.95 | H121: 2560.05 | I121: 2590.05 | J121: 2609.10 | K121: 2571 | L121: 2521.95 | M121: 2.34166
A122: 113 | B122: INFY | C122: 731.15 | D122: 731.45 | E122: 725.15 | F122: 719.15 | G122: 712.85 | H122: 737.45 | I122: 743.75 | J122: 749.75 | K122: 737.75 | L122: 725.45 | M122: 69.27885
A123: 114 | B123: INDIGO | C123: 1333.55 | D123: 1340.20 | E123: 1321.60 | F123: 1309.65 | G123: 1291.05 | H123: 1352.15 | I123: 1370.75 | J123: 1382.70 | K123: 1358.8 | L123: 1328.25 | M123: 7.92215
A124: 115 | B124: IPCALAB | C124: 1136.25 | D124: 1140.08 | E124: 1129.17 | F124: 1122.08 | G124: 1111.17 | H124: 1147.17 | I124: 1158.08 | J124: 1165.17 | K124: 1151 | L124: 1133 | M124: 0.68853
A125: 116 | B125: JSWENERGY | C125: 69.35 | D125: 69.38 | E125: 68.77 | F125: 68.18 | G125: 67.57 | H125: 69.97 | I125: 70.58 | J125: 71.17 | K125: 70 | L125: 68.8 | M125: 4.43449
A126: 117 | B126: JSWSTEEL | C126: 270.05 | D126: 270.40 | E126: 267.80 | F126: 265.55 | G126: 262.95 | H126: 272.65 | I126: 275.25 | J126: 277.50 | K126: 273 | L126: 268.15 | M126: 53.77354
A127: 118 | B127: JINDALSTEL | C127: 167.7 | D127: 167.47 | E127: 166.23 | F127: 164.77 | G127: 163.53 | H127: 168.93 | I127: 170.17 | J127: 171.63 | K127: 168.7 | L127: 166 | M127: 163.04965
A128: 119 | B128: JUBLFOOD | C128: 1652.3 | D128: 1646.33 | E128: 1627.17 | F128: 1602.03 | G128: 1582.87 | H128: 1671.47 | I128: 1690.63 | J128: 1715.77 | K128: 1665.5 | L128: 1621.2 | M128: 16.28158
A129: 120 | B129: JUBILANT | C129: 537 | D129: 534.03 | E129: 526.07 | F129: 515.13 | G129: 507.17 | H129: 544.97 | I129: 552.93 | J129: 563.87 | K129: 542 | L129: 523.1 | M129: 2.2905
A130: 121 | B130: KOTAKBANK | C130: 1684.35 | D130: 1681.98 | E130: 1672.72 | F130: 1661.08 | G130: 1651.82 | H130: 1693.62 | I130: 1702.88 | J130: 1714.52 | K130: 1691.25 | L130: 1670.35 | M130: 19.69679
A131: 122 | B131: L&TFH | C131: 118.55 | D131: 118.72 | E131: 117.43 | F131: 116.32 | G131: 115.03 | H131: 119.83 | I131: 121.12 | J131: 122.23 | K131: 120 | L131: 117.6 | M131: 49.31036
A132: 123 | B132: LTTS | C132: 1468.45 | D132: 1472.65 | E132: 1456.30 | F132: 1444.15 | G132: 1427.80 | H132: 1484.80 | I132: 1501.15 | J132: 1513.30 | K132: 1489 | L132: 1460.5 | M132: 0.72244
A133: 124 | B133: LICHSGFIN | C133: 434.15 | D133: 436.80 | E133: 429.65 | F133: 425.15 | G133: 418.00 | H133: 441.30 | I133: 448.45 | J133: 452.95 | K133: 443.95 | L133: 432.3 | M133: 22.61854
A134: 125 | B134: LTI | C134: 1750.5 | D134: 1758.58 | E134: 1732.17 | F134: 1713.83 | G134: 1687.42 | H134: 1776.92 | I134: 1803.33 | J134: 1821.67 | K134: 1785 | L134: 1740.25 | M134: 0.74408
A135: 126 | B135: LT | C135: 1298.2 | D135: 1299.78 | E135: 1289.57 | F135: 1280.93 | G135: 1270.72 | H135: 1308.42 | I135: 1318.63 | J135: 1327.27 | K135: 1310 | L135: 1291.15 | M135: 30.43254
A136: 127 | B136: LUPIN | C136: 763.45 | D136: 765.90 | E136: 757.90 | F136: 752.35 | G136: 744.35 | H136: 771.45 | I136: 779.45 | J136: 785.00 | K136: 773.9 | L136: 760.35 | M136: 8.42865
A137: 128 | B137: MRF | C137: 66330.3 | D137: 66233.77 | E137: 65888.53 | F137: 65446.77 | G137: 65101.53 | H137: 66675.53 | I137: 67020.77 | J137: 67462.53 | K137: 66579 | L137: 65792 | M137: 0.06007
A138: 129 | B138: MGL | C138: 1065.2 | D138: 1067.40 | E138: 1058.80 | F138: 1052.40 | G138: 1043.80 | H138: 1073.80 | I138: 1082.40 | J138: 1088.80 | K138: 1076 | L138: 1061 | M138: 7.96823
A139: 130 | B139: M&MFIN | C139: 322.45 | D139: 322.88 | E139: 319.27 | F139: 316.08 | G139: 312.47 | H139: 326.07 | I139: 329.68 | J139: 332.87 | K139: 326.5 | L139: 319.7 | M139: 24.51368
A140: 131 | B140: M&M | C140: 531.55 | D140: 533.60 | E140: 528.55 | F140: 525.55 | G140: 520.50 | H140: 536.60 | I140: 541.65 | J140: 544.65 | K140: 538.65 | L140: 530.6 | M140: 25.02181
A141: 132 | B141: MANAPPURAM | C141: 177.4 | D141: 178.58 | E141: 175.67 | F141: 173.93 | G141: 171.02 | H141: 180.32 | I141: 183.23 | J141: 184.97 | K141: 181.5 | L141: 176.85 | M141: 41.21682
A142: 133 | B142: MRPL | C142: 44.95 | D142: 44.42 | E142: 43.78 | F142: 42.62 | G142: 41.98 | H142: 45.58 | I142: 46.22 | J142: 47.38 | K142: 45.05 | L142: 43.25 | M142: 8.72322
A143: 134 | B143: MARICO | C143: 341.6 | D143: 341.97 | E143: 340.13 | F143: 338.67 | G143: 336.83 | H143: 343.43 | I143: 345.27 | J143: 346.73 | K143: 343.8 | L143: 340.5 | M143: 11.23389
A144: 135 | B144: MARUTI | C144: 7368.6 | D144: 7378.78 | E144: 7345.07 | F144: 7321.53 | G144: 7287.82 | H144: 7402.32 | I144: 7436.03 | J144: 7459.57 | K144: 7412.5 | L144: 7355.25 | M144: 5.60622
A145: 136 | B145: MFSL | C145: 534.45 | D145: 536.88 | E145: 530.92 | F145: 527.38 | G145: 521.42 | H145: 540.42 | I145: 546.38 | J145: 549.92 | K145: 542.85 | L145: 533.35 | M145: 5.20557
A146: 137 | B146: MINDTREE | C146: 800.15 | D146: 800.08 | E146: 795.07 | F146: 789.98 | G146: 784.97 | H146: 805.17 | I146: 810.18 | J146: 815.27 | K146: 805.1 | L146: 795 | M146: 4.40495
A147: 138 | B147: MOTHERSUMI | C147: 146.55 | D147: 147.50 | E147: 145.20 | F147: 143.85 | G147: 141.55 | H147: 148.85 | I147: 151.15 | J147: 152.50 | K147: 149.8 | L147: 146.15 | M147: 46.98608
A148: 139 | B148: MPHASIS | C148: 922.25 | D148: 917.77 | E148: 902.73 | F148: 883.22 | G148: 868.18 | H148: 937.28 | I148: 952.32 | J148: 971.83 | K148: 932.8 | L148: 898.25 | M148: 2.11177
A149: 140 | B149: MUTHOOTFIN | C149: 761.45 | D149: 764.37 | E149: 757.28 | F149: 753.12 | G149: 746.03 | H149: 768.53 | I149: 775.62 | J149: 779.78 | K149: 771.45 | L149: 760.2 | M149: 8.1985
A150: 141 | B150: NATCOPHARM | C150: 593.45 | D150: 593.12 | E150: 582.83 | F150: 572.22 | G150: 561.93 | H150: 603.73 | I150: 614.02 | J150: 624.63 | K150: 603.4 | L150: 582.5 | M150: 1.3652
A151: 142 | B151: NBCC | C151: 34.85 | D151: 34.77 | E151: 34.38 | F151: 33.92 | G151: 33.53 | H151: 35.23 | I151: 35.62 | J151: 36.08 | K151: 35.15 | L151: 34.3 | M151: 88.32013
A152: 143 | B152: NHPC | C152: 23.95 | D152: 24.02 | E152: 23.83 | F152: 23.72 | G152: 23.53 | H152: 24.13 | I152: 24.32 | J152: 24.43 | K152: 24.2 | L152: 23.9 | M152: 13.74206
A153: 144 | B153: NMDC | C153: 128.9 | D153: 128.48 | E153: 126.17 | F153: 123.43 | G153: 121.12 | H153: 131.22 | I153: 133.53 | J153: 136.27 | K153: 130.8 | L153: 125.75 | M153: 73.31942
A154: 145 | B154: NTPC | C154: 119.05 | D154: 118.37 | E154: 117.03 | F154: 115.02 | G154: 113.68 | H154: 120.38 | I154: 121.72 | J154: 123.73 | K154: 119.7 | L154: 116.35 | M154: 124.38719
A155: 146 | B155: NATIONALUM | C155: 43.65 | D155: 43.87 | E155: 43.28 | F155: 42.92 | G155: 42.33 | H155: 44.23 | I155: 44.82 | J155: 45.18 | K155: 44.45 | L155: 43.5 | M155: 55.59417
A156: 147 | B156: NESTLEIND | C156: 14785.35 | D156: 14806.55 | E156: 14688.80 | F156: 14592.25 | G156: 14474.50 | H156: 14903.10 | I156: 15020.85 | J156: 15117.40 | K156: 14924.3 | L156: 14710 | M156: 0.62765
A157: 148 | B157: OBEROIRLTY | C157: 530.65 | D157: 529.88 | E157: 525.77 | F157: 520.88 | G157: 516.77 | H157: 534.77 | I157: 538.88 | J157: 543.77 | K157: 534 | L157: 525 | M157: 0.72234
A158: 149 | B158: ONGC | C158: 128.8 | D158: 128.42 | E158: 127.58 | F158: 126.37 | G158: 125.53 | H158: 129.63 | I158: 130.47 | J158: 131.68 | K158: 129.25 | L158: 127.2 | M158: 51.02473
A159: 150 | B159: OIL | C159: 153.05 | D159: 152.72 | E159: 151.93 | F159: 150.82 | G159: 150.03 | H159: 153.83 | I159: 154.62 | J159: 155.73 | K159: 153.5 | L159: 151.6 | M159: 4.74379
A160: 151 | B160: OFSS | C160: 2739.65 | D160: 2748.78 | E160: 2725.27 | F160: 2710.88 | G160: 2687.37 | H160: 2763.17 | I160: 2786.68 | J160: 2801.07 | K160: 2772.3 | L160: 2734.4 | M160: 0.11385
A161: 152 | B161: ORIENTBANK | C161: 52.05 | D161: 52.18 | E161: 51.42 | F161: 50.78 | G161: 50.02 | H161: 52.82 | I161: 53.58 | J161: 54.22 | K161: 52.95 | L161: 51.55 | M161: 7.65785
A162: 153 | B162: PIIND | C162: 1445.9 | D162: 1451.02 | E162: 1436.43 | F162: 1426.97 | G162: 1412.38 | H162: 1460.48 | I162: 1475.07 | J162: 1484.53 | K162: 1465.6 | L162: 1441.55 | M162: 0.53752
A163: 154 | B163: PNBHOUSING | C163: 434.2 | D163: 436.40 | E163: 424.80 | F163: 415.40 | G163: 403.80 | H163: 445.80 | I163: 457.40 | J163: 466.80 | K163: 448 | L163: 427 | M163: 9.38269
A164: 155 | B164: PAGEIND | C164: 23393.1 | D164: 23431.02 | E164: 23112.08 | F164: 22831.07 | G164: 22512.13 | H164: 23712.03 | I164: 24030.97 | J164: 24311.98 | K164: 23749.95 | L164: 23150 | M164: 0.19645
A165: 156 | B165: PETRONET | C165: 267.95 | D165: 268.82 | E165: 266.63 | F165: 265.32 | G165: 263.13 | H165: 270.13 | I165: 272.32 | J165: 273.63 | K165: 271 | L165: 267.5 | M165: 10.28377
A166: 157 | B166: PFIZER | C166: 4224.7 | D166: 4220.03 | E166: 4191.17 | F166: 4157.63 | G166: 4128.77 | H166: 4253.57 | I166: 4282.43 | J166: 4315.97 | K166: 4248.9 | L166: 4186.5 | M166: 0.3109
A167: 158 | B167: PIDILITIND | C167: 1386.9 | D167: 1392.97 | E167: 1379.08 | F167: 1371.27 | G167: 1357.38 | H167: 1400.78 | I167: 1414.67 | J167: 1422.48 | K167: 1406.85 | L167: 1385.15 | M167: 2.74758
A168: 159 | B168: PEL | C168: 1523.55 | D168: 1543.65 | E168: 1495.30 | F168: 1467.05 | G168: 1418.70 | H168: 1571.90 | I168: 1620.25 | J168: 1648.50 | K168: 1592 | L168: 1515.4 | M168: 15.1382
A169: 160 | B169: PFC | C169: 117.9 | D169: 116.43 | E169: 114.07 | F169: 110.23 | G169: 107.87 | H169: 120.27 | I169: 122.63 | J169: 126.47 | K169: 118.8 | L169: 112.6 | M169: 149.07807
A170: 161 | B170: POWERGRID | C170: 190.25 | D170: 190.58 | E170: 188.92 | F170: 187.58 | G170: 185.92 | H170: 191.92 | I170: 193.58 | J170: 194.92 | K170: 192.25 | L170: 189.25 | M170: 66.98096
A171: 162 | B171: PRESTIGE | C171: 338.35 | D171: 338.22 | E171: 334.13 | F171: 329.92 | G171: 325.83 | H171: 342.43 | I171: 346.52 | J171: 350.73 | K171: 342.3 | L171: 334 | M171: 1.46059
A172: 163 | B172: PGHH | C172: 11447 | D172: 11451.00 | E172: 11352.00 | F172: 11257.00 | G172: 11158.00 | H172: 11546.00 | I172: 11645.00 | J172: 11740.00 | K172: 11550 | L172: 11356 | M172: 0.08493
A173: 164 | B173: PNB | C173: 64.35 | D173: 64.40 | E173: 63.95 | F173: 63.55 | G173: 63.10 | H173: 64.80 | I173: 65.25 | J173: 65.65 | K173: 64.85 | L173: 64 | M173: 106.60714
A174: 165 | B174: QUESS | C174: 484.65 | D174: 484.92 | E174: 473.83 | F174: 463.02 | G174: 451.93 | H174: 495.73 | I174: 506.82 | J174: 517.63 | K174: 496 | L174: 474.1 | M174: 3.16176
A175: 166 | B175: RBLBANK | C175: 344.85 | D175: 344.72 | E175: 341.73 | F175: 338.62 | G175: 335.63 | H175: 347.83 | I175: 350.82 | J175: 353.93 | K175: 347.7 | L175: 341.6 | M175: 70.75944
A176: 167 | B176: RECLTD | C176: 143.1 | D176: 142.67 | E176: 140.63 | F176: 138.17 | G176: 136.13 | H176: 145.13 | I176: 147.17 | J176: 149.63 | K176: 144.7 | L176: 140.2 | M176: 35.78113
A177: 168 | B177: RAJESHEXPO | C177: 669.35 | D177: 676.62 | E177: 659.73 | F177: 650.12 | G177: 633.23 | H177: 686.23 | I177: 703.12 | J177: 712.73 | K177: 693.5 | L177: 667 | M177: 1.38131
A178: 169 | B178: RELIANCE | C178: 1514.05 | D178: 1521.93 | E178: 1500.17 | F178: 1486.28 | G178: 1464.52 | H178: 1535.82 | I178: 1557.58 | J178: 1571.47 | K178: 1543.7 | L178: 1508.05 | M178: 101.50467
A179: 170 | B179: RNAM | C179: 354.5 | D179: 356.40 | E179: 350.10 | F179: 345.70 | G179: 339.40 | H179: 360.80 | I179: 367.10 | J179: 371.50 | K179: 362.7 | L179: 352 | M179: 16.28756
A180: 171 | B180: SBILIFE | C180: 961.6 | D180: 966.58 | E180: 953.17 | F180: 944.73 | G180: 931.32 | H180: 975.02 | I180: 988.43 | J180: 996.87 | K180: 980 | L180: 958.15 | M180: 4.03539
A181: 172 | B181: SRF | C181: 3436.1 | D181: 3429.05 | E181: 3408.10 | F181: 3380.10 | G181: 3359.15 | H181: 3457.05 | I181: 3478.00 | J181: 3506.00 | K181: 3450 | L181: 3401.05 | M181: 1.89423
A182: 173 | B182: SHREECEM | C182: 20363.95 | D182: 20404.58 | E182: 20289.72 | F182: 20215.48 | G182: 20100.62 | H182: 20478.82 | I182: 20593.68 | J182: 20667.92 | K182: 20519.45 | L182: 20330.35 | M182: 0.07138
A183: 174 | B183: SRTRANSFIN | C183: 1171.1 | D183: 1167.55 | E183: 1157.65 | F183: 1144.20 | G183: 1134.30 | H183: 1181.00 | I183: 1190.90 | J183: 1204.35 | K183: 1177.45 | L183: 1154.1 | M183: 7.217
A184: 175 | B184: SIEMENS | C184: 1496.7 | D184: 1504.47 | E184: 1484.93 | F184: 1473.17 | G184: 1453.63 | H184: 1516.23 | I184: 1535.77 | J184: 1547.53 | K184: 1524 | L184: 1492.7 | M184: 3.30506
A185: 176 | B185: SBIN | C185: 333.75 | D185: 334.22 | E185: 332.08 | F185: 330.42 | G185: 328.28 | H185: 335.88 | I185: 338.02 | J185: 339.68 | K185: 336.35 | L185: 332.55 | M185: 238.01635
A186: 177 | B186: SAIL | C186: 42.9 | D186: 42.97 | E186: 42.63 | F186: 42.37 | G186: 42.03 | H186: 43.23 | I186: 43.57 | J186: 43.83 | K186: 43.3 | L186: 42.7 | M186: 205.65737
A187: 178 | B187: STRTECH | C187: 118.55 | D187: 118.52 | E187: 115.63 | F187: 112.72 | G187: 109.83 | H187: 121.43 | I187: 124.32 | J187: 127.23 | K187: 121.4 | L187: 115.6 | M187: 41.82824
A188: 179 | B188: SUNPHARMA | C188: 432.55 | D188: 432.22 | E188: 429.03 | F188: 425.52 | G188: 422.33 | H188: 435.73 | I188: 438.92 | J188: 442.43 | K188: 435.4 | L188: 428.7 | M188: 29.57369
A189: 180 | B189: SUNTV | C189: 441.8 | D189: 444.27 | E189: 436.78 | F189: 431.77 | G189: 424.28 | H189: 449.28 | I189: 456.77 | J189: 461.78 | K189: 451.75 | L189: 439.25 | M189: 10.28918
A190: 181 | B190: SYNGENE | C190: 320.15 | D190: 320.45 | E190: 316.90 | F190: 313.65 | G190: 310.10 | H190: 323.70 | I190: 327.25 | J190: 330.50 | K190: 324 | L190: 317.2 | M190: 0.57973
A191: 182 | B191: TVSMOTOR | C191: 468.45 | D191: 471.12 | E191: 460.33 | F191: 452.22 | G191: 441.43 | H191: 479.23 | I191: 490.02 | J191: 498.13 | K191: 481.9 | L191: 463 | M191: 21.23698
A192: 183 | B192: TATACHEM | C192: 667.1 | D192: 669.68 | E192: 661.27 | F192: 655.43 | G192: 647.02 | H192: 675.52 | I192: 683.93 | J192: 689.77 | K192: 678.1 | L192: 663.85 | M192: 9.26104
A193: 184 | B193: TCS | C193: 2161.7 | D193: 2172.05 | E193: 2147.10 | F193: 2132.50 | G193: 2107.55 | H193: 2186.65 | I193: 2211.60 | J193: 2226.20 | K193: 2197 | L193: 2157.45 | M193: 19.09289
A194: 185 | B194: TATAGLOBAL | C194: 321.35 | D194: 322.32 | E194: 318.63 | F194: 315.92 | G194: 312.23 | H194: 325.03 | I194: 328.72 | J194: 331.43 | K194: 326 | L194: 319.6 | M194: 26.16389
A195: 186 | B195: TATAMTRDVR | C195: 77 | D195: 76.47 | E195: 75.33 | F195: 73.67 | G195: 72.53 | H195: 78.13 | I195: 79.27 | J195: 80.93 | K195: 77.6 | L195: 74.8 | M195: 114.80305
A196: 187 | B196: TATAMOTORS | C196: 185.15 | D196: 184.87 | E196: 181.83 | F196: 178.52 | G196: 175.48 | H196: 188.18 | I196: 191.22 | J196: 194.53 | K196: 187.9 | L196: 181.55 | M196: 528.69996
A197: 188 | B197: TATAPOWER | C197: 56.5 | D197: 56.57 | E197: 56.23 | F197: 55.97 | G197: 55.63 | H197: 56.83 | I197: 57.17 | J197: 57.43 | K197: 56.9 | L197: 56.3 | M197: 35.0431
A198: 189 | B198: TATASTEEL | C198: 472.05 | D198: 472.28 | E198: 469.27 | F198: 466.48 | G198: 463.47 | H198: 475.07 | I198: 478.08 | J198: 480.87 | K198: 475.3 | L198: 469.5 | M198: 96.44145
A199: 190 | B199: TECHM | C199: 762.3 | D199: 767.75 | E199: 754.55 | F199: 746.80 | G199: 733.60 | H199: 775.50 | I199: 788.70 | J199: 796.45 | K199: 780.95 | L199: 760 | M199: 30.04887
A200: 191 | B200: NIACL | C200: 135.45 | D200: 135.83 | E200: 133.22 | F200: 130.98 | G200: 128.37 | H200: 138.07 | I200: 140.68 | J200: 142.92 | K200: 138.45 | L200: 133.6 | M200: 2.07486
A201: 192 | B201: RAMCOCEM | C201: 754.65 | D201: 757.00 | E201: 749.20 | F201: 743.75 | G201: 735.95 | H201: 762.45 | I201: 770.25 | J201: 775.70 | K201: 764.8 | L201: 751.55 | M201: 1.34068
A202: 193 | B202: TITAN | C202: 1187.95 | D202: 1191.95 | E202: 1180.20 | F202: 1172.45 | G202: 1160.70 | H202: 1199.70 | I202: 1211.45 | J202: 1219.20 | K202: 1203.7 | L202: 1184.2 | M202: 17.5353
A203: 194 | B203: TORNTPHARM | C203: 1849.05 | D203: 1854.23 | E203: 1836.92 | F203: 1824.78 | G203: 1807.47 | H203: 1866.37 | I203: 1883.68 | J203: 1895.82 | K203: 1871.55 | L203: 1842.1 | M203: 0.81386
A204: 195 | B204: TORNTPOWER | C204: 284 | D204: 284.77 | E204: 282.23 | F204: 280.47 | G204: 277.93 | H204: 286.53 | I204: 289.07 | J204: 290.83 | K204: 287.3 | L204: 283 | M204: 3.52944
A205: 196 | B205: UPL | C205: 584.5 | D205: 586.40 | E205: 581.10 | F205: 577.70 | G205: 572.40 | H205: 589.80 | I205: 595.10 | J205: 598.50 | K205: 591.7 | L205: 583 | M205: 13.74096
... 30 more rows

Sheet MidCap Intra
L5: Back To Main Page
A6: FOR INTRA DAY TRADING | K6: =Main!B10 -> 2020-01-01
A9: Sr.no | B9: Scrip | C9: CLOSE RATE | D9: Pivot Point | E9: Supports | H9: Resistances
C10: Point | E10: S1 | F10: S2 | G10: S3 | H10: R1 | I10: R2 | J10: R3 | K10: HIGH | L10: LOW | M10: Total Trade Quanity in Lakhs
A11: 1 | B11: 3MINDIA | C11: 21304.7 | D11: 21384.57 | E11: 21130.13 | F11: 20955.57 | G11: 20701.13 | H11: 21559.13 | I11: 21813.57 | J11: 21988.13 | K11: 21639 | L11: 21210 | M11: 0.01333
A12: 2 | B12: ACC | C12: 1445.65 | D12: 1449.07 | E12: 1438.13 | F12: 1430.62 | G12: 1419.68 | H12: 1456.58 | I12: 1467.52 | J12: 1475.03 | K12: 1460 | L12: 1441.55 | M12: 5.81119
A13: 3 | B13: AIAENG | C13: 1649.5 | D13: 1642.83 | E13: 1635.67 | F13: 1621.83 | G13: 1614.67 | H13: 1656.67 | I13: 1663.83 | J13: 1677.67 | K13: 1650 | L13: 1629 | M13: 0.12529
A14: 4 | B14: APLAPOLLO | C14: 1877.7 | D14: 1868.53 | E14: 1844.17 | F14: 1810.63 | G14: 1786.27 | H14: 1902.07 | I14: 1926.43 | J14: 1959.97 | K14: 1892.9 | L14: 1835 | M14: 0.5796
A15: 5 | B15: AUBANK | C15: 803.1 | D15: 802.57 | E15: 783.23 | F15: 763.37 | G15: 744.03 | H15: 822.43 | I15: 841.77 | J15: 861.63 | K15: 821.9 | L15: 782.7 | M15: 5.64939
A16: 6 | B16: AAVAS | C16: 1981.1 | D16: 1960.85 | E16: 1922.70 | F16: 1864.30 | G16: 1826.15 | H16: 2019.25 | I16: 2057.40 | J16: 2115.80 | K16: 1999 | L16: 1902.45 | M16: 1.01783
A17: 7 | B17: ABBOTINDIA | C17: 13075.5 | D17: 13108.90 | E17: 13015.80 | F17: 12956.10 | G17: 12863.00 | H17: 13168.60 | I17: 13261.70 | J17: 13321.40 | K17: 13202 | L17: 13049.2 | M17: 0.03735
A18: 8 | B18: ADANIGAS | C18: 162.7 | D18: 160.75 | E18: 157.10 | F18: 151.50 | G18: 147.85 | H18: 166.35 | I18: 170.00 | J18: 175.60 | K18: 164.4 | L18: 155.15 | M18: 38.97522
A19: 9 | B19: ADANIGREEN | C19: 166.45 | D19: 164.67 | E19: 162.88 | F19: 159.32 | G19: 157.53 | H19: 168.23 | I19: 170.02 | J19: 173.58 | K19: 166.45 | L19: 161.1 | M19: 20.50662
A20: 10 | B20: ADANIPORTS | C20: 366 | D20: 366.52 | E20: 364.38 | F20: 362.77 | G20: 360.63 | H20: 368.13 | I20: 370.27 | J20: 371.88 | K20: 368.65 | L20: 364.9 | M20: 20.43206
A21: 11 | B21: ADANIPOWER | C21: 61.8 | D21: 61.67 | E21: 61.18 | F21: 60.57 | G21: 60.08 | H21: 62.28 | I21: 62.77 | J21: 63.38 | K21: 62.15 | L21: 61.05 | M21: 75.55401
A22: 12 | B22: ADANITRANS | C22: 331.4 | D22: 332.77 | E22: 328.63 | F22: 325.87 | G22: 321.73 | H22: 335.53 | I22: 339.67 | J22: 342.43 | K22: 336.9 | L22: 330 | M22: 1.65013
A23: 13 | B23: ABCAPITAL | C23: 102.7 | D23: 103.00 | E23: 101.20 | F23: 99.70 | G23: 97.90 | H23: 104.50 | I23: 106.30 | J23: 107.80 | K23: 104.8 | L23: 101.5 | M23: 26.693
A24: 14 | B24: ABFRL | C24: 231.7 | D24: 229.83 | E24: 226.52 | F24: 221.33 | G24: 218.02 | H24: 235.02 | I24: 238.33 | J24: 243.52 | K24: 233.15 | L24: 224.65 | M24: 5.46866
A25: 15 | B25: ADVENZYMES | C25: 165.5 | D25: 165.45 | E25: 163.20 | F25: 160.90 | G25: 158.65 | H25: 167.75 | I25: 170.00 | J25: 172.30 | K25: 167.7 | L25: 163.15 | M25: 0.58909
A26: 16 | B26: AEGISCHEM | C26: 193.45 | D26: 191.32 | E26: 188.13 | F26: 182.82 | G26: 179.63 | H26: 196.63 | I26: 199.82 | J26: 205.13 | K26: 194.5 | L26: 186 | M26: 1.70584
A27: 17 | B27: AJANTPHARM | C27: 974.55 | D27: 967.85 | E27: 956.70 | F27: 938.85 | G27: 927.70 | H27: 985.70 | I27: 996.85 | J27: 1014.70 | K27: 979 | L27: 950 | M27: 0.64781
A28: 18 | B28: AKZOINDIA | C28: 1971.15 | D28: 1959.02 | E28: 1940.13 | F28: 1909.12 | G28: 1890.23 | H28: 1990.03 | I28: 2008.92 | J28: 2039.93 | K28: 1977.9 | L28: 1928 | M28: 0.19805
A29: 19 | B29: APLLTD | C29: 571.3 | D29: 578.10 | E29: 561.20 | F29: 551.10 | G29: 534.20 | H29: 588.20 | I29: 605.10 | J29: 615.20 | K29: 595 | L29: 568 | M29: 0.64864
A30: 20 | B30: ALKEM | C30: 2013.9 | D30: 2012.13 | E30: 1990.27 | F30: 1966.63 | G30: 1944.77 | H30: 2035.77 | I30: 2057.63 | J30: 2081.27 | K30: 2034 | L30: 1988.5 | M30: 0.47011
A31: 21 | B31: ALBK | C31: 18.85 | D31: 18.92 | E31: 18.63 | F31: 18.42 | G31: 18.13 | H31: 19.13 | I31: 19.42 | J31: 19.63 | K31: 19.2 | L31: 18.7 | M31: 13.41427
A32: 22 | B32: ALLCARGO | C32: 97.45 | D32: 97.83 | E32: 96.87 | F32: 96.28 | G32: 95.32 | H32: 98.42 | I32: 99.38 | J32: 99.97 | K32: 98.8 | L32: 97.25 | M32: 0.62918
A33: 23 | B33: AMARAJABAT | C33: 724.35 | D33: 725.03 | E33: 719.12 | F33: 713.88 | G33: 707.97 | H33: 730.27 | I33: 736.18 | J33: 741.42 | K33: 730.95 | L33: 719.8 | M33: 2.73544
A34: 24 | B34: AMBER | C34: 1117.15 | D34: 1123.10 | E34: 1101.20 | F34: 1085.25 | G34: 1063.35 | H34: 1139.05 | I34: 1160.95 | J34: 1176.90 | K34: 1145 | L34: 1107.15 | M34: 0.4377
A35: 25 | B35: AMBUJACEM | C35: 196.25 | D35: 196.38 | E35: 194.52 | F35: 192.78 | G35: 190.92 | H35: 198.12 | I35: 199.98 | J35: 201.72 | K35: 198.25 | L35: 194.65 | M35: 19.72433
A36: 26 | B36: ANDHRABANK | C36: 16.7 | D36: 16.83 | E36: 16.47 | F36: 16.23 | G36: 15.87 | H36: 17.07 | I36: 17.43 | J36: 17.67 | K36: 17.2 | L36: 16.6 | M36: 15.33792
A37: 27 | B37: APOLLOHOSP | C37: 1442 | D37: 1437.00 | E37: 1420.00 | F37: 1398.00 | G37: 1381.00 | H37: 1459.00 | I37: 1476.00 | J37: 1498.00 | K37: 1454 | L37: 1415 | M37: 9.85801
A38: 28 | B38: APOLLOTYRE | C38: 163.9 | D38: 164.35 | E38: 163.05 | F38: 162.20 | G38: 160.90 | H38: 165.20 | I38: 166.50 | J38: 167.35 | K38: 165.65 | L38: 163.5 | M38: 7.70298
A39: 29 | B39: ARVINDFASN | C39: 393.4 | D39: 391.07 | E39: 378.13 | F39: 362.87 | G39: 349.93 | H39: 406.33 | I39: 419.27 | J39: 434.53 | K39: 404 | L39: 375.8 | M39: 0.56584
A40: 30 | B40: ASHOKLEY | C40: 81.5 | D40: 81.77 | E40: 80.93 | F40: 80.37 | G40: 79.53 | H40: 82.33 | I40: 83.17 | J40: 83.73 | K40: 82.6 | L40: 81.2 | M40: 154.26363
A41: 31 | B41: ASHOKA | C41: 102.45 | D41: 102.10 | E41: 98.80 | F41: 95.15 | G41: 91.85 | H41: 105.75 | I41: 109.05 | J41: 112.70 | K41: 105.4 | L41: 98.45 | M41: 14.71727
A42: 32 | B42: ASIANPAINT | C42: 1784.95 | D42: 1790.35 | E42: 1775.70 | F42: 1766.45 | G42: 1751.80 | H42: 1799.60 | I42: 1814.25 | J42: 1823.50 | K42: 1805 | L42: 1781.1 | M42: 9.28396
A43: 33 | B43: ASTERDM | C43: 160.75 | D43: 159.83 | E43: 157.67 | F43: 154.58 | G43: 152.42 | H43: 162.92 | I43: 165.08 | J43: 168.17 | K43: 162 | L43: 156.75 | M43: 2.08105
A44: 34 | B44: ASTRAZEN | C44: 2616.6 | D44: 2639.68 | E44: 2566.92 | F44: 2517.23 | G44: 2444.47 | H44: 2689.37 | I44: 2762.13 | J44: 2811.82 | K44: 2712.45 | L44: 2590 | M44: 0.2682
A45: 35 | B45: ASTRAL | C45: 1176.9 | D45: 1171.62 | E45: 1144.23 | F45: 1111.57 | G45: 1084.18 | H45: 1204.28 | I45: 1231.67 | J45: 1264.33 | K45: 1199 | L45: 1138.95 | M45: 1.15641
A46: 36 | B46: ATUL | C46: 4050.8 | D46: 4070.22 | E46: 4030.58 | F46: 4010.37 | G46: 3970.73 | H46: 4090.43 | I46: 4130.07 | J46: 4150.28 | K46: 4109.85 | L46: 4050 | M46: 0.07248
A47: 37 | B47: AUROPHARMA | C47: 456.85 | D47: 460.42 | E47: 451.93 | F47: 447.02 | G47: 438.53 | H47: 465.33 | I47: 473.82 | J47: 478.73 | K47: 468.9 | L47: 455.5 | M47: 16.1394
A48: 38 | B48: AVANTIFEED | C48: 584 | D48: 580.17 | E48: 570.33 | F48: 556.67 | G48: 546.83 | H48: 593.83 | I48: 603.67 | J48: 617.33 | K48: 590 | L48: 566.5 | M48: 5.93427
A49: 39 | B49: DMART | C49: 1838.35 | D49: 1854.75 | E49: 1810.65 | F49: 1782.95 | G49: 1738.85 | H49: 1882.45 | I49: 1926.55 | J49: 1954.25 | K49: 1898.85 | L49: 1827.05 | M49: 5.97038
A50: 40 | B50: AXISBANK | C50: 754.1 | D50: 757.12 | E50: 748.38 | F50: 742.67 | G50: 733.93 | H50: 762.83 | I50: 771.57 | J50: 777.28 | K50: 765.85 | L50: 751.4 | M50: 116.60781
A51: 41 | B51: BASF | C51: 988.25 | D51: 994.32 | E51: 978.93 | F51: 969.62 | G51: 954.23 | H51: 1003.63 | I51: 1019.02 | J51: 1028.33 | K51: 1009.7 | L51: 985 | M51: 0.38646
A52: 42 | B52: BEML | C52: 984 | D52: 987.32 | E52: 975.63 | F52: 967.27 | G52: 955.58 | H52: 995.68 | I52: 1007.37 | J52: 1015.73 | K52: 999 | L52: 978.95 | M52: 5.63265
A53: 43 | B53: BSE | C53: 501.45 | D53: 497.13 | E53: 491.92 | F53: 482.38 | G53: 477.17 | H53: 506.67 | I53: 511.88 | J53: 521.42 | K53: 502.35 | L53: 487.6 | M53: 1.09113
A54: 44 | B54: BAJAJ-AUTO | C54: 3185 | D54: 3203.85 | E54: 3156.70 | F54: 3128.40 | G54: 3081.25 | H54: 3232.15 | I54: 3279.30 | J54: 3307.60 | K54: 3251 | L54: 3175.55 | M54: 5.26252
A55: 45 | B55: BAJAJCON | C55: 236.1 | D55: 236.37 | E55: 231.73 | F55: 227.37 | G55: 222.73 | H55: 240.73 | I55: 245.37 | J55: 249.73 | K55: 241 | L55: 232 | M55: 1.21842
A56: 46 | B56: BAJAJELEC | C56: 358.15 | D56: 352.73 | E56: 345.47 | F56: 332.78 | G56: 325.52 | H56: 365.42 | I56: 372.68 | J56: 385.37 | K56: 360 | L56: 340.05 | M56: 5.87924
A57: 47 | B57: BAJFINANCE | C57: 4234.75 | D57: 4239.92 | E57: 4213.43 | F57: 4192.12 | G57: 4165.63 | H57: 4261.23 | I57: 4287.72 | J57: 4309.03 | K57: 4266.4 | L57: 4218.6 | M57: 7.79608
A58: 48 | B58: BAJAJFINSV | C58: 9393.35 | D58: 9405.77 | E58: 9366.58 | F58: 9339.82 | G58: 9300.63 | H58: 9432.53 | I58: 9471.72 | J58: 9498.48 | K58: 9444.95 | L58: 9379 | M58: 1.16732
A59: 49 | B59: BAJAJHLDNG | C59: 3406.6 | D59: 3417.07 | E59: 3384.53 | F59: 3362.47 | G59: 3329.93 | H59: 3439.13 | I59: 3471.67 | J59: 3493.73 | K59: 3449.6 | L59: 3395 | M59: 1.17325
A60: 50 | B60: BALKRISIND | C60: 990.55 | D60: 989.85 | E60: 980.70 | F60: 970.85 | G60: 961.70 | H60: 999.70 | I60: 1008.85 | J60: 1018.70 | K60: 999 | L60: 980 | M60: 5.48965
A61: 51 | B61: BALMLAWRIE | C61: 124.85 | D61: 125.10 | E61: 124.25 | F61: 123.65 | G61: 122.80 | H61: 125.70 | I61: 126.55 | J61: 127.15 | K61: 125.95 | L61: 124.5 | M61: 0.68419
A62: 52 | B62: BALRAMCHIN | C62: 183.4 | D62: 183.50 | E62: 181.35 | F62: 179.30 | G62: 177.15 | H62: 185.55 | I62: 187.70 | J62: 189.75 | K62: 185.65 | L62: 181.45 | M62: 14.17715
A63: 53 | B63: BANDHANBNK | C63: 508.25 | D63: 506.50 | E63: 496.85 | F63: 485.45 | G63: 475.80 | H63: 517.90 | I63: 527.55 | J63: 538.95 | K63: 516.15 | L63: 495.1 | M63: 19.6598
A64: 54 | B64: BANKBARODA | C64: 101.9 | D64: 102.22 | E64: 101.23 | F64: 100.57 | G64: 99.58 | H64: 102.88 | I64: 103.87 | J64: 104.53 | K64: 103.2 | L64: 101.55 | M64: 159.43079
A65: 55 | B65: BANKINDIA | C65: 70.4 | D65: 70.43 | E65: 69.47 | F65: 68.53 | G65: 67.57 | H65: 71.37 | I65: 72.33 | J65: 73.27 | K65: 71.4 | L65: 69.5 | M65: 28.71913
A66: 56 | B66: MAHABANK | C66: 12.9 | D66: 13.00 | E66: 12.75 | F66: 12.60 | G66: 12.35 | H66: 13.15 | I66: 13.40 | J66: 13.55 | K66: 13.25 | L66: 12.85 | M66: 4.82343
A67: 57 | B67: BATAINDIA | C67: 1751.55 | D67: 1756.10 | E67: 1741.45 | F67: 1731.35 | G67: 1716.70 | H67: 1766.20 | I67: 1780.85 | J67: 1790.95 | K67: 1770.75 | L67: 1746 | M67: 6.38499
A68: 58 | B68: BAYERCROP | C68: 3562.8 | D68: 3560.93 | E68: 3507.87 | F68: 3452.93 | G68: 3399.87 | H68: 3615.87 | I68: 3668.93 | J68: 3723.87 | K68: 3614 | L68: 3506 | M68: 0.41746
A69: 59 | B69: BERGEPAINT | C69: 515.55 | D69: 514.25 | E69: 511.80 | F69: 508.05 | G69: 505.60 | H69: 518.00 | I69: 520.45 | J69: 524.20 | K69: 516.7 | L69: 510.5 | M69: 5.68561
A70: 60 | B70: BDL | C70: 294.45 | D70: 295.17 | E70: 292.08 | F70: 289.72 | G70: 286.63 | H70: 297.53 | I70: 300.62 | J70: 302.98 | K70: 298.25 | L70: 292.8 | M70: 0.35494
A71: 61 | B71: BEL | C71: 100.05 | D71: 100.55 | E71: 99.10 | F71: 98.15 | G71: 96.70 | H71: 101.50 | I71: 102.95 | J71: 103.90 | K71: 102 | L71: 99.6 | M71: 74.89544
A72: 62 | B72: BHARATFORG | C72: 483.15 | D72: 486.05 | E72: 479.10 | F72: 475.05 | G72: 468.10 | H72: 490.10 | I72: 497.05 | J72: 501.10 | K72: 493 | L72: 482 | M72: 6.07473
A73: 63 | B73: BHEL | C73: 43.45 | D73: 43.28 | E73: 42.77 | F73: 42.08 | G73: 41.57 | H73: 43.97 | I73: 44.48 | J73: 45.17 | K73: 43.8 | L73: 42.6 | M73: 158.97198
A74: 64 | B74: BPCL | C74: 491.55 | D74: 491.30 | E74: 486.60 | F74: 481.65 | G74: 476.95 | H74: 496.25 | I74: 500.95 | J74: 505.90 | K74: 496 | L74: 486.35 | M74: 57.94952
A75: 65 | B75: BHARTIARTL | C75: 455.8 | D75: 457.60 | E75: 452.70 | F75: 449.60 | G75: 444.70 | H75: 460.70 | I75: 465.60 | J75: 468.70 | K75: 462.5 | L75: 454.5 | M75: 51.16528
A76: 66 | B76: INFRATEL | C76: 252.5 | D76: 254.80 | E76: 248.95 | F76: 245.40 | G76: 239.55 | H76: 258.35 | I76: 264.20 | J76: 267.75 | K76: 260.65 | L76: 251.25 | M76: 66.61439
A77: 67 | B77: BIOCON | C77: 293.7 | D77: 293.63 | E77: 290.57 | F77: 287.43 | G77: 284.37 | H77: 296.77 | I77: 299.83 | J77: 302.97 | K77: 296.7 | L77: 290.5 | M77: 20.16481
A78: 68 | B78: BIRLACORPN | C78: 610.15 | D78: 604.47 | E78: 596.13 | F78: 582.12 | G78: 573.78 | H78: 618.48 | I78: 626.82 | J78: 640.83 | K78: 612.8 | L78: 590.45 | M78: 0.65781
A79: 69 | B79: BSOFT | C79: 70.7 | D79: 70.75 | E79: 70.05 | F79: 69.40 | G79: 68.70 | H79: 71.40 | I79: 72.10 | J79: 72.75 | K79: 71.45 | L79: 70.1 | M79: 1.23617
A80: 70 | B80: BLISSGVS | C80: 150.7 | D80: 150.50 | E80: 149.25 | F80: 147.80 | G80: 146.55 | H80: 151.95 | I80: 153.20 | J80: 154.65 | K80: 151.75 | L80: 149.05 | M80: 1.56455
A81: 71 | B81: BLUEDART | C81: 2184 | D81: 2189.33 | E81: 2169.67 | F81: 2155.33 | G81: 2135.67 | H81: 2203.67 | I81: 2223.33 | J81: 2237.67 | K81: 2209 | L81: 2175 | M81: 0.0253
A82: 72 | B82: BLUESTARCO | C82: 840.85 | D82: 832.70 | E82: 805.55 | F82: 770.25 | G82: 743.10 | H82: 868.00 | I82: 895.15 | J82: 930.45 | K82: 859.85 | L82: 797.4 | M82: 1.03435
A83: 73 | B83: BBTC | C83: 1038.95 | D83: 1034.08 | E83: 1010.37 | F83: 981.78 | G83: 958.07 | H83: 1062.67 | I83: 1086.38 | J83: 1114.97 | K83: 1057.8 | L83: 1005.5 | M83: 3.33501
A84: 74 | B84: BOMDYEING | C84: 79.35 | D84: 78.28 | E84: 76.27 | F84: 73.18 | G84: 71.17 | H84: 81.37 | I84: 83.38 | J84: 86.47 | K84: 80.3 | L84: 75.2 | M84: 53.97031
A85: 75 | B85: BOSCHLTD | C85: 15374.6 | D85: 15506.93 | E85: 15193.87 | F85: 15013.13 | G85: 14700.07 | H85: 15687.67 | I85: 16000.73 | J85: 16181.47 | K85: 15820 | L85: 15326.2 | M85: 0.17808
A86: 76 | B86: BRIGADE | C86: 218.5 | D86: 217.83 | E86: 215.67 | F86: 212.83 | G86: 210.67 | H86: 220.67 | I86: 222.83 | J86: 225.67 | K86: 220 | L86: 215 | M86: 1.06455
A87: 77 | B87: BRITANNIA | C87: 3027.8 | D87: 3038.20 | E87: 3009.60 | F87: 2991.40 | G87: 2962.80 | H87: 3056.40 | I87: 3085.00 | J87: 3103.20 | K87: 3066.8 | L87: 3020 | M87: 1.90885
A88: 78 | B88: CARERATING | C88: 638.95 | D88: 611.77 | E88: 573.58 | F88: 508.22 | G88: 470.03 | H88: 677.13 | I88: 715.32 | J88: 780.68 | K88: 649.95 | L88: 546.4 | M88: 37.83701
A89: 79 | B89: CCL | C89: 201.3 | D89: 200.45 | E89: 198.10 | F89: 194.90 | G89: 192.55 | H89: 203.65 | I89: 206.00 | J89: 209.20 | K89: 202.8 | L89: 197.25 | M89: 0.30973
A90: 80 | B90: CESC | C90: 736.8 | D90: 739.97 | E90: 731.88 | F90: 726.97 | G90: 718.88 | H90: 744.88 | I90: 752.97 | J90: 757.88 | K90: 748.05 | L90: 735.05 | M90: 2.597
A91: 81 | B91: CGPOWER
A92: 82 | B92: CRISIL | C92: 1907.6 | D92: 1897.60 | E92: 1820.20 | F92: 1732.80 | G92: 1655.40 | H92: 1985.00 | I92: 2062.40 | J92: 2149.80 | K92: 1975 | L92: 1810.2 | M92: 3.96704
A93: 83 | B93: CADILAHC | C93: 254.3 | D93: 255.27 | E93: 252.53 | F93: 250.77 | G93: 248.03 | H93: 257.03 | I93: 259.77 | J93: 261.53 | K93: 258 | L93: 253.5 | M93: 4.62747
A94: 84 | B94: CANFINHOME | C94: 393.05 | D94: 395.40 | E94: 389.85 | F94: 386.65 | G94: 381.10 | H94: 398.60 | I94: 404.15 | J94: 407.35 | K94: 400.95 | L94: 392.2 | M94: 1.89009
A95: 85 | B95: CANBK | C95: 221.35 | D95: 221.85 | E95: 220.20 | F95: 219.05 | G95: 217.40 | H95: 223.00 | I95: 224.65 | J95: 225.80 | K95: 223.5 | L95: 220.7 | M95: 51.56427
A96: 86 | B96: CAPLIPOINT | C96: 300.85 | D96: 301.58 | E96: 298.27 | F96: 295.68 | G96: 292.37 | H96: 304.17 | I96: 307.48 | J96: 310.07 | K96: 304.9 | L96: 299 | M96: 0.43889
A97: 87 | B97: CGCL | C97: 202.7 | D97: 202.77 | E97: 200.43 | F97: 198.17 | G97: 195.83 | H97: 205.03 | I97: 207.37 | J97: 209.63 | K97: 205.1 | L97: 200.5 | M97: 3.18403
A98: 88 | B98: CARBORUNIV | C98: 320.4 | D98: 319.73 | E98: 316.72 | F98: 313.03 | G98: 310.02 | H98: 323.42 | I98: 326.43 | J98: 330.12 | K98: 322.75 | L98: 316.05 | M98: 0.2924
A99: 89 | B99: CASTROLIND | C99: 129.3 | D99: 129.23 | E99: 128.32 | F99: 127.33 | G99: 126.42 | H99: 130.22 | I99: 131.13 | J99: 132.12 | K99: 130.15 | L99: 128.25 | M99: 6.66478
A100: 90 | B100: CEATLTD | C100: 988.85 | D100: 991.93 | E100: 981.92 | F100: 974.98 | G100: 964.97 | H100: 998.87 | I100: 1008.88 | J100: 1015.82 | K100: 1001.95 | L100: 985 | M100: 0.59271
A101: 91 | B101: CENTRALBK | C101: 17.9 | D101: 17.85 | E101: 17.75 | F101: 17.60 | G101: 17.50 | H101: 18.00 | I101: 18.10 | J101: 18.25 | K101: 17.95 | L101: 17.7 | M101: 3.47093
A102: 92 | B102: CDSL | C102: 222.7 | D102: 223.38 | E102: 220.77 | F102: 218.83 | G102: 216.22 | H102: 225.32 | I102: 227.93 | J102: 229.87 | K102: 226 | L102: 221.45 | M102: 4.62927
A103: 93 | B103: CENTURYPLY | C103: 160.6 | D103: 161.13 | E103: 159.57 | F103: 158.53 | G103: 156.97 | H103: 162.17 | I103: 163.73 | J103: 164.77 | K103: 162.7 | L103: 160.1 | M103: 0.6499
A104: 94 | B104: CERA | C104: 2697.55 | D104: 2674.18 | E104: 2628.37 | F104: 2559.18 | G104: 2513.37 | H104: 2743.37 | I104: 2789.18 | J104: 2858.37 | K104: 2720 | L104: 2605 | M104: 0.08706
A105: 95 | B105: CHALET | C105: 348.95 | D105: 364.67 | E105: 327.33 | F105: 305.72 | G105: 268.38 | H105: 386.28 | I105: 423.62 | J105: 445.23 | K105: 402 | L105: 343.05 | M105: 3.02811
A106: 96 | B106: CHAMBLFERT | C106: 152.25 | D106: 151.38 | E106: 149.47 | F106: 146.68 | G106: 144.77 | H106: 154.17 | I106: 156.08 | J106: 158.87 | K106: 153.3 | L106: 148.6 | M106: 7.61211
A107: 97 | B107: CHENNPETRO | C107: 123.55 | D107: 122.18 | E107: 118.47 | F107: 113.38 | G107: 109.67 | H107: 127.27 | I107: 130.98 | J107: 136.07 | K107: 125.9 | L107: 117.1 | M107: 6.56419
A108: 98 | B108: CHOLAHLDNG | C108: 499.65 | D108: 501.92 | E108: 493.88 | F108: 488.12 | G108: 480.08 | H108: 507.68 | I108: 515.72 | J108: 521.48 | K108: 509.95 | L108: 496.15 | M108: 0.78174
A109: 99 | B109: CHOLAFIN | C109: 305.5 | D109: 306.13 | E109: 303.67 | F109: 301.83 | G109: 299.37 | H109: 307.97 | I109: 310.43 | J109: 312.27 | K109: 308.6 | L109: 304.3 | M109: 7.88978
A110: 100 | B110: CIPLA | C110: 478.2 | D110: 479.82 | E110: 475.33 | F110: 472.47 | G110: 467.98 | H110: 482.68 | I110: 487.17 | J110: 490.03 | K110: 484.3 | L110: 476.95 | M110: 16.40854
A111: 101 | B111: CUB | C111: 233.95 | D111: 233.83 | E111: 232.22 | F111: 230.48 | G111: 228.87 | H111: 235.57 | I111: 237.18 | J111: 238.92 | K111: 235.45 | L111: 232.1 | M111: 4.42226
A112: 102 | B112: COALINDIA | C112: 211.35 | D112: 209.42 | E112: 206.38 | F112: 201.42 | G112: 198.38 | H112: 214.38 | I112: 217.42 | J112: 222.38 | K112: 212.45 | L112: 204.45 | M112: 105.34842
A113: 103 | B113: COCHINSHIP | C113: 402.85 | D113: 402.82 | E113: 397.08 | F113: 391.32 | G113: 385.58 | H113: 408.58 | I113: 414.32 | J113: 420.08 | K113: 408.55 | L113: 397.05 | M113: 1.28334
A114: 104 | B114: COFFEEDAY
A115: 105 | B115: COLPAL | C115: 1462.9 | D115: 1464.28 | E115: 1455.62 | F115: 1448.33 | G115: 1439.67 | H115: 1471.57 | I115: 1480.23 | J115: 1487.52 | K115: 1472.95 | L115: 1457 | M115: 1.8916
A116: 106 | B116: CONCOR | C116: 571.9 | D116: 574.28 | E116: 568.57 | F116: 565.23 | G116: 559.52 | H116: 577.62 | I116: 583.33 | J116: 586.67 | K116: 580 | L116: 570.95 | M116: 5.66412
A117: 107 | B117: COROMANDEL | C117: 532.1 | D117: 528.20 | E117: 521.50 | F117: 510.90 | G117: 504.20 | H117: 538.80 | I117: 545.50 | J117: 556.10 | K117: 534.9 | L117: 517.6 | M117: 1.12432
A118: 108 | B118: CORPBANK | C118: 25.2 | D118: 25.25 | E118: 25.00 | F118: 24.80 | G118: 24.55 | H118: 25.45 | I118: 25.70 | J118: 25.90 | K118: 25.5 | L118: 25.05 | M118: 5.53879
A119: 109 | B119: COX&KINGS
A120: 110 | B120: CREDITACC | C120: 767.95 | D120: 763.32 | E120: 756.63 | F120: 745.32 | G120: 738.63 | H120: 774.63 | I120: 781.32 | J120: 792.63 | K120: 770 | L120: 752 | M120: 1.26179
A121: 111 | B121: CROMPTON | C121: 239.85 | D121: 239.98 | E121: 236.97 | F121: 234.08 | G121: 231.07 | H121: 242.87 | I121: 245.88 | J121: 248.77 | K121: 243 | L121: 237.1 | M121: 5.6774
A122: 112 | B122: CUMMINSIND | C122: 550.85 | D122: 551.85 | E122: 547.75 | F122: 544.65 | G122: 540.55 | H122: 554.95 | I122: 559.05 | J122: 562.15 | K122: 555.95 | L122: 548.75 | M122: 2.26406
A123: 113 | B123: CYIENT | C123: 410.3 | D123: 409.77 | E123: 406.53 | F123: 402.77 | G123: 399.53 | H123: 413.53 | I123: 416.77 | J123: 420.53 | K123: 413 | L123: 406 | M123: 0.20905
A124: 114 | B124: DBCORP | C124: 134.15 | D124: 134.15 | E124: 133.40 | F124: 132.65 | G124: 131.90 | H124: 134.90 | I124: 135.65 | J124: 136.40 | K124: 134.9 | L124: 133.4 | M124: 1.21386
A125: 115 | B125: DCBBANK | C125: 171.9 | D125: 170.95 | E125: 169.10 | F125: 166.30 | G125: 164.45 | H125: 173.75 | I125: 175.60 | J125: 178.40 | K125: 172.8 | L125: 168.15 | M125: 9.80778
A126: 116 | B126: DCMSHRIRAM | C126: 394.9 | D126: 387.58 | E126: 375.27 | F126: 355.63 | G126: 343.32 | H126: 407.22 | I126: 419.53 | J126: 439.17 | K126: 399.9 | L126: 367.95 | M126: 5.51909
A127: 117 | B127: DLF | C127: 230.9 | D127: 231.75 | E127: 229.15 | F127: 227.40 | G127: 224.80 | H127: 233.50 | I127: 236.10 | J127: 237.85 | K127: 234.35 | L127: 230 | M127: 54.58676
A128: 118 | B128: DABUR | C128: 458.4 | D128: 460.90 | E128: 455.00 | F128: 451.60 | G128: 445.70 | H128: 464.30 | I128: 470.20 | J128: 473.60 | K128: 466.8 | L128: 457.5 | M128: 11.67751
A129: 119 | B129: DALBHARAT | C129: 800.3 | D129: 794.87 | E129: 778.73 | F129: 757.17 | G129: 741.03 | H129: 816.43 | I129: 832.57 | J129: 854.13 | K129: 811 | L129: 773.3 | M129: 2.11285
A130: 120 | B130: DEEPAKNTR | C130: 373.1 | D130: 372.97 | E130: 368.33 | F130: 363.57 | G130: 358.93 | H130: 377.73 | I130: 382.37 | J130: 387.13 | K130: 377.6 | L130: 368.2 | M130: 1.79934
A131: 121 | B131: DELTACORP | C131: 198.05 | D131: 198.68 | E131: 196.37 | F131: 194.68 | G131: 192.37 | H131: 200.37 | I131: 202.68 | J131: 204.37 | K131: 201 | L131: 197 | M131: 9.87017
A132: 122 | B132: DEN | C132: 48.4 | D132: 46.92 | E132: 45.38 | F132: 42.37 | G132: 40.83 | H132: 49.93 | I132: 51.47 | J132: 54.48 | K132: 48.45 | L132: 43.9 | M132: 1.74291
A133: 123 | B133: DHFL | C133: 16.8 | D133: 17.13 | E133: 16.27 | F133: 15.73 | G133: 14.87 | H133: 17.67 | I133: 18.53 | J133: 19.07 | K133: 18 | L133: 16.6 | M133: 44.65353
A134: 124 | B134: DBL | C134: 402.65 | D134: 402.33 | E134: 393.67 | F134: 384.68 | G134: 376.02 | H134: 411.32 | I134: 419.98 | J134: 428.97 | K134: 411 | L134: 393.35 | M134: 3.3599
A135: 125 | B135: DISHTV | C135: 13.1 | D135: 13.18 | E135: 12.92 | F135: 12.73 | G135: 12.47 | H135: 13.37 | I135: 13.63 | J135: 13.82 | K135: 13.45 | L135: 13 | M135: 280.86839
A136: 126 | B136: DCAL | C136: 84.4 | D136: 85.03 | E136: 82.67 | F136: 80.93 | G136: 78.57 | H136: 86.77 | I136: 89.13 | J136: 90.87 | K136: 87.4 | L136: 83.3 | M136: 10.77883
A137: 127 | B137: DIVISLAB | C137: 1845.8 | D137: 1846.03 | E137: 1834.87 | F137: 1823.93 | G137: 1812.77 | H137: 1856.97 | I137: 1868.13 | J137: 1879.07 | K137: 1857.2 | L137: 1835.1 | M137: 2.87988
A138: 128 | B138: DIXON | C138: 3799.3 | D138: 3827.78 | E138: 3755.57 | F138: 3711.83 | G138: 3639.62 | H138: 3871.52 | I138: 3943.73 | J138: 3987.47 | K138: 3900 | L138: 3784.05 | M138: 0.30842
A139: 129 | B139: LALPATHLAB | C139: 1493.95 | D139: 1493.32 | E139: 1487.63 | F139: 1481.32 | G139: 1475.63 | H139: 1499.63 | I139: 1505.32 | J139: 1511.63 | K139: 1499 | L139: 1487 | M139: 0.32045
A140: 130 | B140: DRREDDY | C140: 2874.55 | D140: 2884.48 | E140: 2854.12 | F140: 2833.68 | G140: 2803.32 | H140: 2904.92 | I140: 2935.28 | J140: 2955.72 | K140: 2914.85 | L140: 2864.05 | M140: 3.03238
A141: 131 | B141: EIDPARRY | C141: 201.55 | D141: 202.65 | E141: 199.60 | F141: 197.65 | G141: 194.60 | H141: 204.60 | I141: 207.65 | J141: 209.60 | K141: 205.7 | L141: 200.7 | M141: 4.64582
A142: 132 | B142: EIHOTEL | C142: 142.65 | D142: 141.92 | E142: 140.73 | F142: 138.82 | G142: 137.63 | H142: 143.83 | I142: 145.02 | J142: 146.93 | K142: 143.1 | L142: 140 | M142: 16.96821
A143: 133 | B143: EDELWEISS | C143: 109.2 | D143: 110.48 | E143: 107.22 | F143: 105.23 | G143: 101.97 | H143: 112.47 | I143: 115.73 | J143: 117.72 | K143: 113.75 | L143: 108.5 | M143: 13.27308
A144: 134 | B144: EICHERMOT | C144: 22515.25 | D144: 22560.67 | E144: 22341.33 | F144: 22167.42 | G144: 21948.08 | H144: 22734.58 | I144: 22953.92 | J144: 23127.83 | K144: 22780 | L144: 22386.75 | M144: 1.14268
A145: 135 | B145: ELGIEQUIP | C145: 257.1 | D145: 255.98 | E145: 253.52 | F145: 249.93 | G145: 247.47 | H145: 259.57 | I145: 262.03 | J145: 265.62 | K145: 258.45 | L145: 252.4 | M145: 0.10452
A146: 136 | B146: EMAMILTD | C146: 309.9 | D146: 308.30 | E146: 306.60 | F146: 303.30 | G146: 301.60 | H146: 311.60 | I146: 313.30 | J146: 316.60 | K146: 310 | L146: 305 | M146: 1.30136
A147: 137 | B147: ENDURANCE | C147: 1081.3 | D147: 1072.78 | E147: 1053.57 | F147: 1025.83 | G147: 1006.62 | H147: 1100.52 | I147: 1119.73 | J147: 1147.47 | K147: 1092 | L147: 1045.05 | M147: 0.36674
A148: 138 | B148: ENGINERSIN | C148: 99 | D148: 99.15 | E148: 98.40 | F148: 97.80 | G148: 97.05 | H148: 99.75 | I148: 100.50 | J148: 101.10 | K148: 99.9 | L148: 98.55 | M148: 7.86055
A149: 139 | B149: EQUITAS | C149: 106.8 | D149: 106.95 | E149: 106.05 | F149: 105.30 | G149: 104.40 | H149: 107.70 | I149: 108.60 | J149: 109.35 | K149: 107.85 | L149: 106.2 | M149: 13.27778
A150: 140 | B150: ERIS | C150: 474 | D150: 471.20 | E150: 459.40 | F150: 444.80 | G150: 433.00 | H150: 485.80 | I150: 497.60 | J150: 512.20 | K150: 483 | L150: 456.6 | M150: 1.75754
A151: 141 | B151: ESCORTS | C151: 629.6 | D151: 631.33 | E151: 626.67 | F151: 623.73 | G151: 619.07 | H151: 634.27 | I151: 638.93 | J151: 641.87 | K151: 636 | L151: 628.4 | M151: 10.73628
A152: 142 | B152: ESSELPACK | C152: 177.2 | D152: 177.90 | E152: 173.30 | F152: 169.40 | G152: 164.80 | H152: 181.80 | I152: 186.40 | J152: 190.30 | K152: 182.5 | L152: 174 | M152: 1.31687
A153: 143 | B153: EXIDEIND | C153: 186.5 | D153: 186.27 | E153: 184.88 | F153: 183.27 | G153: 181.88 | H153: 187.88 | I153: 189.27 | J153: 190.88 | K153: 187.65 | L153: 184.65 | M153: 13.6385
A154: 144 | B154: FDC | C154: 211.75 | D154: 213.88 | E154: 207.87 | F154: 203.98 | G154: 197.97 | H154: 217.77 | I154: 223.78 | J154: 227.67 | K154: 219.9 | L154: 210 | M154: 0.71833
A155: 145 | B155: FEDERALBNK | C155: 87.95 | D155: 87.98 | E155: 86.87 | F155: 85.78 | G155: 84.67 | H155: 89.07 | I155: 90.18 | J155: 91.27 | K155: 89.1 | L155: 86.9 | M155: 65.98385
A156: 146 | B156: FMGOETZE | C156: 658.6 | D156: 659.35 | E156: 657.30 | F156: 656.00 | G156: 653.95 | H156: 660.65 | I156: 662.70 | J156: 664.00 | K156: 661.4 | L156: 658.05 | M156: 8.40624
A157: 147 | B157: FINEORG | C157: 1945.05 | D157: 1953.35 | E157: 1932.70 | F157: 1920.35 | G157: 1899.70 | H157: 1965.70 | I157: 1986.35 | J157: 1998.70 | K157: 1974 | L157: 1941 | M157: 0.08002
A158: 148 | B158: FINCABLES | C158: 371.1 | D158: 371.63 | E158: 363.52 | F158: 355.93 | G158: 347.82 | H158: 379.22 | I158: 387.33 | J158: 394.92 | K158: 379.75 | L158: 364.05 | M158: 1.07546
A159: 149 | B159: FINPIPE | C159: 546.2 | D159: 545.57 | E159: 540.63 | F159: 535.07 | G159: 530.13 | H159: 551.13 | I159: 556.07 | J159: 561.63 | K159: 550.5 | L159: 540 | M159: 0.24839
A160: 150 | B160: FSL | C160: 41.1 | D160: 41.07 | E160: 40.78 | F160: 40.47 | G160: 40.18 | H160: 41.38 | I160: 41.67 | J160: 41.98 | K160: 41.35 | L160: 40.75 | M160: 8.8826
A161: 151 | B161: FORTIS | C161: 131.9 | D161: 131.68 | E161: 129.42 | F161: 126.93 | G161: 124.67 | H161: 134.17 | I161: 136.43 | J161: 138.92 | K161: 133.95 | L161: 129.2 | M161: 10.32722
A162: 152 | B162: FCONSUMER | C162: 22.45 | D162: 22.63 | E162: 22.22 | F162: 21.98 | G162: 21.57 | H162: 22.87 | I162: 23.28 | J162: 23.52 | K162: 23.05 | L162: 22.4 | M162: 16.2795
A163: 153 | B163: FLFL | C163: 402.45 | D163: 402.15 | E163: 398.30 | F163: 394.15 | G163: 390.30 | H163: 406.30 | I163: 410.15 | J163: 414.30 | K163: 406 | L163: 398 | M163: 0.10798
A164: 154 | B164: FRETAIL | C164: 341.75 | D164: 343.10 | E164: 337.65 | F164: 333.55 | G164: 328.10 | H164: 347.20 | I164: 352.65 | J164: 356.75 | K164: 348.55 | L164: 339 | M164: 3.87988
A165: 155 | B165: GAIL | C165: 121.05 | D165: 120.72 | E165: 119.13 | F165: 117.22 | G165: 115.63 | H165: 122.63 | I165: 124.22 | J165: 126.13 | K165: 122.3 | L165: 118.8 | M165: 135.08891
A166: 156 | B166: GEPIL | C166: 745.3 | D166: 740.88 | E166: 730.12 | F166: 714.93 | G166: 704.17 | H166: 756.07 | I166: 766.83 | J166: 782.02 | K166: 751.65 | L166: 725.7 | M166: 0.11088
A167: 157 | B167: GET&D | C167: 147.2 | D167: 148.22 | E167: 145.98 | F167: 144.77 | G167: 142.53 | H167: 149.43 | I167: 151.67 | J167: 152.88 | K167: 150.45 | L167: 147 | M167: 0.10277
A168: 158 | B168: GHCL | C168: 184.3 | D168: 185.15 | E168: 182.20 | F168: 180.10 | G168: 177.15 | H168: 187.25 | I168: 190.20 | J168: 192.30 | K168: 188.1 | L168: 183.05 | M168: 2.12261
A169: 159 | B169: GMRINFRA | C169: 21 | D169: 20.93 | E169: 20.72 | F169: 20.43 | G169: 20.22 | H169: 21.22 | I169: 21.43 | J169: 21.72 | K169: 21.15 | L169: 20.65 | M169: 44.46752
A170: 160 | B170: GALAXYSURF | C170: 1500 | D170: 1496.67 | E170: 1478.33 | F170: 1456.67 | G170: 1438.33 | H170: 1518.33 | I170: 1536.67 | J170: 1558.33 | K170: 1515 | L170: 1475 | M170: 0.20147
A171: 161 | B171: GARFIBRES | C171: 1203.5 | D171: 1194.72 | E171: 1182.03 | F171: 1160.57 | G171: 1147.88 | H171: 1216.18 | I171: 1228.87 | J171: 1250.33 | K171: 1207.4 | L171: 1173.25 | M171: 0.02199
A172: 162 | B172: GAYAPROJ | C172: 79.75 | D172: 79.28 | E172: 77.37 | F172: 74.98 | G172: 73.07 | H172: 81.67 | I172: 83.58 | J172: 85.97 | K172: 81.2 | L172: 76.9 | M172: 4.0983
A173: 163 | B173: GICRE | C173: 226.4 | D173: 227.85 | E173: 221.95 | F173: 217.50 | G173: 211.60 | H173: 232.30 | I173: 238.20 | J173: 242.65 | K173: 233.75 | L173: 223.4 | M173: 3.5479
A174: 164 | B174: GILLETTE | C174: 6576.55 | D174: 6587.18 | E174: 6554.37 | F174: 6532.18 | G174: 6499.37 | H174: 6609.37 | I174: 6642.18 | J174: 6664.37 | K174: 6620 | L174: 6565 | M174: 0.03439
A175: 165 | B175: GLAXO | C175: 1610.3 | D175: 1617.18 | E175: 1595.42 | F175: 1580.53 | G175: 1558.77 | H175: 1632.07 | I175: 1653.83 | J175: 1668.72 | K175: 1638.95 | L175: 1602.3 | M175: 0.36975
A176: 166 | B176: GLENMARK | C176: 347.45 | D176: 347.38 | E176: 345.22 | F176: 342.98 | G176: 340.82 | H176: 349.62 | I176: 351.78 | J176: 354.02 | K176: 349.55 | L176: 345.15 | M176: 6.07159
A177: 167 | B177: GODFRYPHLP | C177: 1271.9 | D177: 1278.87 | E177: 1253.83 | F177: 1235.77 | G177: 1210.73 | H177: 1296.93 | I177: 1321.97 | J177: 1340.03 | K177: 1303.9 | L177: 1260.8 | M177: 0.61022
A178: 168 | B178: GODREJAGRO | C178: 516.95 | D178: 513.92 | E178: 508.03 | F178: 499.12 | G178: 493.23 | H178: 522.83 | I178: 528.72 | J178: 537.63 | K178: 519.8 | L178: 505 | M178: 1.02218
A179: 169 | B179: GODREJCP | C179: 684.55 | D179: 686.40 | E179: 679.85 | F179: 675.15 | G179: 668.60 | H179: 691.10 | I179: 697.65 | J179: 702.35 | K179: 692.95 | L179: 681.7 | M179: 3.44433
A180: 170 | B180: GODREJIND | C180: 424.55 | D180: 424.73 | E180: 421.97 | F180: 419.38 | G180: 416.62 | H180: 427.32 | I180: 430.08 | J180: 432.67 | K180: 427.5 | L180: 422.15 | M180: 0.38801
A181: 171 | B181: GODREJPROP | C181: 988.3 | D181: 981.12 | E181: 967.23 | F181: 946.17 | G181: 932.28 | H181: 1002.18 | I181: 1016.07 | J181: 1037.13 | K181: 995 | L181: 960.05 | M181: 4.47137
A182: 172 | B182: GRANULES | C182: 123.1 | D182: 123.77 | E182: 122.13 | F182: 121.17 | G182: 119.53 | H182: 124.73 | I182: 126.37 | J182: 127.33 | K182: 125.4 | L182: 122.8 | M182: 3.42195
A183: 173 | B183: GRAPHITE | C183: 303.25 | D183: 304.28 | E183: 301.57 | F183: 299.88 | G183: 297.17 | H183: 305.97 | I183: 308.68 | J183: 310.37 | K183: 307 | L183: 302.6 | M183: 6.37843
A184: 174 | B184: GRASIM | C184: 743.65 | D184: 740.88 | E184: 735.67 | F184: 727.68 | G184: 722.47 | H184: 748.87 | I184: 754.08 | J184: 762.07 | K184: 746.1 | L184: 732.9 | M184: 16.83709
A185: 175 | B185: GESHIP | C185: 298.95 | D185: 301.15 | E185: 294.80 | F185: 290.65 | G185: 284.30 | H185: 305.30 | I185: 311.65 | J185: 315.80 | K185: 307.5 | L185: 297 | M185: 0.28091
A186: 176 | B186: GREAVESCOT | C186: 133.85 | D186: 133.48 | E186: 132.02 | F186: 130.18 | G186: 128.72 | H186: 135.32 | I186: 136.78 | J186: 138.62 | K186: 134.95 | L186: 131.65 | M186: 1.19692
A187: 177 | B187: GRINDWELL | C187: 601.9 | D187: 595.77 | E187: 586.53 | F187: 571.17 | G187: 561.93 | H187: 611.13 | I187: 620.37 | J187: 635.73 | K187: 605 | L187: 580.4 | M187: 0.19481
A188: 178 | B188: GUJALKALI | C188: 418.5 | D188: 419.83 | E188: 414.67 | F188: 410.83 | G188: 405.67 | H188: 423.67 | I188: 428.83 | J188: 432.67 | K188: 425 | L188: 416 | M188: 0.35674
A189: 179 | B189: GUJGASLTD | C189: 237.55 | D189: 235.85 | E189: 232.70 | F189: 227.85 | G189: 224.70 | H189: 240.70 | I189: 243.85 | J189: 248.70 | K189: 239 | L189: 231 | M189: 17.35905
A190: 180 | B190: GMDCLTD | C190: 61.55 | D190: 62.05 | E190: 60.60 | F190: 59.65 | G190: 58.20 | H190: 63.00 | I190: 64.45 | J190: 65.40 | K190: 63.5 | L190: 61.1 | M190: 1.07798
A191: 181 | B191: GNFC | C191: 163.9 | D191: 165.08 | E191: 162.37 | F191: 160.83 | G191: 158.12 | H191: 166.62 | I191: 169.33 | J191: 170.87 | K191: 167.8 | L191: 163.55 | M191: 7.48604
A192: 182 | B192: GPPL | C192: 88.25 | D192: 87.77 | E192: 85.63 | F192: 83.02 | G192: 80.88 | H192: 90.38 | I192: 92.52 | J192: 95.13 | K192: 89.9 | L192: 85.15 | M192: 1.75121
A193: 183 | B193: GSFC | C193: 70.05 | D193: 70.28 | E193: 68.77 | F193: 67.48 | G193: 65.97 | H193: 71.57 | I193: 73.08 | J193: 74.37 | K193: 71.8 | L193: 69 | M193: 4.27722
A194: 184 | B194: GSPL | C194: 219.5 | D194: 218.73 | E194: 217.27 | F194: 215.03 | G194: 213.57 | H194: 220.97 | I194: 222.43 | J194: 224.67 | K194: 220.2 | L194: 216.5 | M194: 1.47217
A195: 185 | B195: GULFOILLUB | C195: 805.15 | D195: 812.97 | E195: 792.18 | F195: 779.22 | G195: 758.43 | H195: 825.93 | I195: 846.72 | J195: 859.68 | K195: 833.75 | L195: 800 | M195: 0.20618
A196: 186 | B196: HEG | C196: 1065.95 | D196: 1072.30 | E196: 1054.65 | F196: 1043.35 | G196: 1025.70 | H196: 1083.60 | I196: 1101.25 | J196: 1112.55 | K196: 1089.95 | L196: 1061 | M196: 2.41619
A197: 187 | B197: HCLTECH | C197: 568.1 | D197: 568.22 | E197: 564.93 | F197: 561.77 | G197: 558.48 | H197: 571.38 | I197: 574.67 | J197: 577.83 | K197: 571.5 | L197: 565.05 | M197: 18.38808
A198: 188 | B198: HDFCAMC | C198: 3199.7 | D198: 3207.48 | E198: 3177.22 | F198: 3154.73 | G198: 3124.47 | H198: 3229.97 | I198: 3260.23 | J198: 3282.72 | K198: 3237.75 | L198: 3185 | M198: 3.21319
A199: 189 | B199: HDFCBANK | C199: 1272.1 | D199: 1274.23 | E199: 1266.52 | F199: 1260.93 | G199: 1253.22 | H199: 1279.82 | I199: 1287.53 | J199: 1293.12 | K199: 1281.95 | L199: 1268.65 | M199: 41.78528
A200: 190 | B200: HDFCLIFE | C200: 626.05 | D200: 630.93 | E200: 615.87 | F200: 605.68 | G200: 590.62 | H200: 641.12 | I200: 656.18 | J200: 666.37 | K200: 646 | L200: 620.75 | M200: 22.17822
A201: 191 | B201: HATHWAY | C201: 20.15 | D201: 19.95 | E201: 19.40 | F201: 18.65 | G201: 18.10 | H201: 20.70 | I201: 21.25 | J201: 22.00 | K201: 20.5 | L201: 19.2 | M201: 3.40463
A202: 192 | B202: HATSUN | C202: 586.25 | D202: 586.77 | E202: 583.58 | F202: 580.92 | G202: 577.73 | H202: 589.43 | I202: 592.62 | J202: 595.28 | K202: 589.95 | L202: 584.1 | M202: 0.02532
A203: 193 | B203: HAVELLS | C203: 647.15 | D203: 650.32 | E203: 643.08 | F203: 639.02 | G203: 631.78 | H203: 654.38 | I203: 661.62 | J203: 665.68 | K203: 657.55 | L203: 646.25 | M203: 4.81645
A204: 194 | B204: HEIDELBERG | C204: 174.95 | D204: 176.13 | E204: 173.07 | F204: 171.18 | G204: 168.12 | H204: 178.02 | I204: 181.08 | J204: 182.97 | K204: 179.2 | L204: 174.25 | M204: 2.77795
A205: 195 | B205: HERITGFOOD | C205: 362.65 | D205: 358.83 | E205: 351.32 | F205: 339.98 | G205: 332.47 | H205: 370.17 | I205: 377.68 | J205: 389.02 | K205: 366.35 | L205: 347.5 | M205: 0.27146
A206: 196 | B206: HEROMOTOCO | C206: 2443.05 | D206: 2450.17 | E206: 2426.33 | F206: 2409.62 | G206: 2385.78 | H206: 2466.88 | I206: 2490.72 | J206: 2507.43 | K206: 2474 | L206: 2433.45 | M206: 4.43409
... 320 more rows

Sheet Bulk Deals
E6: Back To Main Page
A7: Subject : | B7: BULK DEAL | D7: =Main!B10 -> 2020-01-01
A9: Date | B9: Scrip code | C9: Scrip Name | D9: Client Name | E9: Buy / Sell | F9: Quantity Traded | G9: Trade Price / Wt.Avg.trade price | H9: Exchange
A10: 2019-12-31 | B10: 542057 | C10: BCPL | D10: ALIPTA PARAG MALDE . | E10: BUY | F10: 100,000 | G10: 40.70 | H10: BSE
A11: 2019-12-31 | B11: 542057 | C11: BCPL | D11: AMBE SECURITIES PRIVATE LIMITED | E11: SELL | F11: 100,000 | G11: 40.50 | H11: BSE
A12: 2019-12-31 | B12: 542057 | C12: BCPL | D12: MEHUL HASMUKH SHAH | E12: BUY | F12: 100,000 | G12: 40.5 | H12: BSE
A13: 2019-12-31 | B13: 542057 | C13: BCPL | D13: MEHUL HASMUKH SHAH | E13: SELL | F13: 100,000 | G13: 40.7 | H13: BSE
A14: 2019-12-31 | B14: 539097 | C14: HKG | D14: SAMRUDDHI COMMODITIES TRADING LIMITED | E14: SELL | F14: 20,000 | G14: 43.44 | H14: BSE
A15: 2019-12-31 | B15: 539679 | C15: KAPILRAJ | D15: B B COMMERCIAL LTD | E15: BUY | F15: 120,000 | G15: 4.51 | H15: BSE
A16: 2019-12-31 | B16: 539679 | C16: KAPILRAJ | D16: B B COMMERCIAL LTD | E16: SELL | F16: 120,000 | G16: 4.52 | H16: BSE
A17: 2019-12-31 | B17: 539679 | C17: KAPILRAJ | D17: MANJULABEN BHAVESHKUMAR RANGEE | E17: BUY | F17: 340,000 | G17: 4.53 | H17: BSE
A18: 2019-12-31 | B18: 539679 | C18: KAPILRAJ | D18: MANJULABEN BHAVESHKUMAR RANGEE | E18: SELL | F18: 340,000 | G18: 4.52 | H18: BSE
A19: 2019-12-31 | B19: 539679 | C19: KAPILRAJ | D19: NIRU DANAJIBHAI SUMERA | E19: BUY | F19: 100,000 | G19: 4.53 | H19: BSE
A20: 2019-12-31 | B20: 539679 | C20: KAPILRAJ | D20: NIRU DANAJIBHAI SUMERA | E20: SELL | F20: 100,000 | G20: 4.52 | H20: BSE
A21: 2019-12-31 | B21: 539679 | C21: KAPILRAJ | D21: SHIVA KUMAR | E21: BUY | F21: 50,000 | G21: 4.50 | H21: BSE
A22: 2019-12-31 | B22: 539679 | C22: KAPILRAJ | D22: BHARAT BHUSHAN | E22: BUY | F22: 150,000 | G22: 4.51 | H22: BSE
A23: 2019-12-31 | B23: 539679 | C23: KAPILRAJ | D23: SHIVA KUMAR | E23: SELL | F23: 50,000 | G23: 4.53 | H23: BSE
A24: 2019-12-31 | B24: 539679 | C24: KAPILRAJ | D24: BHARAT BHUSHAN | E24: SELL | F24: 150,000 | G24: 4.53 | H24: BSE
A25: 2019-12-31 | B25: 539679 | C25: KAPILRAJ | D25: PRADEEP NARENDRA BHATT | E25: BUY | F25: 100,000 | G25: 4.5 | H25: BSE
A26: 2019-12-31 | B26: 539679 | C26: KAPILRAJ | D26: PRADEEP NARENDRA BHATT | E26: SELL | F26: 100,000 | G26: 4.53 | H26: BSE
A27: 2019-12-31 | B27: 539679 | C27: KAPILRAJ | D27: REALSTEP VINIMAY PRIVATE LIMITED | E27: BUY | F27: 44,000 | G27: 4.53 | H27: BSE
A28: 2019-12-31 | B28: 539679 | C28: KAPILRAJ | D28: DINESH NAYAK | E28: BUY | F28: 48,000 | G28: 4.53 | H28: BSE
A29: 2019-12-31 | B29: 539679 | C29: KAPILRAJ | D29: ARTMAN DEALCOM PVT LTD | E29: BUY | F29: 55,000 | G29: 4.51 | H29: BSE
A30: 2019-12-31 | B30: 539679 | C30: KAPILRAJ | D30: NEXTEL GARMENTS PRIVATE LIMITED | E30: BUY | F30: 70,000 | G30: 4.52 | H30: BSE
A31: 2019-12-31 | B31: 539679 | C31: KAPILRAJ | D31: REALSTEP VINIMAY PRIVATE LIMITED | E31: SELL | F31: 44,000 | G31: 4.52 | H31: BSE
A32: 2019-12-31 | B32: 539679 | C32: KAPILRAJ | D32: DINESH NAYAK | E32: SELL | F32: 48,000 | G32: 4.52 | H32: BSE
A33: 2019-12-31 | B33: 539679 | C33: KAPILRAJ | D33: ARTMAN DEALCOM PVT LTD | E33: SELL | F33: 55,000 | G33: 4.52 | H33: BSE
A34: 2019-12-31 | B34: 539679 | C34: KAPILRAJ | D34: NEXTEL GARMENTS PRIVATE LIMITED | E34: SELL | F34: 70,000 | G34: 4.51 | H34: BSE
A35: 2019-12-31 | B35: 539679 | C35: KAPILRAJ | D35: MANJULABEN ARJUNBHAI PADHIYAR | E35: BUY | F35: 423,797 | G35: 4.52 | H35: BSE
A36: 2019-12-31 | B36: 539679 | C36: KAPILRAJ | D36: MANJULABEN ARJUNBHAI PADHIYAR | E36: SELL | F36: 421,998 | G36: 4.5 | H36: BSE
A37: 2019-12-31 | B37: 539679 | C37: KAPILRAJ | D37: DINESH AVADHESHSINGH THAKUR | E37: BUY | F37: 55,000 | G37: 4.53 | H37: BSE
A38: 2019-12-31 | B38: 539679 | C38: KAPILRAJ | D38: BADAMILAL BANSHILAL GARG | E38: BUY | F38: 300,000 | G38: 4.52 | H38: BSE
A39: 2019-12-31 | B39: 539679 | C39: KAPILRAJ | D39: DINESH AVADHESHSINGH THAKUR | E39: SELL | F39: 55,000 | G39: 4.52 | H39: BSE
A40: 2019-12-31 | B40: 539679 | C40: KAPILRAJ | D40: BADAMILAL BANSHILAL GARG | E40: SELL | F40: 324,481 | G40: 4.52 | H40: BSE
A41: 2019-12-31 | B41: 539599 | C41: KEL | D41: KHUSHBU SHAH | E41: BUY | F41: 58,000 | G41: 23 | H41: BSE
A42: 2019-12-31 | B42: 539599 | C42: KEL | D42: KHUSHBU SHAH | E42: SELL | F42: 11,000 | G42: 23.03 | H42: BSE
A43: 2019-12-31 | B43: 539599 | C43: KEL | D43: RAMESH BHAI LALA BHAI SOLANKI | E43: BUY | F43: 50,250 | G43: 22.92 | H43: BSE
A44: 2019-12-31 | B44: 539599 | C44: KEL | D44: RAMESH BHAI LALA BHAI SOLANKI | E44: SELL | F44: 50,250 | G44: 22.93 | H44: BSE
A45: 2019-12-31 | B45: 539599 | C45: KEL | D45: HIGH SPIRITS SALES AGENCIES PRIVATE LIMITED | E45: BUY | F45: 44,312 | G45: 23.01 | H45: BSE
A46: 2019-12-31 | B46: 539599 | C46: KEL | D46: HIGH SPIRITS SALES AGENCIES PRIVATE LIMITED | E46: SELL | F46: 11 | G46: 25.1 | H46: BSE
A47: 2019-12-31 | B47: 539599 | C47: KEL | D47: FRONEX ALLOY PRIVATE LIMITED | E47: SELL | F47: 100,000 | G47: 23 | H47: BSE
A48: 2019-12-31 | B48: 539599 | C48: KEL | D48: SANJAYBHAI PAPPUBHAI PARMAR | E48: BUY | F48: 50,250 | G48: 22.93 | H48: BSE
A49: 2019-12-31 | B49: 539599 | C49: KEL | D49: SANJAYBHAI PAPPUBHAI PARMAR | E49: SELL | F49: 50,250 | G49: 22.92 | H49: BSE
A50: 2019-12-31 | B50: 535387 | C50: LAKHOTIA | D50: INTENSIVE FINANCE PRIVATE LIMITED | E50: SELL | F50: 100,000 | G50: 8.84 | H50: BSE
A51: 2019-12-31 | B51: 535387 | C51: LAKHOTIA | D51: VAISHNO MEDIA GRAPHIX PRIVATE LIMITED | E51: BUY | F51: 100,000 | G51: 8.84 | H51: BSE
A52: 2019-12-31 | B52: 531357 | C52: MERMETL | D52: MAHESHNAHARMALSHAH (HUF) | E52: SELL | F52: 65,000 | G52: 0.97 | H52: BSE
A53: 2019-12-31 | B53: 531357 | C53: MERMETL | D53: JINAL PRATIK KABRA | E53: BUY | F53: 65,000 | G53: 0.97 | H53: BSE
A54: 2019-12-31 | B54: 540809 | C54: MRCEXIM | D54: SUSHIL KUMAR MISHRA | E54: BUY | F54: 168,000 | G54: 8.07 | H54: BSE
A55: 2019-12-31 | B55: 540809 | C55: MRCEXIM | D55: PARESH A GOHIL | E55: SELL | F55: 152,000 | G55: 8.07 | H55: BSE
A56: 2019-12-31 | B56: 540386 | C56: ONTIC | D56: MEHUL HASMUKH SHAH | E56: SELL | F56: 235,000 | G56: 12.25 | H56: BSE
A57: 2019-12-31 | B57: 540386 | C57: ONTIC | D57: AMBE SECURITIES PRIVATE LIMITED | E57: BUY | F57: 235,000 | G57: 12.25 | H57: BSE
A58: 2019-12-31 | B58: 539814 | C58: RADHEY | D58: CHINTAN S SHAH | E58: SELL | F58: 25,000 | G58: 25.95 | H58: BSE
A59: 2019-12-31 | B59: 541634 | C59: RAWEDGE | D59: NNM SECURITIES PVT LTD | E59: BUY | F59: 43,200 | G59: 59 | H59: BSE
A60: 2019-12-31 | B60: 541634 | C60: RAWEDGE | D60: NNM SECURITIES PVT LTD | E60: SELL | F60: 43,200 | G60: 59.25 | H60: BSE
A61: 2019-12-31 | B61: 541634 | C61: RAWEDGE | D61: ADITYA AGARWAL HUF | E61: BUY | F61: 43,200 | G61: 59.25 | H61: BSE
A62: 2019-12-31 | B62: 541634 | C62: RAWEDGE | D62: AJAY KUMAR AGARWAL | E62: SELL | F62: 43,200 | G62: 59 | H62: BSE
A63: 2019-12-31 | B63: 542725 | C63: SBC | D63: RIYAJ KHAN | E63: BUY | F63: 54,000 | G63: 31.34 | H63: BSE
A64: 2019-12-31 | B64: 542725 | C64: SBC | D64: RIYAJ KHAN | E64: SELL | F64: 12000 | G64: 31.4 | H64: BSE
A65: 2019-12-31 | B65: 542725 | C65: SBC | D65: SWETA AGRAWAL | E65: BUY | F65: 18,000 | G65: 31.4 | H65: BSE
A66: 2019-12-31 | B66: 542725 | C66: SBC | D66: SWETA AGRAWAL | E66: SELL | F66: 54,000 | G66: 31.35 | H66: BSE
A67: 2019-12-31 | B67: 531925 | C67: SHAQUAK | D67: SHRINATHEKNATHDEOKAR | E67: BUY | F67: 180,000 | G67: 0.44 | H67: BSE
A68: 2019-12-31 | B68: 531925 | C68: SHAQUAK | D68: DILIPMANOHARPACHANGRE | E68: SELL | F68: 325,760 | G68: 0.44 | H68: BSE
A69: 2019-12-31 | B69: 531962 | C69: SHREMETAL | D69: JINAL PRATIK KABRA | E69: BUY | F69: 51,500 | G69: 9.6 | H69: BSE
A70: 2019-12-31 | B70: 531962 | C70: SHREMETAL | D70: MAHESHNAHARMALSHAH (HUF) | E70: SELL | F70: 31,975 | G70: 9.6 | H70: BSE
A71: 2019-12-31 | B71: 502742 | C71: SINTEX | D71: VISTRA ITCL (INDIA) LIMITED | E71: SELL | F71: 14,200,000 | G71: 0.82 | H71: BSE
A72: 2019-12-31 | B72: 532070 | C72: SUPRBPA | D72: JIGNESH BALDEVBHAI SOLANKI | E72: SELL | F72: 27,900 | G72: 8.84 | H72: BSE
A73: 2019-12-31 | B73: 540108 | C73: TAHL | D73: NAVEEN GUPTA | E73: BUY | F73: 17,666 | G73: 22.45 | H73: BSE
A74: 2019-12-31 | B74: 540108 | C74: TAHL | D74: NAVEEN GUPTA | E74: SELL | F74: 32,641 | G74: 23.07 | H74: BSE
A75: 2019-12-31 | B75: 538607 | C75: TOYAMIND | D75: TARUNKUMAR LAXMANBHAI RAJPUT | E75: BUY | F75: 1,092,089 | G75: 1.59 | H75: BSE
A76: 2019-12-31 | B76: 538607 | C76: TOYAMIND | D76: TARUNKUMAR LAXMANBHAI RAJPUT | E76: SELL | F76: 11,718 | G76: 1.58 | H76: BSE
A77: 2019-12-31 | B77: 511764 | C77: UPASAFN | D77: KANCHAN DEVI | E77: BUY | F77: 24,279 | G77: 39.54 | H77: BSE
A78: 2019-12-31 | B78: 511764 | C78: UPASAFN | D78: SURESHCHAND SUDARSHAN | E78: SELL | F78: 22,500 | G78: 39.8 | H78: BSE
A79: 2019-12-31 | B79: 539222 | C79: VMV | D79: RASHMI BAJORIA | E79: SELL | F79: 30,000 | G79: 20.08 | H79: BSE
A80: 2019-12-31 | B80: 539222 | C80: VMV | D80: MANSI RAJESHKUMAR KAPADIA | E80: BUY | F80: 50,000 | G80: 19.75 | H80: BSE
A81: 2019-12-31 | B81: 539222 | C81: VMV | D81: DINGLE VINCOM PRIVATE LIMITED | E81: SELL | F81: 40,000 | G81: 19.75 | H81: BSE
A82: 2019-12-31 | B82: ASTRON | C82: Astron Paper Bord Mil Ltd | D82: SEARCE COSOURCING SERVICES PRIVATE LIMITED | E82: BUY | F82: 292,306 | G82: 40.04 | H82: NSE
A83: 2019-12-31 | B83: DCI | C83: DC Infotech and Comun Ltd | D83: SMARTNET INFOTECH & SERVICES PVT LTD | E83: BUY | F83: 90,000 | G83: 45.34 | H83: NSE
A84: 2019-12-31 | B84: DCI | C84: DC Infotech and Comun Ltd | D84: DDMY ENTERPRISE PRIVATE LIMITED | E84: BUY | F84: 30,000 | G84: 45.45 | H84: NSE
A85: 2019-12-31 | B85: GENESYS | C85: Genesys International Cor | D85: MANISH JETHALAL CHOPDA HUF | E85: BUY | F85: 190,816 | G85: 59.14 | H85: NSE
A86: 2019-12-31 | B86: JUMPNET | C86: Jump Networks Limited | D86: MALAV AJITBHAI MEHTA | E86: BUY | F86: 700,000 | G86: 57 | H86: NSE
A87: 2019-12-31 | B87: LINCOLN | C87: Lincoln Pharma Ltd | D87: BAKSHU TRADING PRIVATE LIMITED | E87: BUY | F87: 232,674 | G87: 213.79 | H87: NSE
A88: 2019-12-31 | B88: LINCOLN | C88: Lincoln Pharma Ltd | D88: PANGHAT BARTER PRIVATE LIMITED | E88: BUY | F88: 41,885 | G88: 205.52 | H88: NSE
A89: 2019-12-31 | B89: LINCOLN | C89: Lincoln Pharma Ltd | D89: CHANDARANA INTERMEDIARIES BROKERS PRIVATE LIMITED | E89: BUY | F89: 178,063 | G89: 209.01 | H89: NSE
A90: 2019-12-31 | B90: MERCATOR | C90: Mercator Limited | D90: ALPHA LEON ENTERPRISES LLP | E90: BUY | F90: 1,020,054 | G90: 0.65 | H90: NSE
A91: 2019-12-31 | B91: SIMPLEXINF | C91: Simplex Infrastructures L | D91: ANIRUDH DAMANI | E91: BUY | F91: 300,000 | G91: 33.65 | H91: NSE
A92: 2019-12-31 | B92: TALWGYM | C92: Talwalkars Lifestyles Ltd | D92: SANDEEP PRAMOD SHAH (HUF) | E92: BUY | F92: 161,500 | G92: 3.15 | H92: NSE
A93: 2019-12-31 | B93: TFCILTD | C93: Tourism Finance Corp | D93: THE INDIAMAN FUND MAURITIUS LIMITED | E93: BUY | F93: 2,488,013 | G93: 72.75 | H93: NSE
A94: 2019-12-31 | B94: CONTI | C94: Continental Seed Chem Ltd | D94: VIJAY PRAKASH GUPTA | E94: SELL | F94: 40,000 | G94: 28.2 | H94: NSE
A95: 2019-12-31 | B95: DCI | C95: DC Infotech and Comun Ltd | D95: RIKHAV SECURITIES LIMITED | E95: SELL | F95: 72,000 | G95: 45.29 | H95: NSE
A96: 2019-12-31 | B96: GENESYS | C96: Genesys International Cor | D96: MANISH JETHALAL CHOPDA | E96: SELL | F96: 190,200 | G96: 59.14 | H96: NSE
A97: 2019-12-31 | B97: LINCOLN | C97: Lincoln Pharma Ltd | D97: PANGHAT BARTER PRIVATE LIMITED | E97: SELL | F97: 125,954 | G97: 206.55 | H97: NSE
A98: 2019-12-31 | B98: LINCOLN | C98: Lincoln Pharma Ltd | D98: BAKSHU TRADING PRIVATE LIMITED | E98: SELL | F98: 232,674 | G98: 212.71 | H98: NSE
A99: 2019-12-31 | B99: LINCOLN | C99: Lincoln Pharma Ltd | D99: CHANDARANA INTERMEDIARIES BROKERS PRIVATE LIMITED | E99: SELL | F99: 172,817 | G99: 210.15 | H99: NSE
A100: 2019-12-31 | B100: MERCATOR | C100: Mercator Limited | D100: ALPHA LEON ENTERPRISES LLP | E100: SELL | F100: 1,617,738 | G100: 0.67 | H100: NSE
A101: 2019-12-31 | B101: MERCATOR | C101: Mercator Limited | D101: ARCADIA SHARE & STOCK BROKERS PVT. LTD. | E101: SELL | F101: 2300000 | G101: 0.66 | H101: NSE
A102: 2019-12-31 | B102: PRINCEPIPE | C102: Prince Pipes Fittings Ltd | D102: MORGAN STANLEY ASIA (SINGAPORE) PTE. | E102: SELL | F102: 657630 | G102: 160.52 | H102: NSE
A103: 2019-12-31 | B103: SANCO | C103: Sanco Industries Ltd. | D103: SANJAY GUPTA | E103: SELL | F103: 110000 | G103: 11.68 | H103: NSE
A104: 2019-12-31 | B104: SINTEX | C104: Sintex Industries Ltd. | D104: VISTRA ITCL (INDIA) LIMITED | E104: SELL | F104: 12082580 | G104: 0.87 | H104: NSE
A105: 2019-12-31 | B105: TALWGYM | C105: Talwalkars Lifestyles Ltd | D105: WOODSTOCK BROKING PRIVATE LIMITED | E105: SELL | F105: 161500 | G105: 3.15 | H105: NSE
A106: 2019-12-31 | B106: TFCILTD | C106: Tourism Finance Corp | D106: REDKITE CAPITAL PRIVATE LIMITED | E106: SELL | F106: 2491000 | G106: 72.75 | H106: NSE

Sheet Call Tracker (Equity & F&O)
M5: Back To Main Page
A6: Retail Research Technical Calls & Fundamental Performance Report for the month of December-2019
M7: =Main!B10 -> 2020-01-01
B8: Positional Call
A9: Sr.no | B9: Date | D9: Company | E9: Rec | F9: Rec Price | G9: Stop Loss*** | H9: Call Closed At | I9: Target | J9: Remark | K9: Profit / Loss per Share | L9: Gain / Loss % | M9: Status | N9: Closed Date | O9: NSE Closed Price
A10: 1 | B10: 2019-10-07 | D10: PIDILITIND | E10: Buy{} | F10: 1367.5 | G10: 1297 | H10: 1413.5 | I10: 1500-1520 | J10: Part Profit of Rs.46/- | K10: =H10-F10 -> 46 | L10: =K10/F10 -> 3.36% | M10: Successful | N10: 2019-10-31 | O10: =VLOOKUP(D10,Sheet2!A51:M1690,6,0) -> 1386.9 | R10: R
A11: 2 | B11: 2019-11-11 | D11: POWERGRID | E11: Buy{} | F11: 192 | G11: 183 | H11: 190 | I11: 208-212 | J11: Loss of Rs.2/- | K11: =H11-F11 -> -2 | L11: =K11/F11 -> -1.04% | M11: Unsuccessful | N11: 2019-12-11 | R11: R
A12: 3 | B12: 2019-11-14 | D12: HEIDELBERG | E12: Buy{} | F12: 186.5 | G12: 174 | H12: 194.5 | I12: 205-210 | J12: Part Profit of Rs.8/- | K12: =H12-F12 -> 8 | L12: =K12/F12 -> 4.29% | M12: Successful | N12: 2019-11-20 | O12: =VLOOKUP(D12,Sheet2!A71:M1710,6,0) -> 174.95 | R12: H
A13: 4 | B13: 2019-11-18 | D13: BAJAJ-AUTO | E13: Sell | F13: 3180-3200 | G13: 3356.7 | I13: 2900-2850 | J13: Open | O13: =VLOOKUP(D13,Sheet2!A74:M1713,6,0) -> 3185 | R13: R
A14: 5 | B14: 2019-11-18 | D14: THERMAX | E14: Buy | F14: 1030 | G14: 977 | H14: 1080 | I14: 1120-1140 | J14: Profit of Rs.50/- | K14: =H14-F14 -> 50 | L14: =K14/F14 -> 4.85% | M14: Successful | N14: 2019-12-31 | R14: H
A15: 6 | B15: 2019-11-20 | D15: BRITANNIA | E15: Buy | F15: 3075-3100 | G15: 2930 | I15: 3380-3420 | J15: Open | O15: =VLOOKUP(D15,Sheet2!A76:M1715,6,0) -> 3027.8 | R15: H
A16: 7 | B16: 2019-11-21 | D16: HINDUNILVR | E16: Buy | F16: 2020 | G16: 1917 | H16: 2082 | I16: 2200-2250 | J16: Part Profit of Rs.62/- | K16: =H16-F16 -> 62 | L16: =K16/F16 -> 3.07% | M16: Successful | N16: 2019-11-27 | O16: =VLOOKUP(D16,Sheet2!A77:M1716,6,0) -> 1923 | R16: H
A17: 8 | B17: 2019-11-22 | D17: GODREJPROP | E17: Buy | F17: 885 | G17: 837.7 | H17: 932.5 | I17: 965-985 | J17: Profit of Rs.47.50/- | K17: =H17-F17 -> 47.5 | L17: =K17/F17 -> 5.37% | M17: Successful | N17: 2019-12-12 | R17: R
A18: 9 | B18: 2019-11-27 | D18: LT | E18: Buy | F18: 1330-1340 | G18: 1270 | I18: 1450-1500 | J18: Open | O18: =VLOOKUP(D18,Sheet2!A80:M1719,6,0) -> 1298.2 | R18: H
A19: 10 | B19: 2019-12-02 | D19: TCS | E19: Buy | F19: 2030 | G19: 1895 | H19: 2110 | I19: 2200-2250 | J19: Profit of Rs.80/- | K19: =H19-F19 -> 80 | L19: =K19/F19 -> 3.94% | M19: Successful | N19: 2019-12-16 | R19: H
A20: 11 | B20: 2019-12-02 | D20: HAVELLS | E20: Buy | F20: 662-667 | G20: 632.7 | I20: 725-735 | J20: Open | O20: =VLOOKUP(D20,Sheet2!A82:M1721,6,0) -> 647.15 | R20: R
A21: 12 | B21: 2019-12-06 | D21: ONGC | E21: Buy | F21: 127-128 | G21: 122 | I21: 140 | J21: Open | O21: =VLOOKUP(D21,Sheet2!A83:M1722,6,0) -> 128.8 | R21: H
A22: 13 | B22: 2019-12-09 | D22: INDUSINDBK | E22: Buy | F22: 1467.5 | G22: 1411 | H22: 1400 | I22: 1570-1590 | J22: Loss of Rs.67.50/- | K22: =H22-F22 -> -67.5 | L22: =K22/F22 -> -4.60% | M22: Unsuccessful | N22: 2019-12-11 | R22: R
A23: 14 | B23: 2019-12-12 | D23: HCLTECH | E23: Buy | F23: 543 | G23: 515 | H23: 569 | I23: 590-600 | J23: Profit of Rs.26/- | K23: 26 | L23: 4.79% | M23: Successful | N23: 2019-12-19 | R23: H
A24: 15 | B24: 2019-12-12 | D24: SUDARSCHEM | E24: Buy | F24: 392.5 | G24: 368 | H24: 417.5 | I24: 435-440 | J24: Profit of Rs.25/- | K24: 25 | L24: 6.37% | M24: Successful | N24: 2019-12-31 | R24: H
A25: 16 | B25: 2019-12-17 | D25: VENKEYS | E25: Buy | F25: 1720 | G25: 1638 | H25: 1805 | I25: 1880-1900 | J25: Profit of Rs.85/- | K25: =H25-F25 -> 85 | L25: =K25/F25 -> 4.94% | M25: Successful | N25: 2019-12-19 | R25: R
A26: 17 | B26: 2019-12-17 | D26: COALINDIA | E26: Buy | F26: 195 | G26: 184.6 | H26: 205 | I26: 210-215 | J26: Profit of Rs.10/- | K26: 10 | L26: 5.13% | M26: Successful | N26: 2019-12-27 | R26: R
A27: 18 | B27: 2019-12-20 | D27: NILKAMAL | E27: Buy | F27: 1253 | G27: 1190 | H27: 1340 | I27: 1360-1380 | J27: Profit of Rs.87/- | K27: 87 | L27: 6.94% | M27: Successful | N27: 2019-12-31 | R27: R
A28: 19 | B28: 2019-12-23 | D28: SUPREMEIND | E28: Buy | F28: 1110 | G28: 1050 | H28: 1177.5 | I28: 1180-1220 | J28: Profit of Rs.67.5/- | K28: =H28-F28 -> 67.5 | L28: =K28/F28 -> 6.08% | M28: Successful | N28: 2019-12-31 | R28: H
A29: 20 | B29: 2019-12-23 | D29: CANBK | E29: Sell | F29: 227 | G29: 238.3 | H29: 220 | I29: 216-213 | J29: Part Profit of Rs.7/- | K29: =F29-H29 -> 7 | L29: =K29/F29 -> 3.08% | M29: Successful | N29: 2019-12-26 | O29: =VLOOKUP(D29,Sheet2!A88:M1727,6,0) -> 221.35 | R29: R
A30: 21 | B30: 2019-12-24 | D30: SBIN | E30: Sell | F30: 333-335 | G30: 351.3 | I30: 305-300 | J30: Open | O30: =VLOOKUP(D30,Sheet2!A92:M1731,6,0) -> 333.75 | R30: R
A31: 22 | B31: 2019-12-30 | D31: EIHOTEL | E31: Buy | F31: 139-141 | G31: 132 | I31: 152-156 | J31: Open | O31: =VLOOKUP(D31,Sheet2!A93:M1732,6,0) -> 142.65
A36: CLBS = Closing Basis ***
A37: Dividend adjusted <> | F37: Reinitiated $
A38: Part book {} | F38: Revised stoploss #
B40: Momentum Call
A41: Sr.no | B41: Date | D41: Company | E41: Rec | F41: Rec Price | G41: Stop Loss | H41: Call Closed At | I41: Target | J41: Remark | K41: Profit / Loss per Share/Lot | L41: Gain / Loss % | M41: Gain / Loss per Lot | N41: Lot | O41: Status | P41: Closed Date
A42: 1 | B42: 2019-11-19 | D42: MARICO | E42: Buy | F42: 356 | G42: 344.4 | H42: 342 | I42: 375-380 | J42: Loss of Rs.14/- | K42: =H42-F42 -> -14 | L42: =K42/F42 -> -3.93% | O42: Unsuccessful | P42: 2019-12-06 | R42: R
A43: 2 | B43: 2019-11-25 | D43: ONGC | E43: Buy | F43: 131.5 | G43: 127.3 | H43: 127.3 | I43: 140 | J43: Loss of Rs.4.20/- | K43: =H43-F43 -> -4.2 | L43: =K43/F43 -> -3.19% | O43: Unsuccessful | P43: 2019-12-03 | R43: R
A44: 3 | B44: 2019-11-26 | D44: SUNTV | E44: Buy | F44: 489 | G44: 472.7 | H44: 469.5 | I44: 513-518 | J44: Loss of Rs.19.5/- | K44: =H44-F44 -> -19.5 | L44: =K44/F44 -> -3.99% | O44: Unsuccessful | P44: 2019-12-01 | R44: R
A45: 4 | B45: 2019-11-26 | D45: COLPAL | E45: Buy | F45: 1500 | G45: 1465 | H45: 1450 | I45: 1560-1580 | J45: Loss of Rs.50/- | K45: =H45-F45 -> -50 | L45: =K45/F45 -> -3.33% | O45: Unsuccessful | P45: 2019-12-01 | R45: H
A46: 5 | B46: 2019-11-28 | D46: NIITTECH | E46: Buy | F46: 1494 | G46: 1448.7 | H46: 1445 | I46: 1565-1585 | J46: Loss of Rs.49/- | K46: =H46-F46 -> -49 | L46: -3.28% | O46: Unsuccessful | P46: 2019-12-03 | R46: R
A47: 6 | B47: 2019-11-28 | D47: FEDERALBNK | E47: Sell | F47: 90.25 | G47: 92.5 | H47: 88.1 | I47: 85 | J47: Profit of Rs.2.15/- | K47: =F47-H47 -> 2.15 | L47: =K47/F47 -> 2.38% | O47: Successful | P47: 2019-12-01 | R47: H
A48: 7 | B48: 2019-11-28 | D48: HDFCBANK DEC FUT | E48: Buy | F48: 1271 | G48: 1249 | H48: 1247 | I48: 1300-1310 | J48: Loss of Rs.24/- | K48: =H48-F48 -> -24 | M48: =N48*K48 -> -12000 | N48: 500 | O48: Unsuccessful | P48: 2019-12-04 | R48: N
A49: 8 | B49: 2019-11-29 | D49: BANKBARODA | E49: Buy | F49: 106.5 | G49: 103 | H49: 103 | I49: 111-113 | J49: Loss of Rs.3.5/- | K49: =H49-F49 -> -3.5 | L49: =K49/F49 -> -3.29% | O49: Unsuccessful | P49: 2019-12-03 | R49: H
A50: 9 | B50: 2019-11-29 | D50: GRASIM DEC FUT | E50: Buy | F50: 796 | G50: 779 | H50: 817 | I50: 830 | J50: Profit of Rs.21/- | K50: =H50-F50 -> 21 | M50: =N50*K50 -> 15750 | N50: 750 | O50: Successful | P50: 2019-12-01 | R50: N
A51: 10 | B51: 2019-11-29 | D51: CHAMBLFERT | E51: Buy | F51: 149.5 | G51: 144 | H51: 145 | I51: 157-160 | J51: Loss of Rs.4.5/- | K51: =H51-F51 -> -4.5 | L51: =K51/F51 -> -3.01% | O51: Unsuccessful | P51: 2019-12-10 | R51: H
A52: 11 | B52: 2019-11-29 | D52: RELIANCE | E52: Sell | F52: 1557.5 | G52: 1603 | H52: 1603 | I52: 1475-1465 | J52: Loss of Rs.45.5/- | K52: =F52-H52 -> -45.5 | L52: =K52/F52 -> -2.92% | O52: Unsuccessful | P52: 2019-12-01 | R52: R
A53: 12 | B53: 2019-12-02 | D53: MARUTI DEC FUT | E53: Buy | F53: 7290 | G53: 7140 | H53: 7130 | I53: 7600 | J53: Loss of Rs.160/- | K53: =H53-F53 -> -160 | M53: =N53*K53 -> -12000 | N53: 75 | O53: Unsuccessful | P53: 2019-12-03 | R53: N
A54: 13 | B54: 2019-12-02 | D54: BIOCON | E54: Sell | F54: 286 | G54: 294.7 | H54: 292 | I54: 272-268 | J54: Loss of Rs.6/- | K54: =F54-H54 -> -6 | L54: =K54/F54 -> -2.10% | O54: Unsuccessful | P54: 2019-12-03 | R54: R
A55: 14 | B55: 2019-12-02 | D55: GLENMARK | E55: Buy | F55: 326 | G55: 318 | H55: 335.5 | I55: 340-345 | J55: Profit of Rs.9.50/- | K55: =H55-F55 -> 9.5 | L55: =K55/F55 -> 2.91% | O55: Successful | P55: 2019-12-01 | R55: H
A56: 15 | B56: 2019-12-02 | D56: TORNTPOWER | E56: Buy | F56: 277 | G56: 269 | H56: 283.5 | I56: 290-295 | J56: Profit of Rs.6.50/- | K56: 6.5 | L56: =K56/F56 -> 2.35% | O56: Successful | P56: 2019-12-20 | R56: H
A57: 16 | B57: 2019-12-02 | D57: TATACHEM DEC FUT | E57: Buy | F57: 671 | G57: 656 | H57: 657.5 | I57: 700 | J57: Loss of Rs.13.50/- | K57: -13.5 | M57: =N57*K57 -> -12150 | N57: 900 | O57: Unsuccessful | P57: 2019-12-10 | R57: N
A58: 17 | B58: 2019-12-02 | D58: TATAELXSI DEC FUT | E58: Buy | F58: 787.5 | G58: 764.6 | H58: 798 | I58: 820-825 | J58: Profit of Rs.10.5/- | K58: 10.5 | M58: =N58*K58 -> 6300 | N58: 600 | O58: Successful | P58: 2019-12-04 | R58: R
A59: 18 | B59: 2019-12-03 | D59: POWERGRID | E59: Buy | F59: 190.5 | G59: 184 | H59: 183.5 | I59: 200-205 | J59: Loss of Rs.7/- | K59: -7 | L59: =K59/F59 -> -3.67% | O59: Unsuccessful | P59: 2019-12-10 | R59: H
A60: 19 | B60: 2019-12-03 | D60: ITC DEC FUT | E60: Buy | F60: 246.5 | G60: 240 | H60: 241.5 | I60: 256 | J60: Loss of Rs.5/- | K60: -5 | M60: =N60*K60 -> -12000 | N60: 2400 | O60: Unsuccessful | P60: 2019-12-09 | R60: H
A61: 20 | B61: 2019-12-03 | D61: HDFCLIFE | E61: Buy | F61: 580 | G61: 562.6 | H61: 595 | I61: 610-620 | J61: Profit of Rs.15/- | K61: =H61-F61 -> 15 | L61: =K61/F61 -> 2.59% | O61: Successful | P61: 2019-12-13 | R61: R
A62: 21 | B62: 2019-12-03 | D62: VIPIND | E62: Buy | F62: 430 | G62: 418.7 | H62: 419 | I62: 452-457 | J62: Loss of Rs.11/- | K62: -11 | L62: -2.56% | O62: Unsuccessful | P62: 2019-12-23 | R62: R
A63: 22 | B63: 2019-12-04 | D63: APOLLOHOSP | E63: Buy | F63: 1415 | G63: 1374 | H63: 1443 | I63: 1480-1500 | J63: Profit of Rs.28/- | K63: =H63-F63 -> 28 | L63: =K63/F63 -> 1.98% | O63: Successful | P63: 2019-12-04 | R63: R
A64: 23 | B64: 2019-12-04 | D64: GLENMARK | E64: Buy | F64: 325 | G64: 315 | H64: 333.5 | I64: 340-345 | J64: Profit of Rs.8.50/- | K64: 8.5 | L64: 2.62% | O64: Successful | P64: 2019-12-06 | R64: H
A65: 24 | B65: 2019-12-04 | D65: CESC DEC FUT | E65: Buy | F65: 733 | G65: 718 | H65: 742 | I65: 750-755 | J65: Profit of Rs.9/- | K65: 9 | M65: =N65*K65 -> 7200 | N65: 800 | O65: Successful | P65: 2019-12-04 | R65: N
A66: 25 | B66: 2019-12-04 | D66: LUPIN | E66: Buy | F66: 777.5 | G66: 758 | H66: 789 | I66: 810-820 | J66: Profit of Rs.11.50/- | K66: 11.5 | L66: =K66/F66 -> 1.48% | O66: Successful | P66: 2019-12-04 | R66: H
A67: 26 | B67: 2019-12-04 | D67: ASIANPAINT DEC FUT | E67: Buy | F67: 1736 | G67: 1717.1 | H67: 1747 | I67: 1760-1770 | J67: Profit of Rs.11/- | K67: 11 | M67: =N67*K67 -> 6600 | N67: 600 | O67: Successful | P67: 2019-12-06 | R67: R
A68: 27 | B68: 2019-12-04 | D68: DRREDDY DEC FUT | E68: Buy | F68: 2883 | G68: 2830 | H68: 2917.5 | I68: 2980-3000 | J68: Profit of Rs.34.50/- | K68: 34.5 | M68: =N68*K68 -> 8625 | N68: 250 | O68: Successful | P68: 2019-12-06 | R68: R
A69: 28 | B69: 2019-12-04 | D69: RELIANCE DEC FUT | E69: Buy | F69: 1559.5 | G69: 1438.7 | H69: 1579 | I69: 1600 | J69: Profit of Rs.19.50/- | K69: 19.5 | M69: =N69*K69 -> 9750 | N69: 500 | O69: Successful | P69: 2019-12-05 | R69: R
A70: 29 | B70: 2019-12-04 | D70: TVSMOTOR DEC FUT | E70: Buy | F70: 440 | G70: 429 | H70: 447 | I70: 460 | J70: Profit of Rs.7/- | K70: 7 | M70: =N70*K70 -> 7700 | N70: 1100 | O70: Successful | P70: 2019-12-04 | R70: H
A71: 30 | B71: 2019-12-04 | D71: EXIDEIND DEC FUT | E71: Buy | F71: 188.5 | G71: 183 | H71: 183.5 | I71: 198 | J71: Loss of Rs.5/- | K71: -5 | M71: =N71*K71 -> -12000 | N71: 2400 | O71: Unsuccessful | P71: 2019-12-06 | R71: N
A72: 31 | B72: 2019-12-04 | D72: RAMCOCEM | E72: Buy | F72: 784.5 | G72: 767.7 | H72: 758.5 | I72: 810-820 | J72: Loss of Rs.26/- | K72: =H72-F72 -> -26 | L72: =K72/F72 -> -3.31% | O72: Unsuccessful | P72: 2019-12-20 | R72: R
A73: 32 | B73: 2019-12-04 | D73: COLPAL DEC FUT | E73: Buy | F73: 1461 | G73: 1445 | H73: 1471 | I73: 1490 | J73: Profit of Rs.10/- | K73: =H73-F73 -> 10 | M73: =N73*K73 -> 7000 | N73: 700 | O73: Successful | P73: 2019-12-05 | R73: N
A74: 33 | B74: 2019-12-04 | D74: MOTHERSUMI | E74: Sell | F74: 133.25 | G74: 137 | H74: 130.25 | I74: 125 | J74: Profit of Rs.3/- | K74: =F74-H74 -> 3 | L74: =K74/F74 -> 2.25% | O74: Successful | P74: 2019-12-05 | R74: R
A75: 34 | B75: 2019-12-05 | D75: UBL | E75: Buy | F75: 1225 | G75: 1190 | H75: 1250 | I75: 1280-1300 | J75: Profit of Rs.25/- | K75: =H75-F75 -> 25 | L75: 2.04% | O75: Successful | P75: 2019-12-20 | R75: H
A76: 35 | B76: 2019-12-05 | D76: CESC DEC FUT | E76: Buy | F76: 738 | G76: 723 | H76: 723 | I76: 760-765 | J76: Loss of Rs.15/- | K76: =H76-F76 -> -15 | M76: =N76*K76 -> -12000 | N76: 800 | O76: Unsuccessful | P76: 2019-12-06 | R76: N
A77: 36 | B77: 2019-12-06 | D77: HCLTECH | E77: Buy | F77: 563 | G77: 547 | H77: 547.5 | I77: 590-600 | J77: Loss of Rs.15.50/- | K77: =H77-F77 -> -15.5 | L77: =K77/F77 -> -2.75% | O77: Unsuccessful | P77: 2019-12-10 | R77: H
A78: 37 | B78: 2019-12-06 | D78: ACC DEC FUT | E78: Buy | F78: 1492 | G78: 1462 | H78: 1464 | I78: 1540-1560 | J78: Loss of Rs.28/- | K78: =H78-F78 -> -28 | M78: =N78*K78 -> -11200 | N78: 400 | O78: Unsuccessful | P78: 2019-12-10 | R78: N
A79: 39 | B79: 2019-12-09 | D79: PNB | E79: Sell | F79: 61.25 | G79: 63 | H79: 60 | I79: 58 | J79: Profit of Rs.1.25/- | K79: =F79-H79 -> 1.25 | L79: =K79/F79 -> 2.04% | O79: Successful | P79: 2019-12-10 | R79: H
A80: 40 | B80: 2019-12-09 | D80: COLPAL DEC FUT | E80: Buy | F80: 1468.5 | G80: 1454 | H80: 1478.5 | I80: 1490 | J80: Profit of Rs.10/- | K80: =H80-F80 -> 10 | M80: =N80*K80 -> 7000 | N80: 700 | O80: Successful | P80: 2019-12-10 | R80: N
A81: 41 | B81: 2019-12-09 | D81: TVSMOTOR DEC FUT | E81: Buy | F81: 440.5 | G81: 428 | H81: 428 | I81: 460 | J81: Loss of Rs.12.50/- | K81: =H81-F81 -> -12.5 | M81: =N81*K81 -> -12500 | N81: 1000 | O81: Unsuccessful | P81: 2019-12-11 | R81: N
A82: 42 | B82: 2019-12-10 | D82: APOLLOTYRE | E82: Buy | F82: 169 | G82: 163.7 | H82: 163 | I82: 180 | J82: Loss of Rs.6/- | K82: =H82-F82 -> -6 | L82: =K82/F82 -> -3.55% | O82: Unsuccessful | P82: 2019-12-10 | R82: R
A83: 43 | B83: 2019-12-10 | D83: COLPAL DEC FUT | E83: Buy | F83: 1462 | G83: 1446 | H83: 1474 | I83: 1480 | J83: Profit of Rs.12/- | K83: =H83-F83 -> 12 | M83: =N83*K83 -> 8400 | N83: 700 | O83: Successful | P83: 2019-12-11 | R83: R
A84: 44 | B84: 2019-12-11 | D84: DLF | E84: Sell | F84: 220.5 | G84: 226.5 | H84: 225.5 | I84: 210-208 | J84: Loss of Rs.5/- | K84: =F84-H84 -> -5 | L84: =K84/F84 -> -2.27% | O84: Unsuccessful | P84: 2019-12-11 | R84: H
A85: 45 | B85: 2019-12-11 | D85: ACC | E85: Buy | F85: 1409 | G85: 1370 | H85: 1442.5 | I85: 1470-1490 | J85: Profit of Rs.33.5/- | K85: =H85-F85 -> 33.5 | L85: 2.38% | O85: Successful | P85: 2019-12-13 | R85: H
A86: 46 | B86: 2019-12-11 | D86: APOLLOHOSP DEC FUT | E86: Buy | F86: 1388 | G86: 1362 | H86: 1405 | I86: 1430 | J86: Profit of Rs.17/- | K86: =H86-F86 -> 17 | M86: =N86*K86 -> 8500 | N86: 500 | O86: Successful | P86: 2019-12-12 | R86: N
A87: 47 | B87: 2019-12-12 | D87: BHARATFORG DEC FUT | E87: Buy | F87: 439.5 | G87: 429 | H87: 447 | I87: 460 | J87: Profit of Rs.7.50/- | K87: =H87-F87 -> 7.5 | M87: =N87*K87 -> 9000 | N87: 1200 | O87: Successful | P87: 2019-12-12 | R87: N
A88: 48 | B88: 2019-12-12 | D88: MARICO | E88: Buy | F88: 334 | G88: 324 | H88: 340.5 | I88: 350-355 | J88: Profit of Rs.6.5/- | K88: =H88-F88 -> 6.5 | L88: =K88/F88 -> 1.95% | O88: Successful | P88: 2019-12-27 | R88: H
A89: 49 | B89: 2019-12-12 | D89: TVSMOTOR | E89: Buy | F89: 441 | G89: 429 | H89: 450 | I89: 461-465 | J89: Profit of Rs.9/- | K89: =H89-F89 -> 9 | L89: =K89/F89 -> 2.04% | O89: Successful | P89: 2019-12-13 | R89: R
A90: 50 | B90: 2019-12-12 | D90: HINDALCO | E90: Sell | F90: 203.5 | G90: 210.3 | H90: 208 | I90: 193-190 | J90: Loss of Rs.4.5/- | K90: =F90-H90 -> -4.5 | L90: -2.21% | O90: Unsuccessful | P90: 2019-12-13 | R90: R
A91: 51 | B91: 2019-12-12 | D91: INDUSINDBK | E91: Buy | F91: 1423 | G91: 1377.7 | H91: 1451 | I91: 1500-1520 | J91: Profit of Rs.28/- | K91: =H91-F91 -> 28 | L91: =K91/F91 -> 1.97% | O91: Successful | P91: 2019-12-12 | R91: R
A92: 52 | B92: 2019-12-12 | D92: NIITTECH DEC FUT | E92: Buy | F92: 1484 | G92: 1450 | H92: 1504 | I92: 1530-1540 | J92: Profit of Rs.20/- | K92: =H92-F92 -> 20 | M92: =N92*K92 -> 7500 | N92: 375 | O92: Successful | P92: 2019-12-16 | R92: N
A93: 53 | B93: 2019-12-12 | D93: HINDUNILVR DEC FUT | E93: Buy | F93: 2015 | G93: 1975 | H93: 1978 | I93: 2060-2080 | J93: Loss of Rs.37/- | K93: =H93-F93 -> -37 | M93: =N93*K93 -> -11100 | N93: 300 | O93: Unsuccessful | P93: 2019-12-16 | R93: N
A94: 54 | B94: 2019-12-12 | D94: MCDOWELL-N DEC FUT | E94: Buy | F94: 588 | G94: 578 | H94: 594.5 | I94: 605-610 | J94: Profit of Rs.6.50/- | K94: =H94-F94 -> 6.5 | M94: =N94*K94 -> 8125 | N94: 1250 | O94: Successful | P94: 2019-12-12 | R94: H
A95: 55 | B95: 2019-12-13 | D95: NIFTY DEC FUT | E95: Sell | F95: 12065 | G95: 12180 | H95: 12180 | I95: 11800 | J95: Loss of Rs.115/- | K95: =F95-H95 -> -115 | M95: =N95*K95 -> -8625 | N95: 75 | O95: Unsuccessful | P95: 2019-12-17 | R95: R
A96: 56 | B96: 2019-12-13 | D96: COLPAL DEC FUT | E96: Buy | F96: 1478.5 | G96: 1460 | H96: 1489 | I96: 1530 | J96: Profit of Rs.10.50/- | K96: =H96-F96 -> 10.5 | M96: =N96*K96 -> 7350 | N96: 700 | O96: Successful | P96: 2019-12-16 | R96: N
A97: 57 | B97: 2019-12-13 | D97: BIOCON | E97: Sell | F97: 293 | G97: 302.3 | H97: 286.5 | I97: 278-275 | J97: Profit of Rs.6/- | K97: =F97-H97 -> 6.5 | L97: =K97/F97 -> 2.22% | O97: Successful | P97: 2019-12-23 | R97: R
A98: 58 | B98: 2019-12-16 | D98: ACC | E98: Buy | F98: 1434 | G98: 1380 | H98: 1465 | I98: 1500-1510 | J98: Profit of Rs.31/- | K98: =H98-F98 -> 31 | L98: =K98/F98 -> 2.16% | O98: Successful | P98: 2019-12-17 | R98: H
A99: 59 | B99: 2019-12-16 | D99: COLPAL DEC FUT | E99: Buy | F99: 1471 | G99: 1455 | H99: 1482 | I99: 1510 | J99: Profit of Rs.11/- | K99: 11 | M99: =N99*K99 -> 7700 | N99: 700 | O99: Successful | P99: 2019-12-17 | R99: N
A100: 60 | B100: 2019-12-17 | D100: ADANIPORTS | E100: Buy | F100: 368 | G100: 356 | H100: 375.5 | I100: 385-390 | J100: Profit of Rs.7.5/- | K100: 7.5 | L100: =K100/F100 -> 2.04% | O100: Successful | P100: 2019-12-18 | R100: R
A101: 61 | B101: 2019-12-17 | D101: PIDILITIND DEC FUT | E101: Buy | F101: 1324 | G101: 1300 | H101: 1338 | I101: 1365 | J101: Profit of Rs.14/- | K101: 14 | M101: =N101*K101 -> 7000 | N101: 500 | O101: Successful | P101: 2019-12-17 | R101: R
A102: 62 | B102: 2019-12-17 | D102: ASIANPAINT DEC FUT | E102: Buy | F102: 1738 | G102: 1718 | H102: 1749 | I102: 1775 | J102: Profit of Rs.11/- | K102: 11 | M102: =N102*K102 -> 6600 | N102: 600 | O102: Successful | P102: 2019-12-17 | R102: N
A103: 63 | B103: 2019-12-17 | D103: HAVELLS DEC FUT | E103: Buy | F103: 648.5 | G103: 636 | H103: 655 | I103: 670 | J103: Profit of Rs.6.5/- | K103: 6.5 | M103: =N103*K103 -> 7800 | N103: 1200 | O103: Successful | P103: 2019-12-20 | R103: N
A104: 64 | B104: 2019-12-17 | D104: CENTURYTEX DEC FUT | E104: Sell | F104: 495 | G104: 511 | H104: 483.5 | I104: 460 | J104: Profit of Rs.11.5/- | K104: =F104-H104 -> 11.5 | M104: =N104*K104 -> 6900 | N104: 600 | O104: Successful | P104: 2019-12-18 | R104: R
A105: 62 | B105: 2019-12-18 | D105: ASIANPAINT DEC FUT | E105: Buy | F105: 1738 | G105: 1718 | H105: 1750 | I105: 1775 | J105: Profit of Rs.12/- | K105: =H105-F105 -> 12 | M105: =N105*K105 -> 7200 | N105: 600 | O105: Successful | P105: 2019-12-18 | R105: N
A106: 66 | B106: 2019-12-18 | D106: MCDOWELL-N | E106: Buy | F106: 575.5 | G106: 555 | H106: 587.5 | I106: 600-620 | J106: Profit of Rs.12/- | K106: =H106-F106 -> 12 | L106: =K106/F106 -> 2.09% | O106: Successful | P106: 2019-12-18 | R106: H
A107: 67 | B107: 2019-12-18 | D107: ESCORTS DEC FUT | E107: Buy | F107: 612.5 | G107: 601 | H107: 619.5 | I107: 603 | J107: Profit of Rs.7/- | K107: =H107-F107 -> 7 | M107: =N107*K107 -> 7700 | N107: 1100 | O107: Successful | P107: 2019-12-19 | R107: R
A108: 68 | B108: 2019-12-18 | D108: TATACHEM DEC FUT | E108: Buy | F108: 651 | G108: 638 | H108: 643 | I108: 670 | J108: Loss of Rs.8/- | K108: =H108-F108 -> -8 | M108: =N108*K108 -> -7200 | N108: 900 | O108: Unsuccessful | P108: 2019-12-18 | R108: N
A109: 69 | B109: 2019-12-19 | D109: JSWSTEEL DEC FUT | E109: Sell | F109: 266.5 | G109: 272.5 | H109: 270 | I109: 255-252 | J109: Loss of Rs.3.50/- | K109: =F109-H109 -> -3.5 | M109: =N109*K109 -> -7000 | N109: 2000 | O109: Unsuccessful | P109: 2019-12-23 | R109: R
A110: 70 | B110: 2019-12-19 | D110: CESC DEC FUT | E110: Buy | F110: 735.5 | G110: 721 | H110: 745 | I110: 760 | J110: Profit of Rs.9.5/- | K110: =H110-F110 -> 9.5 | M110: =N110*K110 -> 7600 | N110: 800 | O110: Successful | P110: 2019-12-20 | R110: N
A111: 71 | B111: 2019-12-19 | D111: CENTURYTEX DEC FUT | E111: Sell | F111: 498 | G111: 517 | H111: 487 | I111: 460 | J111: Profit of Rs.11/- | K111: =F111-H111 -> 11 | M111: =N111*K111 -> 6600 | N111: 600 | O111: Successful | P111: 2019-12-19 | R111: R
A112: 72 | B112: 2019-12-19 | D112: RELIANCE | E112: Sell | F112: 1607.5 | G112: 1652 | H112: 1562.5 | I112: 1540-1520 | J112: Profit of Rs.45/- | K112: =F112-H112 -> 45 | L112: =K112/F112 -> 2.80% | O112: Successful | P112: 2019-12-23 | R112: H
A113: 73 | B113: 2019-12-19 | D113: FINPIPE | E113: Buy | F113: 545-550 | G113: 529 | I113: 590-600 | J113: Open | R113: H
A114: 74 | B114: 2019-12-20 | D114: LUPIN DEC FUT | E114: Sell | F114: 770 | G114: 786 | H114: 759 | I114: 725 | J114: Profit of Rs.11/- | K114: =F114-H114 -> 11 | M114: =N114*K114 -> 7700 | N114: 700 | O114: Successful | P114: 2019-12-23 | R114: R
A115: 75 | B115: 2019-12-20 | D115: ACC | E115: Buy | F115: 1435.5 | G115: 1390 | H115: 1467 | I115: 1480-1500 | J115: Profit of Rs.31.50/- | K115: =H115-F115 -> 31.5 | L115: =K115/F115 -> 2.19% | O115: Successful | P115: 2019-12-23 | R115: H
A116: 76 | B116: 2019-12-20 | D116: HINDALCO | E116: Sell | F116: 218 | G116: 224 | H116: 213.5 | I116: 210-208 | J116: Profit of Rs.4.50/- | K116: =F116-H116 -> 4.5 | L116: =K116/F116 -> 2.06% | O116: Successful | P116: 2019-12-23 | R116: H
A117: 77 | B117: 2019-12-23 | D117: RALLIS | E117: Buy | F117: 168-170 | G117: 164 | I117: 180-182 | J117: Open | R117: H
A118: 78 | B118: 2019-12-23 | D118: HEROMOTOCO JAN FUT | E118: Buy | F118: 2400 | G118: 2350 | H118: 2437.5 | I118: 2500 | J118: Profit of Rs.37.50/- | K118: =H118-F118 -> 37.5 | M118: =N118*K118 -> 7500 | N118: 200 | O118: Successful | P118: 2019-12-23 | R118: N
A119: 79 | B119: 2019-12-23 | D119: MOTHERSUMI | E119: Sell | F119: 147-148 | G119: 152.3 | I119: 140-138 | J119: Open | R119: R
A120: 80 | B120: 2019-12-23 | D120: M&M JAN FUT | E120: Buy | F120: 534-536 | G120: 522 | I120: 560 | J120: Open | R120: N
A121: 81 | B121: 2019-12-23 | D121: JUBLFOOD JAN FUT | E121: Buy | F121: 1574 | G121: 1550 | H121: 1590 | I121: 1620 | J121: Profit of Rs.16/- | K121: =H121-F121 -> 16 | M121: =N121*K121 -> 8000 | N121: 500 | O121: Successful | P121: 2019-12-24 | R121: N
A122: 82 | B122: 2019-12-23 | D122: COLPAL JAN FUT | E122: Buy | F122: 1477 | G122: 1460 | H122: 1487 | I122: 1500 | J122: Profit of Rs.10/- | K122: =H122-F122 -> 10 | M122: =N122*K122 -> 7000 | N122: 700 | O122: Successful | P122: 2019-12-23 | R122: N
A123: 83 | B123: 2019-12-24 | D123: INDIANB | E123: Sell | F123: 105.5 | G123: 108 | H123: 103.25 | I123: 100 | J123: Profit of Rs.2.25/- | K123: =F123-H123 -> 2.25 | L123: =K123/F123 -> 2.13% | O123: Successful | P123: 2019-12-26 | R123: H
A124: 84 | B124: 2019-12-26 | D124: TATASTEEL | E124: Sell | F124: 467-470 | G124: 482 | I124: 450-440 | J124: Open | R124: H
A125: 85 | B125: 2019-12-27 | D125: VEDL | E125: Sell | F125: 151.5-152.5 | G125: 156 | I125: 145-143 | J125: Open | R125: H
A126: 86 | B126: 2019-12-27 | D126: TORNTPOWER | E126: Buy | F126: 282.5 | G126: 273 | H126: 285 | I126: 295-300 | J126: Profit of Rs.2.25/- | K126: =H126-F126 -> 2.5 | L126: =K126/F126 -> 0.88% | O126: Neutral | P126: 2019-12-31 | R126: H
A127: 87 | B127: 2019-12-30 | D127: MARICO | E127: Buy | F127: 339-340 | G127: 329 | I127: 355-360 | J127: Open | R127: H
A128: 88 | B128: 2019-12-30 | D128: CENTURYTEX JAN FUT | E128: Buy | F128: 483-485 | G128: 464 | I128: 520 | J128: Open | R128: N
A129: 89 | B129: 2019-12-31 | D129: LT JAN FUT | E129: Buy | F129: 1310-1314 | G129: 1276 | I129: 1350-1360 | J129: Open | R129: N
A130: 90 | B130: 2019-12-31 | D130: HINDALCO | E130: Sell | F130: 218-219 | G130: 226.3 | I130: 210-208 | J130: Open | R130: R
A131: 91 | B131: 2019-12-31 | D131: BIOCON | E131: Sell | F131: 293-294 | G131: 302.3 | I131: 278-275 | J131: Open | R131: R
A132: 92 | B132: 2019-12-31 | D132: GAIL | E132: Buy | F132: 120-121 | G132: 116.7 | I132: 126-128 | J132: Open | R132: R
A133: 93 | B133: 2019-12-31 | D133: ACC JAN FUT | E133: Buy | F133: 1462-1466 | G133: 1433 | I133: 1520 | J133: Open | R133: N
A138: CLBS = Closing Basis ***
A139: Dividend adjusted <> | F139: Reinitiated $
F140: Revised stoploss #
A142: Master Trade High Risk
A143: Sr.no | B143: Date | D143: Company | E143: Rec | F143: Rec Price | G143: Stop Loss | H143: Call Closed At | I143: Target | J143: Remark | K143: Profit / Loss per share | L143: Gain / Loss per Lot | M143: Lot | N143: Status | O143: Closed Date
A144: 1 | B144: 2019-12-02 | D144: HDFC DEC FUT | E144: Sell | F144: 2316 | G144: 2365 | H144: 2283 | I144: 2260 | J144: Profit of Rs. 31/- | K144: =F144-H144 -> 33 | L144: =31*250 -> 7750 | M144: 250 | N144: Successful | O144: 2019-12-06 | R144: H
D145: HDFC 2260 PE DEC | E145: Sell | F145: 31 | H145: 33 | K145: -2 | R145: H
A146: 2 | B146: 2019-12-09 | D146: NIFTY DEC FUT | E146: Sell | F146: 11995 | G146: 12170 | H146: 11915 | I146: 11800 | J146: Profit of Rs. 60/- | K146: 80 | L146: =60*M146 -> 4500 | M146: 75 | N146: Successful | O146: 2019-12-10 | R146: H
D147: NIFTY 11850 PE DEC | E147: Sell | F147: 80 | H147: 100 | K147: -20 | R147: H
A148: 3 | B148: 2019-12-11 | D148: BAJAJ-AUTO DEC FUT | E148: Sell | F148: 3255 | G148: 3333 | H148: 3220 | I148: 3180-3150 | J148: Profit of Rs. 34.50/- | K148: 35 | L148: =34.5*M148 -> 8625 | M148: 250 | N148: Successful | O148: 2019-12-17 | R148: H
D149: BAJAJ-AUTO 3200 PE DEC | E149: Sell | F149: 40 | H149: 40.5 | K149: -0.5 | R149: H
A150: 4 | B150: 2019-12-20 | D150: NIFTY JAN FUT | E150: Sell | F150: 12340 | G150: 12510 | H150: 12255 | I150: 12100-12050 | J150: Profit of Rs.85/- | K150: 85 | L150: =K150*M150 -> 6375 | M150: 75 | N150: Successful | O150: 2019-12-26 | R150: R
A151: 5 | B151: 2019-12-24 | D151: KOTAKBANK JAN FUT | E151: Sell | F151: 1722 | G151: 1770 | H151: 1697.5 | I151: 1650-1640 | J151: Profit of Rs. 21.50/- | K151: =F151-H151 -> 24.5 | L151: =21.5*M151 -> 8600 | M151: 400 | N151: Successful | O151: 2019-12-27 | R151: H
D152: KOTAKBANK 1660 PE JAN | E152: Sell | F152: 23.5 | H152: 26.5 | K152: -3 | R152: H
A153: 6 | B153: 2019-12-27 | D153: NIFTY JAN FUT | E153: Sell | F153: 12240-12260 | G153: 12375 | I153: 12000 | J153: Open | R153: R
A154: 7 | B154: 2019-12-30 | D154: BAJAJ-AUTO JAN FUT | E154: Sell | F154: 3270 | G154: 3345 | H154: 3210 | I154: 3180 | J154: Profit of Rs. 34/- | K154: =F154-H154 -> 60 | L154: =34*M154 -> 8500 | M154: 250 | N154: Successful | O154: 2019-12-31 | R154: H
D155: BAJAJ-AUTO 3200 PE JAN | E155: Sell | F155: 50 | H155: 76 | K155: -26 | R155: H
A164: Master Trade Medium Risk
A165: Sr.no | B165: Date | D165: Company | E165: Rec | F165: Rec Price | G165: Stop Loss | H165: Call Closed At | I165: Target | J165: Remark | K165: Profit/ Loss per lot | L165: Gain / Loss per Lot | M165: Lot | N165: Status | O165: Closed Date
A166: 1 | B166: 2019-12-02 | D166: LT DEC 1360 CE | E166: Buy | F166: 23 | G166: 9 | H166: 28.5 | I166: 40-50 | J166: Profit of Rs.5.50/- | K166: =H166-F166 -> 5.5 | L166: =K166*M166 -> 2062.5 | M166: 375 | N166: Successful | O166: 2019-12-01 | R166: H
A167: 2 | B167: 2019-12-02 | D167: HINDUNILVR DEC 2100 CE | E167: Buy | F167: 25 | G167: 10 | H167: 10 | I167: 40-45 | J167: Loss of Rs.15/- | K167: =H167-F167 -> -15 | L167: =K167*M167 -> -4500 | M167: 300 | N167: Unsuccessful | O167: 2019-12-11 | R167: N
A168: 3 | B168: 2019-12-02 | D168: DABUR DEC 460 CE | E168: Buy | F168: 7.50 | G168: 4.5 | H168: 9.5 | I168: 12.00-14.00 | J168: Profit of Rs.2/- | K168: =H168-F168 -> 2 | L168: =K168*M168 -> 2500 | M168: 1250 | N168: Successful | O168: 2019-12-04 | R168: H
A169: 4 | B169: 2019-12-03 | D169: DLF DEC 210 PE | E169: Buy | F169: 6 | G169: 3.8 | H169: 6 | I169: 12 | J169: Neutral | N169: Neutral | O169: 2019-12-10 | R169: H
A170: 5 | B170: 2019-12-03 | D170: NIFTY 5-DEC 12050 CE | E170: Buy | F170: 43 | G170: 18 | H170: 18.5 | I170: 90 | J170: Loss of Rs.24.50/- | K170: =H170-F170 -> -24.5 | L170: =K170*M170 -> -1837.5 | M170: 75 | N170: Unsuccessful | O170: 2019-12-03 | R170: H
A171: 6 | B171: 2019-12-05 | D171: NIFTY 5-DEC 12050 PE | E171: Buy | F171: 24 | H171: 40 | I171: 60 | J171: Profit of Rs.16/- | K171: 16 | L171: 1200 | M171: 75 | N171: Successful | O171: 2019-12-05 | R171: R
A172: 7 | B172: 2019-12-05 | D172: LT DEC 1340 CE | E172: Buy | F172: 19 | G172: 8 | H172: 8 | I172: 40 | J172: Loss of Rs.11/- | K172: -11 | L172: -4125 | M172: 375 | N172: Unsuccessful | O172: 2019-12-11 | R172: H
A173: 8 | B173: 2019-12-12 | D173: AXISBANK DEC 730 CE | E173: Buy | F173: 11 | G173: 5.5 | H173: 13.25 | I173: 20 | J173: Profit of Rs.2.25/- | K173: 2.25 | L173: 2700 | M173: 1200 | N173: Successful | O173: 2019-12-12 | R173: N
A174: 9 | B174: 2019-12-12 | D174: DABUR DEC 460 CE | E174: Buy | F174: 5.10 | G174: 2 | H174: 6.25 | I174: 10.00-12.00 | J174: Profit of Rs.1.15/- | K174: 1.15 | L174: 1437.5 | M174: 1250 | N174: Successful | O174: 2019-12-12 | R174: H
A175: 10 | B175: 2019-12-13 | D175: NIFTY 19-DEC 12000 PE | E175: Buy | F175: 35 | H175: 0 | I175: 60-80 | J175: Loss of Rs.35/- | K175: -35 | L175: -2625 | M175: 75 | N175: Unsuccessful | O175: 2019-12-19 | R175: H
A176: 11 | B176: 2019-12-16 | D176: APOLLOHOSP DEC 1360 PE | E176: Buy | F176: 24 | H176: 0 | J176: Loss of Rs. 6/- | K176: -24 | L176: -3000 | M176: 500 | N176: UnSuccessful | O176: 2019-12-26 | R176: N
D177: APOLLOHOSP DEC 1340 PE | E177: Sell | F177: 18 | H177: 0 | K177: 18 | R177: N
A178: 12 | B178: 2019-12-16 | D178: HDFCBANK DEC 1260 CE | E178: Buy | F178: 14 | H178: 20 | J178: Profit of Rs.3.50/- | K178: =H178-F178 -> 6 | L178: =3.5*M178 -> 1750 | M178: 500 | N178: Successful | O178: 2019-12-17 | R178: N
D179: HDFCBANK DEC 1280 CE | E179: Sell | F179: 7.5 | H179: 10 | K179: =F179-H179 -> -2.5 | R179: N
A180: 13 | B180: 2019-12-18 | D180: ICICIBANK DEC 530 PE | E180: Buy | F180: 3.75 | G180: 1 | H180: 4.9 | I180: 8.00-10.00 | J180: Profit of Rs.1.15/- | K180: =H180-F180 -> 1.15 | L180: =K180*M180 -> 1581.25 | M180: 1375 | N180: Successful | O180: 2019-12-19 | R180: H
A181: 14 | B181: 2019-12-18 | D181: LT DEC 1340 CE | E181: Buy | F181: 13.50 | G181: 4 | H181: 4 | I181: 25 | J181: Loss of Rs.9.50/- | K181: =H181-F181 -> -9.5 | L181: =K181*M181 -> -3562.5 | M181: 375 | N181: Unsuccessful | O181: 2019-12-23 | R181: N
A182: 15 | B182: 2019-12-19 | D182: NIFTY 19-DEC 12200 PE | E182: Buy | F182: 24 | H182: 0 | I182: 60 | J182: Loss of Rs.24/- | K182: =H182-F182 -> -24 | L182: =K182*M182 -> -1800 | M182: 75 | N182: Unsuccessful | O182: 2019-12-19 | R182: R
A183: 16 | B183: 2019-12-19 | D183: ICICIBANK DEC 530 PE | E183: Buy | F183: 3 | G183: 0.8 | H183: 0.8 | I183: 6.00-8.00 | J183: Loss of Rs.2.2/- | K183: =H183-F183 -> -2.2 | L183: =K183*M183 -> -3025 | M183: 1375 | N183: Unsuccessful | O183: 2019-12-24 | R183: H
A184: 17 | B184: 2019-12-20 | D184: NIFTY DEC 12300 PE | E184: Buy | F184: 72 | H184: 88 | J184: Profit of Rs.20/- | K184: =H184-F184 -> 16 | L184: 1500 | M184: 75 | N184: Successful | O184: 2019-12-23 | R184: H
D185: NIFTY DEC 12200 PE | E185: Sell | F185: 37 | H185: 33 | K185: =F185-H185 -> 4 | R185: H
A186: 18 | B186: 2019-12-23 | D186: MCDOWELL-N DEC 600 CE | E186: Buy | F186: 3.75 | G186: 0.9 | H186: 5.25 | I186: 9.00-11.00 | J186: Profit of Rs.1.5/- | K186: =H186-F186 -> 1.5 | L186: =K186*M186 -> 1875 | M186: 1250 | N186: Successful | O186: 2019-12-24 | R186: H
A187: 19 | B187: 2019-12-27 | D187: NTPC JAN 117.5 CE | E187: Buy | F187: 2.1 | H187: 3 | J187: Profit of Rs.0.4/- | K187: =H187-F187 -> 0.9 | L187: =M187*0.4 -> 2000 | M187: 5000 | N187: Successful | O187: 2019-12-31 | R187: H
D188: NTPC JAN 120 CE | E188: Sell | F188: 1.4 | H188: 1.9 | K188: =F188-H188 -> -0.5 | R188: H
A189: 20 | B189: 2019-12-27 | D189: NIFTY 30 JAN 12200 PE | E189: Buy | F189: 120-124 | J189: Open | R189: H
D190: NIFTY 30 JAN 12050 PE | E190: Sell | F190: 79-81 | R190: H
A194: Techno -Funda (positional)
A195: Sr.no | B195: Date | D195: Company | E195: Rec | F195: Rec Price | G195: Stop Loss*** | H195: Call Closed At | I195: Target | J195: Remark | K195: Profit / Loss per Share | L195: Gain / Loss % | M195: Status | N195: Closed Date | O195: NSE Closed Price
A196: 1 | B196: 2019-08-13 | D196: ITC | E196: Buy | F196: 247 | G196: 228 | H196: 252.5 | I196: 290-300 | J196: Profit of Rs.5.5/- | K196: =H196-F196 -> 5.5 | L196: =K196/F196 -> 2.23% | M196: Successful | N196: 2019-12-18 | R196: H
A197: 2 | B197: 2019-11-27 | D197: JKLAKSHMI | E197: Buy | F197: 284-288 | G197: 258 | I197: 330-350 | J197: Open | R197: H
A200: CLBS = Closing Basis *** | F200: Reinitiated $
A201: Dividend adjusted <> | F201: Revised stoploss #
B206: Investment Idea
A207: Sr.no | B207: Date | D207: Company | E207: Rec | F207: Rec Price | G207: Point of Review | H207: Close Rate | I207: Target | J207: Remark | K207: Profit / Loss per Share | L207: Gain / Loss % | M207: Status | N207: Closed Date
A208: 1 | B208: 2013-11-01 | D208: L&T Finance Holding | E208: Accu | F208: 82.00 | G208: - | H208: 100 | I208: 100.00 | J208: Target Achieved | K208: =H208-F208 -> 18.00 | L208: =K208/F208 -> 21.95% | M208: Successful | N208: 2016-10-14
A209: 2 | B209: 2014-06-04 | D209: Finolex Inds | E209: Buy | F209: 257.00 | G209: - | H209: 300 | I209: 300.00 | J209: Target Achieved | K209: 43.00 | L209: 16.73% | M209: Successful | N209: 2014-07-02
A210: 3 | B210: 2014-07-08 | D210: JK Cement | E210: Buy | F210: 393.00 | G210: - | H210: 468 | I210: 468.00 | J210: Target Achieved | K210: 75.00 | L210: 19.08% | M210: Successful | N210: 2014-08-12
A211: 4 | B211: 2014-08-06 | D211: Finolex Cables | E211: Buy | F211: 205.00 | G211: - | H211: 275 | I211: 250.00 | J211: Target Achieved | K211: 70.00 | L211: 34.15% | M211: Successful | N211: 2014-11-19
A212: 5 | B212: 2014-09-04 | D212: Exide Inds | E212: Buy | F212: 162.00 | G212: - | H212: 190 | I212: 190.00 | J212: Target Achieved | K212: 28.00 | L212: 17.28% | M212: Successful | N212: 2015-01-02
A213: 6 | B213: 2014-09-04 | D213: Deepak Nitrite | E213: Buy | F213: 75.00 | G213: - | H213: 91.5 | I213: 95-100 | J213: Profit of Rs.16.50/- | K213: 16.50 | L213: 22.00% | M213: Successful | N213: 2014-11-11
A214: 7 | B214: 2014-10-01 | D214: Mercks | E214: Buy | F214: 850.00 | G214: - | H214: 982.5 | I214: 1050.00 | J214: Profit of Rs.132.50/- | K214: 132.50 | L214: 15.59% | M214: Successful | N214: 2015-02-04
A215: 8 | B215: 2014-10-01 | D215: Grindwell Norton | E215: Buy | F215: 475.00 | G215: - | H215: 515 | I215: 600.00 | J215: Profit of Rs.40/- | K215: 40.00 | L215: 8.42% | M215: Successful | N215: 2014-10-27
A216: 9 | B216: 2014-10-01 | D216: Snowman Logistics | E216: Buy | F216: 86.00 | G216: - | H216: 99 | I216: 140.00 | J216: Profit of Rs.13.00/- | K216: 13.00 | L216: 15.12% | M216: Successful | N216: 2014-10-27
A217: 10 | B217: 2014-10-14 | D217: Birla Corp | E217: Buy | F217: 496.60 | G217: - | H217: 621 | I217: 580.00 | J217: Target Achieved | K217: 124.40 | L217: 25.05% | M217: Successful | N217: 2016-08-23
A218: 11 | B218: 2014-10-14 | D218: Ultratech Cem | E218: Buy | F218: 2481.90 | G218: - | H218: 2840 | I218: 2870.00 | J218: Profit of Rs.358.10/- | K218: 358.10 | L218: 14.43% | M218: Successful | N218: 2015-01-13
A219: 12 | B219: 2014-10-16 | D219: Sintex Inds | E219: Buy | F219: 84.50 | G219: - | H219: 93 | I219: 110.00 | J219: Profit of Rs.8.50/- | K219: 8.50 | L219: 10.06% | M219: Successful | N219: 2014-10-27
A220: 13 | B220: 2014-10-16 | D220: HSIL | E220: Buy | F220: 401.00 | G220: - | H220: 428 | I220: 450.00 | J220: Profit of Rs.27.00/- | K220: 27.00 | L220: 6.73% | M220: Successful | N220: 2015-01-16
A221: 14 | B221: 2014-10-16 | D221: Eveready Inds | E221: Buy | F221: 101.00 | G221: - | H221: 112 | I221: 120.00 | J221: Profit of Rs.11.00/- | K221: 11.00 | L221: 10.89% | M221: Successful | N221: 2014-10-27
A222: 15 | B222: 2014-11-11 | D222: Pennar Inds | E222: Buy | F222: 59.00 | G222: - | H222: 76 | I222: 76.00 | J222: Target Achieved | K222: 17.00 | L222: 28.81% | M222: Successful | N222: 2017-10-24
A223: 16 | B223: 2014-11-11 | D223: Snowman Logistics | E223: Buy | F223: 99.00 | G223: - | H223: 120 | I223: 120.00 | J223: Profit of Rs.21/- | K223: 21.00 | L223: 21.21% | M223: Successful | N223: 2014-11-17
A224: 17 | B224: 2014-11-13 | D224: Dharamsi Morarji Chem | E224: Buy | F224: 22.00 | G224: - | H224: 33.55 | I224: 32.00 | J224: Profit of Rs 11.55/- | K224: 11.55 | L224: 52.50% | M224: Successful | N224: 2015-07-03
A225: 18 | B225: 2014-12-03 | D225: Tatachem | E225: Buy | F225: 440.00 | G225: - | H225: 520 | I225: 520.00 | J225: Profit of Rs 80.00/- | K225: 80.00 | L225: 18.18% | M225: Successful | N225: 2015-07-23
A226: 19 | B226: 2014-12-03 | D226: Advanta | E226: Buy | F226: 360.00 | G226: - | H226: 427 | I226: 425.00 | J226: Profit of Rs.67.00/- | K226: 67.00 | L226: 18.61% | M226: Successful | N226: 2015-02-23
A227: 20 | B227: 2015-01-08 | D227: GDL | E227: Buy | F227: 360.00 | G227: - | H227: 455 | I227: 420.00 | J227: Profit of Rs.95.00/- | K227: 95.00 | L227: 26.39% | M227: Successful | N227: 2015-01-20
A228: 21 | B228: 2015-01-08 | D228: NRB Bearing | E228: Buy | F228: 130.00 | H228: 175.5 | I228: 165.00 | J228: Profit of Rs 45.50/- | K228: 45.50 | L228: 35.00% | M228: Successful | N228: 2017-12-19
A229: 22 | B229: 2015-02-05 | D229: GSFC | E229: Accu | F229: 98.00 | H229: 120 | I229: 120.00 | J229: Target Achieved | K229: 22.00 | L229: 22.45% | M229: Successful | N229: 2017-01-18
A230: 23 | B230: 2015-02-05 | D230: Sundrmfast | E230: Accu | F230: 196.00 | H230: 262 | I230: 255.00 | J230: Target Achieved | K230: 66.00 | L230: 33.67% | M230: Successful | N230: 2016-08-17
A231: 24 | B231: 2015-03-04 | D231: GPPL | E231: Accu | F231: 235 | H231: 77.00 | I231: 280-285 | J231: Loss of Rs.158/- | K231: -158.00 | L231: -67.23% | M231: Unsuccessful | N231: 2019-02-26
... 129 more rows

Sheet Sheet2 (hidden)
A1: SYMBOL | B1: SERIES | C1: OPEN | D1: HIGH | E1: LOW | F1: CLOSE | G1: LAST | H1: PREVCLOSE | I1: TOTTRDQTY | J1: TOTTRDVAL | K1: TIMESTAMP | L1: TOTALTRADES | M1: ISIN | N1: ISIN
A2: 20MICRONS | B2: EQ | C2: 33.6 | D2: 37.4 | E2: 33.1 | F2: 35.2 | G2: 35.25 | H2: 33.1 | I2: 242285 | J2: 8636712.9 | K2: 2019-12-31 | L2: 2089 | M2: INE144J01027
A3: 21STCENMGM | B3: EQ | C3: 15.3 | D3: 15.3 | E3: 15.3 | F3: 15.3 | G3: 15.3 | H3: 15 | I3: 1129 | J3: 17273.7 | K3: 2019-12-31 | L3: 4 | M3: INE253B01015
A4: 3IINFOTECH | B4: EQ | C4: 2 | D4: 2.05 | E4: 1.95 | F4: 1.95 | G4: 2 | H4: 2 | I4: 655941 | J4: 1294489.05 | K4: 2019-12-31 | L4: 441 | M4: INE748C01020
A5: 3MINDIA | B5: EQ | C5: 21639 | D5: 21639 | E5: 21210 | F5: 21304.7 | G5: 21230 | H5: 21479.05 | I5: 1333 | J5: 28560135 | K5: 2019-12-31 | L5: 632 | M5: INE470A01017
A6: 3PLAND | B6: EQ | C6: 5.75 | D6: 6 | E6: 5.75 | F6: 6 | G6: 6 | H6: 5.75 | I6: 2325 | J6: 13943.75 | K6: 2019-12-31 | L6: 15 | M6: INE105C01023
A7: 5PAISA | B7: EQ | C7: 194 | D7: 197.9 | E7: 186.1 | F7: 192.5 | G7: 191.6 | H7: 194.35 | I7: 8539 | J7: 1627458.6 | K7: 2019-12-31 | L7: 436 | M7: INE618L01018
A8: 63MOONS | B8: EQ | C8: 103.4 | D8: 103.7 | E8: 101.5 | F8: 101.8 | G8: 102 | H8: 103 | I8: 62501 | J8: 6399158.2 | K8: 2019-12-31 | L8: 2141 | M8: INE111B01023
A9: A2ZINFRA | B9: EQ | C9: 7.6 | D9: 7.8 | E9: 7.5 | F9: 7.55 | G9: 7.5 | H9: 7.6 | I9: 167651 | J9: 1274637.5 | K9: 2019-12-31 | L9: 341 | M9: INE619I01012
A10: AARTIDRUGS | B10: EQ | C10: 579 | D10: 587.7 | E10: 563 | F10: 579.3 | G10: 582 | H10: 575.15 | I10: 11722 | J10: 6722285.25 | K10: 2019-12-31 | L10: 832 | M10: INE767A01016
A11: AARTIIND | B11: EQ | C11: 838 | D11: 845 | E11: 810 | F11: 830.75 | G11: 835 | H11: 837.75 | I11: 134712 | J11: 112748248.8 | K11: 2019-12-31 | L11: 7254 | M11: INE769A01020
A12: AARVEEDEN | B12: EQ | C12: 14.9 | D12: 14.9 | E12: 13.6 | F12: 14 | G12: 14 | H12: 13.95 | I12: 9969 | J12: 140283.75 | K12: 2019-12-31 | L12: 76 | M12: INE273D01019
A13: AAVAS | B13: EQ | C13: 1917 | D13: 1999 | E13: 1902.45 | F13: 1981.1 | G13: 1998.85 | H13: 1918.6 | I13: 101783 | J13: 200515104.2 | K13: 2019-12-31 | L13: 10841 | M13: INE216P01012
A14: ABAN | B14: EQ | C14: 25.95 | D14: 26.7 | E14: 25.45 | F14: 25.7 | G14: 25.6 | H14: 25.85 | I14: 53897 | J14: 1401129.4 | K14: 2019-12-31 | L14: 574 | M14: INE421A01028
A15: ABB | B15: BE | C15: 1275 | D15: 1297.1 | E15: 1275 | F15: 1285.25 | G15: 1289 | H15: 1295.45 | I15: 46306 | J15: 59489239.9 | K15: 2019-12-31 | L15: 1268 | M15: INE117A01022
A16: ABBOTINDIA | B16: EQ | C16: 13199 | D16: 13202 | E16: 13049.2 | F16: 13075.5 | G16: 13050 | H16: 13196.75 | I16: 3735 | J16: 49085192.45 | K16: 2019-12-31 | L16: 1616 | M16: INE358A01014
A17: ABCAPITAL | B17: EQ | C17: 101.75 | D17: 104.8 | E17: 101.5 | F17: 102.7 | G17: 102.55 | H17: 102.3 | I17: 2669300 | J17: 275239995.7 | K17: 2019-12-31 | L17: 31664 | M17: INE674K01013
A18: ABFRL | B18: EQ | C18: 228 | D18: 233.15 | E18: 224.65 | F18: 231.7 | G18: 231.2 | H18: 226.95 | I18: 546866 | J18: 125289025.2 | K18: 2019-12-31 | L18: 10323 | M18: INE647O01011
A19: ABMINTLTD | B19: BE | C19: 16.25 | D19: 16.25 | E19: 14.75 | F19: 14.75 | G19: 14.75 | H19: 15.5 | I19: 120 | J19: 1935 | K19: 2019-12-31 | L19: 5 | M19: INE251C01017
A20: ABSLBANETF | B20: EQ | C20: 322.97 | D20: 322.97 | E20: 322.97 | F20: 322.97 | G20: 322.97 | H20: 324.16 | I20: 1 | J20: 322.97 | K20: 2019-12-31 | L20: 1 | M20: INF209KB1O58
A21: ABSLNN50ET | B21: EQ | C21: 286.31 | D21: 286.31 | E21: 286.31 | F21: 286.31 | G21: 286.31 | H21: 286.29 | I21: 10 | J21: 2863.1 | K21: 2019-12-31 | L21: 1 | M21: INF209KB1B87
A22: ACC | B22: EQ | C22: 1454.5 | D22: 1460 | E22: 1441.55 | F22: 1445.65 | G22: 1447 | H22: 1453.05 | I22: 581119 | J22: 842339082.7 | K22: 2019-12-31 | L22: 16553 | M22: INE012A01025
A23: ACCELYA | B23: EQ | C23: 1109 | D23: 1109 | E23: 1055 | F23: 1070.7 | G23: 1065.5 | H23: 1100.95 | I23: 6160 | J23: 6581461.7 | K23: 2019-12-31 | L23: 905 | M23: INE793A01012
A24: ACE | B24: EQ | C24: 72.9 | D24: 75.7 | E24: 71.65 | F24: 74.25 | G24: 74.05 | H24: 72.95 | I24: 191727 | J24: 14165224.45 | K24: 2019-12-31 | L24: 6966 | M24: INE731H01025
A25: ADANIENT | B25: EQ | C25: 208.7 | D25: 210.75 | E25: 207.65 | F25: 208.35 | G25: 207.7 | H25: 208.65 | I25: 1600059 | J25: 334327365.8 | K25: 2019-12-31 | L25: 9191 | M25: INE423A01024
A26: ADANIGAS | B26: EQ | C26: 155.45 | D26: 164.4 | E26: 155.15 | F26: 162.7 | G26: 162.9 | H26: 155.8 | I26: 3897522 | J26: 629975964.9 | K26: 2019-12-31 | L26: 27613 | M26: INE399L01023
A27: ADANIGREEN | B27: EQ | C27: 166.45 | D27: 166.45 | E27: 161.1 | F27: 166.45 | G27: 166.45 | H27: 158.55 | I27: 2050662 | J27: 340356381.3 | K27: 2019-12-31 | L27: 7063 | M27: INE364U01010
A28: ADANIPORTS | B28: EQ | C28: 366 | D28: 368.65 | E28: 364.9 | F28: 366 | G28: 366.2 | H28: 365.95 | I28: 2043206 | J28: 748870364.8 | K28: 2019-12-31 | L28: 16901 | M28: INE742F01042
A29: ADANIPOWER | B29: EQ | C29: 61.25 | D29: 62.15 | E29: 61.05 | F29: 61.8 | G29: 61.7 | H29: 61.05 | I29: 7555401 | J29: 465874337.6 | K29: 2019-12-31 | L29: 14095 | M29: INE814H01011
A30: ADANITRANS | B30: EQ | C30: 334.6 | D30: 336.9 | E30: 330 | F30: 331.4 | G30: 331.05 | H30: 334.1 | I30: 165013 | J30: 55002646.5 | K30: 2019-12-31 | L30: 4971 | M30: INE931S01010
A31: ADFFOODS | B31: EQ | C31: 304.7 | D31: 309.5 | E31: 301 | F31: 306.85 | G31: 307.55 | H31: 303.3 | I31: 18822 | J31: 5752108.9 | K31: 2019-12-31 | L31: 788 | M31: INE982B01019
A32: ADHUNIKIND | B32: EQ | C32: 49.9 | D32: 49.9 | E32: 48.05 | F32: 49.2 | G32: 49.5 | H32: 47.75 | I32: 77371 | J32: 3794047.3 | K32: 2019-12-31 | L32: 713 | M32: INE452L01012
A33: ADLABS | B33: BE | C33: 4.4 | D33: 4.4 | E33: 4.4 | F33: 4.4 | G33: 4.4 | H33: 4.2 | I33: 75389 | J33: 331711.6 | K33: 2019-12-31 | L33: 53 | M33: INE172N01012
A34: ADORWELD | B34: EQ | C34: 292.7 | D34: 295.75 | E34: 291.7 | F34: 294.75 | G34: 295.2 | H34: 292.65 | I34: 2407 | J34: 707770.4 | K34: 2019-12-31 | L34: 286 | M34: INE045A01017
A35: ADROITINFO | B35: BE | C35: 7.05 | D35: 7.05 | E35: 6.75 | F35: 6.75 | G35: 6.75 | H35: 7.1 | I35: 7379 | J35: 51658.5 | K35: 2019-12-31 | L35: 6 | M35: INE737B01033
A36: ADSL | B36: BE | C36: 19.7 | D36: 20.3 | E36: 19.7 | F36: 20.1 | G36: 19.95 | H36: 19.85 | I36: 29205 | J36: 584458.75 | K36: 2019-12-31 | L36: 58 | M36: INE102I01027
A37: ADVANIHOTR | B37: EQ | C37: 53.25 | D37: 54.95 | E37: 52 | F37: 53.2 | G37: 53.2 | H37: 53.35 | I37: 6989 | J37: 374103.35 | K37: 2019-12-31 | L37: 109 | M37: INE199C01026
A38: ADVENZYMES | B38: EQ | C38: 163.25 | D38: 167.7 | E38: 163.15 | F38: 165.5 | G38: 165.5 | H38: 162.65 | I38: 58909 | J38: 9778002.15 | K38: 2019-12-31 | L38: 1873 | M38: INE837H01020
A39: AEGISCHEM | B39: EQ | C39: 189.9 | D39: 194.5 | E39: 186 | F39: 193.45 | G39: 193 | H39: 189.8 | I39: 170584 | J39: 32759226.3 | K39: 2019-12-31 | L39: 3804 | M39: INE208C01025
A40: AFFLE | B40: EQ | C40: 1619.7 | D40: 1624.45 | E40: 1575 | F40: 1581.35 | G40: 1576 | H40: 1611 | I40: 93183 | J40: 148813293.8 | K40: 2019-12-31 | L40: 6296 | M40: INE00WC01019
A41: AGARIND | B41: EQ | C41: 81.85 | D41: 84.6 | E41: 79.5 | F41: 81.25 | G41: 81.8 | H41: 81.35 | I41: 7023 | J41: 574552.75 | K41: 2019-12-31 | L41: 108 | M41: INE204E01012
A42: AGCNET | B42: EQ | C42: 152 | D42: 155 | E42: 144.9 | F42: 144.9 | G42: 144.9 | H42: 152.5 | I42: 7762 | J42: 1136096.2 | K42: 2019-12-31 | L42: 187 | M42: INE676A01019
A43: AGRITECH | B43: EQ | C43: 45.3 | D43: 45.3 | E43: 42.4 | F43: 43.4 | G43: 43.5 | H43: 43.5 | I43: 4089 | J43: 177196.65 | K43: 2019-12-31 | L43: 100 | M43: INE449G01018
A44: AGROPHOS | B44: EQ | C44: 80.05 | D44: 80.05 | E44: 80.05 | F44: 80.05 | G44: 80.05 | H44: 88.9 | I44: 2249 | J44: 180032.45 | K44: 2019-12-31 | L44: 117 | M44: INE740V01019
A45: AHLEAST | B45: EQ | C45: 170.15 | D45: 189 | E45: 148.9 | F45: 176.9 | G45: 174.15 | H45: 167.35 | I45: 26908 | J45: 4428335.65 | K45: 2019-12-31 | L45: 674 | M45: INE926K01017
A46: AHLUCONT | B46: EQ | C46: 275.45 | D46: 305 | E46: 275.45 | F46: 299.25 | G46: 302 | H46: 281.4 | I46: 16985 | J46: 4897266.4 | K46: 2019-12-31 | L46: 851 | M46: INE758C01029
A47: AHLWEST | B47: EQ | C47: 364 | D47: 380.5 | E47: 362 | F47: 362.65 | G47: 362 | H47: 375.9 | I47: 222 | J47: 81000.8 | K47: 2019-12-31 | L47: 41 | M47: INE915K01010
A48: AIAENG | B48: EQ | C48: 1634.3 | D48: 1650 | E48: 1629 | F48: 1649.5 | G48: 1649.9 | H48: 1655 | I48: 12529 | J48: 20618276.2 | K48: 2019-12-31 | L48: 1832 | M48: INE212H01026
A49: AIONJSW | B49: EQ | C49: 13.15 | D49: 14.4 | E49: 12.3 | F49: 14.35 | G49: 14.3 | H49: 13.1 | I49: 772232 | J49: 10962816.6 | K49: 2019-12-31 | L49: 1279 | M49: INE743C01021
A50: AIRAN | B50: EQ | C50: 12.4 | D50: 13.15 | E50: 12.35 | F50: 12.35 | G50: 12.45 | H50: 12.95 | I50: 14605 | J50: 181690.75 | K50: 2019-12-31 | L50: 76 | M50: INE645W01026
A51: AJANTPHARM | B51: EQ | C51: 963.4 | D51: 979 | E51: 950 | F51: 974.55 | G51: 974.95 | H51: 962.4 | I51: 64781 | J51: 62519021.3 | K51: 2019-12-31 | L51: 5185 | M51: INE031B01049
A52: AJMERA | B52: EQ | C52: 118.5 | D52: 119.75 | E52: 116.3 | F52: 117.95 | G52: 118.35 | H52: 116.95 | I52: 31322 | J52: 3688615.45 | K52: 2019-12-31 | L52: 5224 | M52: INE298G01027
A53: AKASH | B53: EQ | C53: 58.05 | D53: 65.4 | E53: 58.05 | F53: 65 | G53: 65 | H53: 61.05 | I53: 546 | J53: 33585.05 | K53: 2019-12-31 | L53: 15 | M53: INE737W01013
A54: AKSHARCHEM | B54: EQ | C54: 229.85 | D54: 266 | E54: 229.85 | F54: 237.2 | G54: 235.5 | H54: 225.35 | I54: 263575 | J54: 66594081.8 | K54: 2019-12-31 | L54: 8851 | M54: INE542B01011
A55: AKSHOPTFBR | B55: EQ | C55: 6.5 | D55: 6.8 | E55: 6.4 | F55: 6.7 | G55: 6.65 | H55: 6.45 | I55: 199827 | J55: 1331986.8 | K55: 2019-12-31 | L55: 429 | M55: INE523B01011
A56: AKZOINDIA | B56: EQ | C56: 1954.4 | D56: 1977.9 | E56: 1928 | F56: 1971.15 | G56: 1965 | H56: 1945.4 | I56: 19805 | J56: 38594758.3 | K56: 2019-12-31 | L56: 1733 | M56: INE133A01011
A57: ALANKIT | B57: EQ | C57: 12.1 | D57: 12.3 | E57: 11.85 | F57: 12.3 | G57: 12.25 | H57: 11.95 | I57: 15563 | J57: 188569.35 | K57: 2019-12-31 | L57: 86 | M57: INE914E01040
A58: ALBERTDAVD | B58: EQ | C58: 405 | D58: 410.8 | E58: 404 | F58: 408.4 | G58: 409.5 | H58: 405.95 | I58: 3815 | J58: 1555207.05 | K58: 2019-12-31 | L58: 225 | M58: INE155C01010
A59: ALBK | B59: EQ | C59: 19.2 | D59: 19.2 | E59: 18.7 | F59: 18.85 | G59: 18.95 | H59: 19.05 | I59: 1341427 | J59: 25334641.3 | K59: 2019-12-31 | L59: 2724 | M59: INE428A01015
A60: ALCHEM | B60: BE | C60: 0.85 | D60: 0.85 | E60: 0.85 | F60: 0.85 | G60: 0.85 | H60: 0.85 | I60: 6852 | J60: 5824.2 | K60: 2019-12-31 | L60: 10 | M60: INE964B01033
A61: ALEMBICLTD | B61: EQ | C61: 58.4 | D61: 60.9 | E61: 57.8 | F61: 59.6 | G61: 60.15 | H61: 58.1 | I61: 559433 | J61: 33322793.3 | K61: 2019-12-31 | L61: 5515 | M61: INE426A01027
A62: ALICON | B62: EQ | C62: 369 | D62: 384.25 | E62: 369 | F62: 370.15 | G62: 370.2 | H62: 376.5 | I62: 2292 | J62: 859539.55 | K62: 2019-12-31 | L62: 318 | M62: INE062D01024
A63: ALKALI | B63: EQ | C63: 41 | D63: 41.8 | E63: 40.5 | F63: 41.25 | G63: 40.75 | H63: 40.2 | I63: 4533 | J63: 186192.65 | K63: 2019-12-31 | L63: 91 | M63: INE773I01017
A64: ALKEM | B64: EQ | C64: 1994 | D64: 2034 | E64: 1988.5 | F64: 2013.9 | G64: 2001.15 | H64: 1992.8 | I64: 47011 | J64: 95000174.95 | K64: 2019-12-31 | L64: 7727 | M64: INE540L01014
A65: ALKYLAMINE | B65: EQ | C65: 1070.05 | D65: 1093.7 | E65: 1070.05 | F65: 1085 | G65: 1089.9 | H65: 1077.3 | I65: 10753 | J65: 11673537.25 | K65: 2019-12-31 | L65: 644 | M65: INE150B01021
A66: ALLCARGO | B66: EQ | C66: 98.75 | D66: 98.8 | E66: 97.25 | F66: 97.45 | G66: 97.3 | H66: 98.05 | I66: 62918 | J66: 6172819.35 | K66: 2019-12-31 | L66: 879 | M66: INE418H01029
A67: ALLSEC | B67: EQ | C67: 276 | D67: 290 | E67: 276 | F67: 286.1 | G67: 282 | H67: 280.45 | I67: 1767 | J67: 503416.95 | K67: 2019-12-31 | L67: 147 | M67: INE835G01018
A68: ALMONDZ | B68: EQ | C68: 11.7 | D68: 11.7 | E68: 9.85 | F68: 11.25 | G68: 11.25 | H68: 10.7 | I68: 166 | J68: 1869.1 | K68: 2019-12-31 | L68: 10 | M68: INE326B01027
A69: ALOKTEXT | B69: BE | C69: 3.05 | D69: 3.05 | E69: 2.9 | F69: 3.05 | G69: 3.05 | H69: 2.95 | I69: 1911101 | J69: 5786098.55 | K69: 2019-12-31 | L69: 1538 | M69: INE270A01011
A70: ALPA | B70: EQ | C70: 17.35 | D70: 17.85 | E70: 16.4 | F70: 16.9 | G70: 17.15 | H70: 16.7 | I70: 104276 | J70: 1804840.5 | K70: 2019-12-31 | L70: 442 | M70: INE385I01010
A71: ALPHAGEO | B71: EQ | C71: 176 | D71: 176 | E71: 170 | F71: 172.9 | G71: 173.85 | H71: 169.85 | I71: 4639 | J71: 802936.65 | K71: 2019-12-31 | L71: 309 | M71: INE137C01018
A72: ALPSINDUS | B72: BE | C72: 2.5 | D72: 2.5 | E72: 2.4 | F72: 2.45 | G72: 2.5 | H72: 2.4 | I72: 119912 | J72: 299470.8 | K72: 2019-12-31 | L72: 202 | M72: INE093B01015
A73: AMARAJABAT | B73: EQ | C73: 723.85 | D73: 730.95 | E73: 719.8 | F73: 724.35 | G73: 724.95 | H73: 723.4 | I73: 273544 | J73: 198595900.4 | K73: 2019-12-31 | L73: 8488 | M73: INE885A01032
A74: AMBER | B74: EQ | C74: 1139.75 | D74: 1145 | E74: 1107.15 | F74: 1117.15 | G74: 1118 | H74: 1133.2 | I74: 43770 | J74: 49464686.35 | K74: 2019-12-31 | L74: 3301 | M74: INE371P01015
A75: AMBIKCO | B75: EQ | C75: 889 | D75: 889 | E75: 860.05 | F75: 866.2 | G75: 860.05 | H75: 878.4 | I75: 3365 | J75: 2959691.9 | K75: 2019-12-31 | L75: 538 | M75: INE540G01014
A76: AMBUJACEM | B76: EQ | C76: 195.7 | D76: 198.25 | E76: 194.65 | F76: 196.25 | G76: 196.3 | H76: 195.65 | I76: 1972433 | J76: 387683962.4 | K76: 2019-12-31 | L76: 12224 | M76: INE079A01024
A77: AMDIND | B77: EQ | C77: 15.5 | D77: 15.75 | E77: 14.7 | F77: 15.5 | G77: 15.5 | H77: 14.6 | I77: 8097 | J77: 123820.95 | K77: 2019-12-31 | L77: 81 | M77: INE005I01014
A78: AMJLAND | B78: EQ | C78: 19.1 | D78: 19.5 | E78: 18.7 | F78: 19.4 | G78: 19.5 | H78: 19.7 | I78: 4187 | J78: 80370.45 | K78: 2019-12-31 | L78: 247 | M78: INE606A01024
A79: AMRUTANJAN | B79: EQ | C79: 448.95 | D79: 452 | E79: 438 | F79: 440.3 | G79: 440 | H79: 446.65 | I79: 23895 | J79: 10662882.75 | K79: 2019-12-31 | L79: 1617 | M79: INE098F01031
A80: ANANTRAJ | B80: EQ | C80: 34.45 | D80: 35.2 | E80: 33.65 | F80: 34 | G80: 34.05 | H80: 34.55 | I80: 473321 | J80: 16219267.6 | K80: 2019-12-31 | L80: 1453 | M80: INE242C01024
A81: ANDHRABANK | B81: EQ | C81: 17.2 | D81: 17.2 | E81: 16.6 | F81: 16.7 | G81: 16.85 | H81: 17.1 | I81: 1533792 | J81: 25929771.65 | K81: 2019-12-31 | L81: 3424 | M81: INE434A01013
A82: ANDHRACEMT | B82: EQ | C82: 2 | D82: 2 | E82: 1.9 | F82: 2 | G82: 2 | H82: 1.95 | I82: 83746 | J82: 164996.5 | K82: 2019-12-31 | L82: 116 | M82: INE666E01012
A83: ANDHRSUGAR | B83: EQ | C83: 290.15 | D83: 296.8 | E83: 290 | F83: 292.65 | G83: 292.95 | H83: 290.1 | I83: 47734 | J83: 14007417.85 | K83: 2019-12-31 | L83: 1523 | M83: INE715B01013
A84: ANIKINDS | B84: EQ | C84: 7.9 | D84: 7.95 | E84: 7.25 | F84: 7.6 | G84: 7.6 | H84: 7.6 | I84: 9384 | J84: 71949 | K84: 2019-12-31 | L84: 52 | M84: INE087B01017
A85: ANKITMETAL | B85: BE | C85: 0.5 | D85: 0.6 | E85: 0.5 | F85: 0.5 | G85: 0.5 | H85: 0.55 | I85: 21245 | J85: 10813.25 | K85: 2019-12-31 | L85: 46 | M85: INE106I01010
A86: ANSALAPI | B86: EQ | C86: 4.9 | D86: 5.15 | E86: 4.85 | F86: 5.15 | G86: 5.15 | H86: 4.95 | I86: 78699 | J86: 398956.2 | K86: 2019-12-31 | L86: 166 | M86: INE436A01026
A87: ANSALHSG | B87: BE | C87: 5.15 | D87: 5.3 | E87: 5.05 | F87: 5.3 | G87: 5.3 | H87: 5.05 | I87: 28984 | J87: 150947.6 | K87: 2019-12-31 | L87: 80 | M87: INE880B01015
A88: ANTGRAPHIC | B88: BE | C88: 0.55 | D88: 0.6 | E88: 0.55 | F88: 0.6 | G88: 0.6 | H88: 0.6 | I88: 32861 | J88: 18735.5 | K88: 2019-12-31 | L88: 23 | M88: INE414B01021
A89: ANUP | B89: EQ | C89: 456.6 | D89: 489.7 | E89: 456.6 | F89: 482.85 | G89: 489.7 | H89: 464.1 | I89: 12648 | J89: 6004172.25 | K89: 2019-12-31 | L89: 1210 | M89: INE294Z01018
A90: APARINDS | B90: EQ | C90: 388.15 | D90: 393 | E90: 388.05 | F90: 389.8 | G90: 389.7 | H90: 387.1 | I90: 16138 | J90: 6290198.2 | K90: 2019-12-31 | L90: 778 | M90: INE372A01015
A91: APCL | B91: EQ | C91: 146.35 | D91: 146.4 | E91: 143 | F91: 143.55 | G91: 144.5 | H91: 146.6 | I91: 193 | J91: 28033.1 | K91: 2019-12-31 | L91: 15 | M91: INE071F01012
A92: APCOTEXIND | B92: EQ | C92: 155.95 | D92: 160 | E92: 151.35 | F92: 157.45 | G92: 157 | H92: 154.1 | I92: 16467 | J92: 2587437.2 | K92: 2019-12-31 | L92: 1297 | M92: INE116A01032
A93: APEX | B93: EQ | C93: 346.95 | D93: 351.95 | E93: 341.65 | F93: 345.35 | G93: 344.5 | H93: 346.15 | I93: 350226 | J93: 121162632.3 | K93: 2019-12-31 | L93: 6237 | M93: INE346W01013
A94: APLAPOLLO | B94: EQ | C94: 1838.05 | D94: 1892.9 | E94: 1835 | F94: 1877.7 | G94: 1876.1 | H94: 1838.05 | I94: 57960 | J94: 108662917.6 | K94: 2019-12-31 | L94: 4552 | M94: INE702C01019
A95: APLLTD | B95: EQ | C95: 576.85 | D95: 595 | E95: 568 | F95: 571.3 | G95: 568 | H95: 576.85 | I95: 64864 | J95: 37507776 | K95: 2019-12-31 | L95: 2636 | M95: INE901L01018
A96: APOLLO | B96: EQ | C96: 74.3 | D96: 75.4 | E96: 73.15 | F96: 73.55 | G96: 73.7 | H96: 74.35 | I96: 20467 | J96: 1514541.1 | K96: 2019-12-31 | L96: 491 | M96: INE713T01010
A97: APOLLOHOSP | B97: EQ | C97: 1417 | D97: 1454 | E97: 1415 | F97: 1442 | G97: 1438.9 | H97: 1418.9 | I97: 985801 | J97: 1424065027 | K97: 2019-12-31 | L97: 27511 | M97: INE437A01024
A98: APOLLOPIPE | B98: EQ | C98: 343 | D98: 356.95 | E98: 341 | F98: 345.8 | G98: 345.05 | H98: 344.3 | I98: 5716 | J98: 1992712.2 | K98: 2019-12-31 | L98: 662 | M98: INE126J01016
A99: APOLLOTYRE | B99: EQ | C99: 165.05 | D99: 165.65 | E99: 163.5 | F99: 163.9 | G99: 163.6 | H99: 165 | I99: 770298 | J99: 126794639.8 | K99: 2019-12-31 | L99: 6460 | M99: INE438A01022
A100: APOLSINHOT | B100: EQ | C100: 682.5 | D100: 682.5 | E100: 670 | F100: 670.4 | G100: 670 | H100: 687.35 | I100: 445 | J100: 299426.45 | K100: 2019-12-31 | L100: 57 | M100: INE451F01024
A101: APTECHT | B101: EQ | C101: 161 | D101: 164.45 | E101: 160 | F101: 161.5 | G101: 161.95 | H101: 160.9 | I101: 178042 | J101: 28903225.95 | K101: 2019-12-31 | L101: 3407 | M101: INE266F01018
A102: ARCHIDPLY | B102: EQ | C102: 28.7 | D102: 28.9 | E102: 27.05 | F102: 27.45 | G102: 27.5 | H102: 27.95 | I102: 32241 | J102: 910585.05 | K102: 2019-12-31 | L102: 909 | M102: INE877I01016
A103: ARCHIES | B103: EQ | C103: 18.7 | D103: 18.8 | E103: 18.3 | F103: 18.35 | G103: 18.45 | H103: 18.45 | I103: 41219 | J103: 759030.35 | K103: 2019-12-31 | L103: 188 | M103: INE731A01020
A104: ARCOTECH | B104: BE | C104: 2.1 | D104: 2.25 | E104: 2.05 | F104: 2.2 | G104: 2.25 | H104: 2.15 | I104: 20137 | J104: 43567.45 | K104: 2019-12-31 | L104: 31 | M104: INE574I01035
A105: ARENTERP | B105: EQ | C105: 9 | D105: 9 | E105: 9 | F105: 9 | G105: 9 | H105: 9.05 | I105: 14800 | J105: 133200 | K105: 2019-12-31 | L105: 31 | M105: INE610C01014
A106: ARIES | B106: EQ | C106: 65.85 | D106: 67.3 | E106: 64.4 | F106: 65.35 | G106: 65.05 | H106: 65.25 | I106: 40293 | J106: 2653871.7 | K106: 2019-12-31 | L106: 653 | M106: INE298I01015
A107: ARIHANT | B107: EQ | C107: 20.05 | D107: 21 | E107: 19.55 | F107: 19.85 | G107: 19.85 | H107: 20.55 | I107: 2775 | J107: 55641.3 | K107: 2019-12-31 | L107: 49 | M107: INE413D01011
A108: ARIHANTSUP | B108: EQ | C108: 25.8 | D108: 26.75 | E108: 25.55 | F108: 26.05 | G108: 26.55 | H108: 25.8 | I108: 852 | J108: 22283.6 | K108: 2019-12-31 | L108: 27 | M108: INE643K01018
A109: ARMANFIN | B109: EQ | C109: 640.2 | D109: 640.2 | E109: 630.1 | F109: 634.65 | G109: 634.9 | H109: 640.2 | I109: 2744 | J109: 1744779 | K109: 2019-12-31 | L109: 288 | M109: INE109C01017
A110: AROGRANITE | B110: EQ | C110: 35.05 | D110: 38.5 | E110: 35 | F110: 37.5 | G110: 37.4 | H110: 35.65 | I110: 3984 | J110: 147755.05 | K110: 2019-12-31 | L110: 122 | M110: INE210C01013
A111: ARROWGREEN | B111: EQ | C111: 48 | D111: 49.45 | E111: 46.45 | F111: 49.05 | G111: 49 | H111: 46.95 | I111: 8883 | J111: 426021.45 | K111: 2019-12-31 | L111: 258 | M111: INE570D01018
A112: ARROWTEX | B112: EQ | C112: 10.5 | D112: 10.8 | E112: 10.2 | F112: 10.55 | G112: 10.65 | H112: 10.5 | I112: 10167 | J112: 107309.15 | K112: 2019-12-31 | L112: 48 | M112: INE933J01015
A113: ARSHIYA | B113: EQ | C113: 16.6 | D113: 16.85 | E113: 16.15 | F113: 16.2 | G113: 16.2 | H113: 16.6 | I113: 11422 | J113: 186891.7 | K113: 2019-12-31 | L113: 93 | M113: INE968D01022
A114: ARSSINFRA | B114: EQ | C114: 21.35 | D114: 22 | E114: 20.65 | F114: 21.8 | G114: 22 | H114: 20.9 | I114: 25373 | J114: 539257.55 | K114: 2019-12-31 | L114: 287 | M114: INE267I01010
A115: ARVIND | B115: EQ | C115: 39.15 | D115: 40.25 | E115: 38.85 | F115: 39.95 | G115: 40.1 | H115: 39.15 | I115: 1898863 | J115: 75664878.95 | K115: 2019-12-31 | L115: 6838 | M115: INE034A01011
A116: ARVINDFASN | B116: EQ | C116: 375.8 | D116: 404 | E116: 375.8 | F116: 393.4 | G116: 394.85 | H116: 377.8 | I116: 56584 | J116: 22294219.5 | K116: 2019-12-31 | L116: 3343 | M116: INE955V01021
A117: ARVSMART | B117: EQ | C117: 87 | D117: 87 | E117: 85.1 | F117: 85.95 | G117: 86 | H117: 85.6 | I117: 6978 | J117: 598571 | K117: 2019-12-31 | L117: 212 | M117: INE034S01021
A118: ASAHIINDIA | B118: EQ | C118: 213.4 | D118: 213.4 | E118: 196 | F118: 199.55 | G118: 198.15 | H118: 211.9 | I118: 34691 | J118: 7046375.8 | K118: 2019-12-31 | L118: 1263 | M118: INE439A01020
A119: ASAHISONG | B119: EQ | C119: 159.7 | D119: 162.3 | E119: 150.65 | F119: 152.5 | G119: 151.05 | H119: 157.05 | I119: 35119 | J119: 5574580.8 | K119: 2019-12-31 | L119: 1086 | M119: INE228I01012
A120: ASAL | B120: EQ | C120: 32.2 | D120: 32.2 | E120: 30.7 | F120: 31 | G120: 31 | H120: 31.8 | I120: 7029 | J120: 220829.3 | K120: 2019-12-31 | L120: 132 | M120: INE900C01027
A121: ASHAPURMIN | B121: EQ | C121: 25.3 | D121: 27.8 | E121: 25.3 | F121: 27.1 | G121: 27.8 | H121: 26.5 | I121: 30808 | J121: 824245.6 | K121: 2019-12-31 | L121: 175 | M121: INE348A01023
A122: ASHIANA | B122: EQ | C122: 98.5 | D122: 103.65 | E122: 95.55 | F122: 102 | G122: 103 | H122: 96.25 | I122: 127712 | J122: 12662804.15 | K122: 2019-12-31 | L122: 1429 | M122: INE365D01021
A123: ASHIMASYN | B123: EQ | C123: 6.05 | D123: 6.4 | E123: 6 | F123: 6.15 | G123: 6.15 | H123: 6.1 | I123: 38108 | J123: 234180.25 | K123: 2019-12-31 | L123: 112 | M123: INE440A01010
A124: ASHOKA | B124: EQ | C124: 101.55 | D124: 105.4 | E124: 98.45 | F124: 102.45 | G124: 103.1 | H124: 102.05 | I124: 1471727 | J124: 151433207.6 | K124: 2019-12-31 | L124: 14549 | M124: INE442H01029
A125: ASHOKLEY | B125: EQ | C125: 81.85 | D125: 82.6 | E125: 81.2 | F125: 81.5 | G125: 81.45 | H125: 81.8 | I125: 15426363 | J125: 1260953871 | K125: 2019-12-31 | L125: 49698 | M125: INE208A01029
A126: ASIANHOTNR | B126: EQ | C126: 102.65 | D126: 102.75 | E126: 96.25 | F126: 97.95 | G126: 98 | H126: 99.25 | I126: 2490 | J126: 249668.45 | K126: 2019-12-31 | L126: 547 | M126: INE363A01022
A127: ASIANPAINT | B127: EQ | C127: 1805 | D127: 1805 | E127: 1781.1 | F127: 1784.95 | G127: 1790.2 | H127: 1802.3 | I127: 928396 | J127: 1662597306 | K127: 2019-12-31 | L127: 30896 | M127: INE021A01026
A128: ASIANTILES | B128: EQ | C128: 219.55 | D128: 226.9 | E128: 218.05 | F128: 219.15 | G128: 219.5 | H128: 218.8 | I128: 73933 | J128: 16332618.4 | K128: 2019-12-31 | L128: 2843 | M128: INE022I01019
A129: ASPINWALL | B129: EQ | C129: 138.95 | D129: 141.5 | E129: 138.95 | F129: 138.95 | G129: 138.95 | H129: 138.55 | I129: 415 | J129: 57694.25 | K129: 2019-12-31 | L129: 12 | M129: INE991I01015
A130: ASTEC | B130: EQ | C130: 435.5 | D130: 464 | E130: 430 | F130: 455.35 | G130: 463.95 | H130: 423.3 | I130: 26414 | J130: 11836591.2 | K130: 2019-12-31 | L130: 2344 | M130: INE563J01010
A131: ASTERDM | B131: EQ | C131: 158.9 | D131: 162 | E131: 156.75 | F131: 160.75 | G131: 160 | H131: 156.4 | I131: 208105 | J131: 33326166.95 | K131: 2019-12-31 | L131: 5240 | M131: INE914M01019
A132: ASTRAL | B132: EQ | C132: 1168.5 | D132: 1199 | E132: 1138.95 | F132: 1176.9 | G132: 1179 | H132: 1169.9 | I132: 115641 | J132: 135070576.7 | K132: 2019-12-31 | L132: 12650 | M132: INE006I01046
A133: ASTRAMICRO | B133: EQ | C133: 83.05 | D133: 84.75 | E133: 82.35 | F133: 83 | G133: 82.8 | H133: 82.95 | I133: 69123 | J133: 5770978.85 | K133: 2019-12-31 | L133: 982 | M133: INE386C01029
A134: ASTRAZEN | B134: EQ | C134: 2699.85 | D134: 2712.45 | E134: 2590 | F134: 2616.6 | G134: 2614.3 | H134: 2693.25 | I134: 26820 | J134: 71034980.75 | K134: 2019-12-31 | L134: 4457 | M134: INE203A01020
A135: ASTRON | B135: EQ | C135: 38.6 | D135: 40.55 | E135: 38.25 | F135: 40.55 | G135: 40.55 | H135: 38.65 | I135: 1170830 | J135: 46654977.35 | K135: 2019-12-31 | L135: 1193 | M135: INE646X01014
A136: ATFL | B136: EQ | C136: 637.65 | D136: 640 | E136: 615.55 | F136: 629.25 | G136: 625 | H136: 641.95 | I136: 10021 | J136: 6273402 | K136: 2019-12-31 | L136: 795 | M136: INE209A01019
A137: ATLANTA | B137: EQ | C137: 6.25 | D137: 6.25 | E137: 5.9 | F137: 6 | G137: 5.9 | H137: 6.1 | I137: 9697 | J137: 59037.35 | K137: 2019-12-31 | L137: 64 | M137: INE285H01022
A138: ATLASCYCLE | B138: BE | C138: 49.15 | D138: 49.15 | E138: 49.15 | F138: 49.15 | G138: 49.15 | H138: 46.85 | I138: 2062 | J138: 101347.3 | K138: 2019-12-31 | L138: 27 | M138: INE446A01025
A139: ATUL | B139: EQ | C139: 4066.35 | D139: 4109.85 | E139: 4050 | F139: 4050.8 | G139: 4060 | H139: 4062.35 | I139: 7248 | J139: 29506102.5 | K139: 2019-12-31 | L139: 2225 | M139: INE100A01010
A140: ATULAUTO | B140: EQ | C140: 251.9 | D140: 254.35 | E140: 247.8 | F140: 252.3 | G140: 254 | H140: 251.2 | I140: 14949 | J140: 3754980.7 | K140: 2019-12-31 | L140: 727 | M140: INE951D01028
A141: AUBANK | B141: EQ | C141: 800 | D141: 821.9 | E141: 782.7 | F141: 803.1 | G141: 804 | H141: 803.25 | I141: 564939 | J141: 450788204.4 | K141: 2019-12-31 | L141: 15729 | M141: INE949L01017
A142: AURIONPRO | B142: EQ | C142: 60.4 | D142: 60.5 | E142: 54.5 | F142: 57.4 | G142: 57.5 | H142: 60.05 | I142: 23077 | J142: 1320331.4 | K142: 2019-12-31 | L142: 712 | M142: INE132H01018
A143: AUROPHARMA | B143: EQ | C143: 463.5 | D143: 468.9 | E143: 455.5 | F143: 456.85 | G143: 457.3 | H143: 465.25 | I143: 1613940 | J143: 745093030.5 | K143: 2019-12-31 | L143: 24588 | M143: INE406A01037
A144: AUSOMENT | B144: BE | C144: 35.05 | D144: 36 | E144: 35.05 | F144: 35.55 | G144: 35.6 | H144: 34.65 | I144: 555 | J144: 19776.15 | K144: 2019-12-31 | L144: 12 | M144: INE218C01016
A145: AUTOAXLES | B145: EQ | C145: 859 | D145: 859 | E145: 830 | F145: 835.05 | G145: 830.05 | H145: 859.2 | I145: 14635 | J145: 12365602.35 | K145: 2019-12-31 | L145: 1280 | M145: INE449A01011
A146: AUTOIND | B146: BE | C146: 25.5 | D146: 25.5 | E146: 24.05 | F146: 25 | G146: 25 | H146: 24.8 | I146: 16318 | J146: 406099.8 | K146: 2019-12-31 | L146: 82 | M146: INE718H01014
A147: AUTOLITIND | B147: EQ | C147: 21.95 | D147: 22 | E147: 20.55 | F147: 21.5 | G147: 21.65 | H147: 20.8 | I147: 4186 | J147: 89623.55 | K147: 2019-12-31 | L147: 168 | M147: INE448A01013
A148: AVADHSUGAR | B148: EQ | C148: 275.5 | D148: 284.25 | E148: 270.05 | F148: 277.55 | G148: 278.5 | H148: 274.5 | I148: 242254 | J148: 67492886.45 | K148: 2019-12-31 | L148: 5596 | M148: INE349W01017
A149: AVANTIFEED | B149: EQ | C149: 569 | D149: 590 | E149: 566.5 | F149: 584 | G149: 589 | H149: 569.5 | I149: 593427 | J149: 342776723.3 | K149: 2019-12-31 | L149: 16058 | M149: INE871C01038
A150: AVTNPL | B150: EQ | C150: 31.6 | D150: 31.6 | E150: 30.7 | F150: 31 | G150: 31 | H150: 31.7 | I150: 40850 | J150: 1277574.85 | K150: 2019-12-31 | L150: 377 | M150: INE488D01021
A151: AXISBANK | B151: EQ | C151: 753.85 | D151: 765.85 | E151: 751.4 | F151: 754.1 | G151: 752.5 | H151: 754.1 | I151: 11660781 | J151: 8842548883 | K151: 2019-12-31 | L151: 131248 | M151: INE238A01034
A152: AXISCADES | B152: EQ | C152: 55.05 | D152: 55.7 | E152: 52.8 | F152: 53 | G152: 53 | H152: 55.45 | I152: 62507 | J152: 3349545.65 | K152: 2019-12-31 | L152: 1057 | M152: INE555B01013
A153: AXISGOLD | B153: EQ | C153: 3418.5 | D153: 3458.45 | E153: 3414 | F153: 3438.1 | G153: 3439.2 | H153: 3414 | I153: 240 | J153: 824827.95 | K153: 2019-12-31 | L153: 77 | M153: INF846K01347
A154: AXISNIFTY | B154: EQ | C154: 1266.07 | D154: 1266.07 | E154: 1253.98 | F154: 1260.96 | G154: 1260.96 | H154: 1268.64 | I154: 18 | J154: 22700.2 | K154: 2019-12-31 | L154: 7 | M154: INF846K01ZL0
A155: AYMSYNTEX | B155: EQ | C155: 29.05 | D155: 31 | E155: 28.5 | F155: 29.7 | G155: 29.8 | H155: 29.45 | I155: 3343 | J155: 98552.05 | K155: 2019-12-31 | L155: 54 | M155: INE193B01039
A156: BAGFILMS | B156: BE | C156: 1.85 | D156: 1.9 | E156: 1.8 | F156: 1.9 | G156: 1.9 | H156: 1.85 | I156: 44723 | J156: 84085.85 | K156: 2019-12-31 | L156: 61 | M156: INE116D01028
A157: BAJAJ-AUTO | B157: EQ | C157: 3251 | D157: 3251 | E157: 3175.55 | F157: 3185 | G157: 3180 | H157: 3251.95 | I157: 526252 | J157: 1688474271 | K157: 2019-12-31 | L157: 25841 | M157: INE917I01010
A158: BAJAJCON | B158: EQ | C158: 233.7 | D158: 241 | E158: 232 | F158: 236.1 | G158: 235 | H158: 232.55 | I158: 121842 | J158: 28810089.85 | K158: 2019-12-31 | L158: 2648 | M158: INE933K01021
A159: BAJAJELEC | B159: EQ | C159: 342.1 | D159: 360 | E159: 340.05 | F159: 358.15 | G159: 359.1 | H159: 342.05 | I159: 587924 | J159: 207489139.5 | K159: 2019-12-31 | L159: 15815 | M159: INE193E01025
A160: BAJAJFINSV | B160: EQ | C160: 9422.4 | D160: 9444.95 | E160: 9379 | F160: 9393.35 | G160: 9420 | H160: 9439.2 | I160: 116732 | J160: 1099103882 | K160: 2019-12-31 | L160: 11628 | M160: INE918I01018
A161: BAJAJHIND | B161: EQ | C161: 6.5 | D161: 6.65 | E161: 6.4 | F161: 6.55 | G161: 6.55 | H161: 6.5 | I161: 2385588 | J161: 15611334.3 | K161: 2019-12-31 | L161: 2133 | M161: INE306A01021
A162: BAJAJHLDNG | B162: EQ | C162: 3449.6 | D162: 3449.6 | E162: 3395 | F162: 3406.6 | G162: 3417 | H162: 3430 | I162: 117325 | J162: 399148384.6 | K162: 2019-12-31 | L162: 2524 | M162: INE118A01012
A163: BAJFINANCE | B163: EQ | C163: 4247 | D163: 4266.4 | E163: 4218.6 | F163: 4234.75 | G163: 4225 | H163: 4243.3 | I163: 779608 | J163: 3308866699 | K163: 2019-12-31 | L163: 40438 | M163: INE296A01024
A164: BALAJITELE | B164: EQ | C164: 50.95 | D164: 53.4 | E164: 50.25 | F164: 51.65 | G164: 51.5 | H164: 50.65 | I164: 53784 | J164: 2782144.25 | K164: 2019-12-31 | L164: 476 | M164: INE794B01026
A165: BALAMINES | B165: EQ | C165: 403.95 | D165: 408.8 | E165: 395.1 | F165: 399.3 | G165: 400 | H165: 402.35 | I165: 107843 | J165: 43205161.9 | K165: 2019-12-31 | L165: 4365 | M165: INE050E01027
A166: BALAXI | B166: EQ | C166: 90 | D166: 90 | E166: 75 | F166: 81.2 | G166: 83.7 | H166: 83 | I166: 295 | J166: 23476.55 | K166: 2019-12-31 | L166: 23 | M166: INE618N01014
A167: BALKRISHNA | B167: EQ | C167: 20.35 | D167: 20.35 | E167: 20.25 | F167: 20.35 | G167: 20.35 | H167: 19.4 | I167: 11058 | J167: 224837.45 | K167: 2019-12-31 | L167: 56 | M167: INE875R01011
A168: BALKRISIND | B168: EQ | C168: 990 | D168: 999 | E168: 980 | F168: 990.55 | G168: 990 | H168: 992.7 | I168: 548965 | J168: 544123449.3 | K168: 2019-12-31 | L168: 15517 | M168: INE787D01026
A169: BALLARPUR | B169: BE | C169: 0.4 | D169: 0.45 | E169: 0.4 | F169: 0.45 | G169: 0.45 | H169: 0.4 | I169: 1014109 | J169: 425746.5 | K169: 2019-12-31 | L169: 218 | M169: INE294A01037
A170: BALMLAWRIE | B170: EQ | C170: 125.95 | D170: 125.95 | E170: 124.5 | F170: 124.85 | G170: 124.9 | H170: 125.4 | I170: 68419 | J170: 8554612.75 | K170: 2019-12-31 | L170: 1047 | M170: INE164A01016
A171: BALPHARMA | B171: EQ | C171: 40.3 | D171: 41.85 | E171: 39.55 | F171: 41.2 | G171: 41 | H171: 40.45 | I171: 5919 | J171: 241051.55 | K171: 2019-12-31 | L171: 105 | M171: INE083D01012
A172: BALRAMCHIN | B172: EQ | C172: 182.8 | D172: 185.65 | E172: 181.45 | F172: 183.4 | G172: 183.5 | H172: 183.35 | I172: 1417715 | J172: 260406125.7 | K172: 2019-12-31 | L172: 17926 | M172: INE119A01028
A173: BANARBEADS | B173: EQ | C173: 28.65 | D173: 30.3 | E173: 28.6 | F173: 29.3 | G173: 30.25 | H173: 28.6 | I173: 254 | J173: 7474.1 | K173: 2019-12-31 | L173: 26 | M173: INE655B01011
A174: BANARISUG | B174: EQ | C174: 1180 | D174: 1202 | E174: 1140 | F174: 1175.75 | G174: 1155.05 | H174: 1174.6 | I174: 1893 | J174: 2226505.65 | K174: 2019-12-31 | L174: 567 | M174: INE459A01010
A175: BANCOINDIA | B175: EQ | C175: 112.3 | D175: 114.9 | E175: 105.6 | F175: 107.9 | G175: 106 | H175: 111.35 | I175: 91041 | J175: 10073172.95 | K175: 2019-12-31 | L175: 2590 | M175: INE213C01025
A176: BANDHANBNK | B176: EQ | C176: 504.65 | D176: 516.15 | E176: 495.1 | F176: 508.25 | G176: 509.8 | H176: 504.65 | I176: 1965980 | J176: 990699088.5 | K176: 2019-12-31 | L176: 37736 | M176: INE545U01014
A177: BANG | B177: EQ | C177: 17 | D177: 17.4 | E177: 16.5 | F177: 16.8 | G177: 16.8 | H177: 17.1 | I177: 5649 | J177: 94995.15 | K177: 2019-12-31 | L177: 71 | M177: INE863I01016
A178: BANKBARODA | B178: EQ | C178: 102.9 | D178: 103.2 | E178: 101.55 | F178: 101.9 | G178: 101.65 | H178: 102.9 | I178: 15943079 | J178: 1631709207 | K178: 2019-12-31 | L178: 36801 | M178: INE028A01039
A179: BANKBEES | B179: EQ | C179: 330 | D179: 330.25 | E179: 328.02 | F179: 329 | G179: 329.52 | H179: 330.09 | I179: 388899 | J179: 128146134.5 | K179: 2019-12-31 | L179: 1423 | M179: INF204KB15I9
A180: BANKINDIA | B180: EQ | C180: 69.6 | D180: 71.4 | E180: 69.5 | F180: 70.4 | G180: 70.6 | H180: 69.75 | I180: 2871913 | J180: 202498133.3 | K180: 2019-12-31 | L180: 10141 | M180: INE084A01016
A181: BANSWRAS | B181: BE | C181: 101.2 | D181: 106.2 | E181: 101.2 | F181: 106.2 | G181: 106.2 | H181: 101.15 | I181: 15129 | J181: 1588239.75 | K181: 2019-12-31 | L181: 169 | M181: INE629D01012
A182: BARTRONICS | B182: BE | C182: 1.4 | D182: 1.4 | E182: 1.3 | F182: 1.3 | G182: 1.3 | H182: 1.35 | I182: 9209 | J182: 12303.3 | K182: 2019-12-31 | L182: 30 | M182: INE855F01034
A183: BASF | B183: EQ | C183: 998.2 | D183: 1009.7 | E183: 985 | F183: 988.25 | G183: 986.5 | H183: 994.75 | I183: 38646 | J183: 38346590.9 | K183: 2019-12-31 | L183: 2521 | M183: INE373A01013
A184: BASML | B184: EQ | C184: 113.85 | D184: 116.95 | E184: 110.6 | F184: 115.25 | G184: 116.4 | H184: 113.65 | I184: 2271 | J184: 259268.55 | K184: 2019-12-31 | L184: 298 | M184: INE186H01014
A185: BATAINDIA | B185: EQ | C185: 1761.9 | D185: 1770.75 | E185: 1746 | F185: 1751.55 | G185: 1750 | H185: 1761.9 | I185: 638499 | J185: 1123989302 | K185: 2019-12-31 | L185: 20903 | M185: INE176A01028
A186: BAYERCROP | B186: EQ | C186: 3609.95 | D186: 3614 | E186: 3506 | F186: 3562.8 | G186: 3600 | H186: 3598.45 | I186: 41746 | J186: 149185326.2 | K186: 2019-12-31 | L186: 2971 | M186: INE462A01022
A187: BBL | B187: EQ | C187: 819.7 | D187: 833.6 | E187: 809 | F187: 816.65 | G187: 819.8 | H187: 815.9 | I187: 6700 | J187: 5488773 | K187: 2019-12-31 | L187: 601 | M187: INE464A01028
A188: BBTC | B188: EQ | C188: 1008 | D188: 1057.8 | E188: 1005.5 | F188: 1038.95 | G188: 1035 | H188: 1008.6 | I188: 333501 | J188: 347150747.8 | K188: 2019-12-31 | L188: 17400 | M188: INE050A01025
A189: BCG | B189: BE | C189: 6.75 | D189: 6.95 | E189: 6.4 | F189: 6.55 | G189: 6.7 | H189: 6.65 | I189: 580766 | J189: 3895193.2 | K189: 2019-12-31 | L189: 549 | M189: INE425B01027
A190: BCP | B190: EQ | C190: 16.3 | D190: 16.4 | E190: 15.05 | F190: 15.75 | G190: 15.05 | H190: 15.8 | I190: 151924 | J190: 2384254.25 | K190: 2019-12-31 | L190: 225 | M190: INE905P01028
A191: BDL | B191: EQ | C191: 298.2 | D191: 298.25 | E191: 292.8 | F191: 294.45 | G191: 294.55 | H191: 298.8 | I191: 35494 | J191: 10473820 | K191: 2019-12-31 | L191: 1796 | M191: INE171Z01018
A192: BEARDSELL | B192: EQ | C192: 7.3 | D192: 8.55 | E192: 7.2 | F192: 7.8 | G192: 7.85 | H192: 7.55 | I192: 3105 | J192: 24455.75 | K192: 2019-12-31 | L192: 74 | M192: INE520H01022
A193: BEDMUTHA | B193: BE | C193: 16.25 | D193: 16.8 | E193: 15.3 | F193: 16.75 | G193: 16.1 | H193: 16 | I193: 13514 | J193: 226137.9 | K193: 2019-12-31 | L193: 29 | M193: INE844K01012
A194: BEL | B194: EQ | C194: 100.2 | D194: 102 | E194: 99.6 | F194: 100.05 | G194: 100 | H194: 99.95 | I194: 7489544 | J194: 755010284.1 | K194: 2019-12-31 | L194: 21170 | M194: INE263A01024
A195: BEML | B195: EQ | C195: 980 | D195: 999 | E195: 978.95 | F195: 984 | G195: 982.5 | H195: 981.8 | I195: 563265 | J195: 557470593.6 | K195: 2019-12-31 | L195: 14975 | M195: INE258A01016
A196: BEPL | B196: EQ | C196: 51 | D196: 55 | E196: 50.55 | F196: 52 | G196: 52.15 | H196: 48.3 | I196: 3135709 | J196: 166668010.7 | K196: 2019-12-31 | L196: 20826 | M196: INE922A01025
A197: BERGEPAINT | B197: EQ | C197: 516 | D197: 516.7 | E197: 510.5 | F197: 515.55 | G197: 516 | H197: 515.2 | I197: 568561 | J197: 292418472.1 | K197: 2019-12-31 | L197: 10432 | M197: INE463A01038
A198: BFINVEST | B198: EQ | C198: 321.45 | D198: 324.8 | E198: 318.15 | F198: 319.45 | G198: 322.5 | H198: 320.65 | I198: 44134 | J198: 14171649.65 | K198: 2019-12-31 | L198: 1823 | M198: INE878K01010
A199: BFUTILITIE | B199: EQ | C199: 317.7 | D199: 322.7 | E199: 315.2 | F199: 316.25 | G199: 315.75 | H199: 317.8 | I199: 237088 | J199: 75502280.2 | K199: 2019-12-31 | L199: 5594 | M199: INE243D01012
A200: BGLOBAL | B200: BE | C200: 1.6 | D200: 1.7 | E200: 1.6 | F200: 1.7 | G200: 1.7 | H200: 1.65 | I200: 254 | J200: 416.7 | K200: 2019-12-31 | L200: 7 | M200: INE224M01013
... 1489 more rows

Sheet Sheet1 (hidden)

Sheet Sheet3 (hidden)

Sheet Sheet4 (hidden)

Sheet Sheet5 (hidden)
